Body Name,Portfolio,Organisation Code,Org Code Description,Object Code,Object Code Description,GL Date,Invoice No. ,Value,Supplier,Category,Category Description,Supplier No
SHEFFIELD CITY COUNCIL,PEOPLE,13002639428,RESIDENTIAL UNDER 16's,9270008,INDEPENDENT RESIDENTIAL PMENT,02/10/2017,4320,"5,430.00",SIXTEEN PLUS LIMITED,CT010101266,Accommodation Agencies - Residential,64488300
SHEFFIELD CITY COUNCIL,PEOPLE,14009346039,ADULT SOCIAL CARE PURCHASING,9210001,CONTINUING NURSING CARE,02/10/2017,J2017936081017,"-4,080.15",67 BIRCH AVENUE NURSING HOME,CT230753350,Nursing Homes,36210800
SHEFFIELD CITY COUNCIL,PEOPLE,14009346039,ADULT SOCIAL CARE PURCHASING,4260011,NURSING COSTS RECOVERED,02/10/2017,J2017936081017,"-1,178.05",67 BIRCH AVENUE NURSING HOME,CT230753350,Nursing Homes,36210800
SHEFFIELD CITY COUNCIL,PEOPLE,14009346039,ADULT SOCIAL CARE PURCHASING,4260011,NURSING COSTS RECOVERED,02/10/2017,J1992736100917,-567.16,67 BIRCH AVENUE NURSING HOME,CT230753350,Nursing Homes,36210800
SHEFFIELD CITY COUNCIL,PEOPLE,14009346039,ADULT SOCIAL CARE PURCHASING,4260011,NURSING COSTS RECOVERED,02/10/2017,J2017936081017,-567.16,67 BIRCH AVENUE NURSING HOME,CT230753350,Nursing Homes,36210800
SHEFFIELD CITY COUNCIL,PEOPLE,14009346039,ADULT SOCIAL CARE PURCHASING,4260011,NURSING COSTS RECOVERED,02/10/2017,J1992736100917,-537.80,67 BIRCH AVENUE NURSING HOME,CT230753350,Nursing Homes,36210800
SHEFFIELD CITY COUNCIL,PEOPLE,14009346039,ADULT SOCIAL CARE PURCHASING,4260011,NURSING COSTS RECOVERED,02/10/2017,J2017936081017,-537.80,67 BIRCH AVENUE NURSING HOME,CT230753350,Nursing Homes,36210800
SHEFFIELD CITY COUNCIL,PEOPLE,14009346039,ADULT SOCIAL CARE PURCHASING,9210001,CONTINUING NURSING CARE,02/10/2017,J1992736100917,"1,141.32",67 BIRCH AVENUE NURSING HOME,CT230753350,Nursing Homes,36210800
SHEFFIELD CITY COUNCIL,PEOPLE,14009346039,ADULT SOCIAL CARE PURCHASING,9210001,CONTINUING NURSING CARE,02/10/2017,J2017936081017,"1,141.32",67 BIRCH AVENUE NURSING HOME,CT230753350,Nursing Homes,36210800
SHEFFIELD CITY COUNCIL,PEOPLE,14009346039,ADULT SOCIAL CARE PURCHASING,9210001,CONTINUING NURSING CARE,02/10/2017,J1992736100917,"1,812.00",67 BIRCH AVENUE NURSING HOME,CT230753350,Nursing Homes,36210800
SHEFFIELD CITY COUNCIL,PEOPLE,14009346039,ADULT SOCIAL CARE PURCHASING,9210001,CONTINUING NURSING CARE,02/10/2017,J1992736100917,"1,812.00",67 BIRCH AVENUE NURSING HOME,CT230753350,Nursing Homes,36210800
SHEFFIELD CITY COUNCIL,PEOPLE,14009346039,ADULT SOCIAL CARE PURCHASING,9210001,CONTINUING NURSING CARE,02/10/2017,J2017936081017,"1,812.00",67 BIRCH AVENUE NURSING HOME,CT230753350,Nursing Homes,36210800
SHEFFIELD CITY COUNCIL,PEOPLE,14009346039,ADULT SOCIAL CARE PURCHASING,9210001,CONTINUING NURSING CARE,02/10/2017,J2017936081017,"1,812.00",67 BIRCH AVENUE NURSING HOME,CT230753350,Nursing Homes,36210800
SHEFFIELD CITY COUNCIL,PEOPLE,14009346039,ADULT SOCIAL CARE PURCHASING,9210001,CONTINUING NURSING CARE,02/10/2017,J1992736100917,"2,197.00",67 BIRCH AVENUE NURSING HOME,CT230753350,Nursing Homes,36210800
SHEFFIELD CITY COUNCIL,PEOPLE,14009346039,ADULT SOCIAL CARE PURCHASING,9200001,CONTINUING RESIDENTIAL CARE,02/10/2017,J1992736100917,"2,197.00",67 BIRCH AVENUE NURSING HOME,CT230753350,Nursing Homes,36210800
SHEFFIELD CITY COUNCIL,PEOPLE,14009346039,ADULT SOCIAL CARE PURCHASING,9210001,CONTINUING NURSING CARE,02/10/2017,J1992736100917,"2,197.00",67 BIRCH AVENUE NURSING HOME,CT230753350,Nursing Homes,36210800
SHEFFIELD CITY COUNCIL,PEOPLE,14009346039,ADULT SOCIAL CARE PURCHASING,9210001,CONTINUING NURSING CARE,02/10/2017,J1992736100917,"2,197.00",67 BIRCH AVENUE NURSING HOME,CT230753350,Nursing Homes,36210800
SHEFFIELD CITY COUNCIL,PEOPLE,14009346039,ADULT SOCIAL CARE PURCHASING,9210001,CONTINUING NURSING CARE,02/10/2017,J1992736100917,"2,197.00",67 BIRCH AVENUE NURSING HOME,CT230753350,Nursing Homes,36210800
SHEFFIELD CITY COUNCIL,PEOPLE,14009346039,ADULT SOCIAL CARE PURCHASING,9210001,CONTINUING NURSING CARE,02/10/2017,J1992736100917,"2,197.00",67 BIRCH AVENUE NURSING HOME,CT230753350,Nursing Homes,36210800
SHEFFIELD CITY COUNCIL,PEOPLE,14009346039,ADULT SOCIAL CARE PURCHASING,9210001,CONTINUING NURSING CARE,02/10/2017,J2017936081017,"2,197.00",67 BIRCH AVENUE NURSING HOME,CT230753350,Nursing Homes,36210800
SHEFFIELD CITY COUNCIL,PEOPLE,14009346039,ADULT SOCIAL CARE PURCHASING,9210001,CONTINUING NURSING CARE,02/10/2017,J2017936081017,"2,197.00",67 BIRCH AVENUE NURSING HOME,CT230753350,Nursing Homes,36210800
SHEFFIELD CITY COUNCIL,PEOPLE,14009346039,ADULT SOCIAL CARE PURCHASING,9210001,CONTINUING NURSING CARE,02/10/2017,J2017936081017,"2,197.00",67 BIRCH AVENUE NURSING HOME,CT230753350,Nursing Homes,36210800
SHEFFIELD CITY COUNCIL,PEOPLE,14009346039,ADULT SOCIAL CARE PURCHASING,9210001,CONTINUING NURSING CARE,02/10/2017,J2017936081017,"2,197.00",67 BIRCH AVENUE NURSING HOME,CT230753350,Nursing Homes,36210800
SHEFFIELD CITY COUNCIL,PEOPLE,14009346039,ADULT SOCIAL CARE PURCHASING,9200001,CONTINUING RESIDENTIAL CARE,02/10/2017,J2017936081017,"2,197.00",67 BIRCH AVENUE NURSING HOME,CT230753350,Nursing Homes,36210800
SHEFFIELD CITY COUNCIL,PEOPLE,14009346039,ADULT SOCIAL CARE PURCHASING,9210001,CONTINUING NURSING CARE,02/10/2017,J2017936081017,"2,589.32",67 BIRCH AVENUE NURSING HOME,CT230753350,Nursing Homes,36210800
SHEFFIELD CITY COUNCIL,PEOPLE,14007597334,DISABLED GRANTS,1165000,NC&A OTHER,02/10/2017,6194,427.50,ABBEYDALE SHOWERS,CT079930580,Electricians & Electrical Contractors,30225600
SCR COMBINED AUTHORITY        ,LOCAL ENTERPRISE PARTNERSHIP,33074630322,GRANT FOR APPRENTICESHIPS,8440000,FEE EXPENSES,02/10/2017,6348,"1,120.00",ACCESS 4 FINANCE LTD,CT129935210,Finance Brokers,70044900
SHEFFIELD CITY COUNCIL,PEOPLE,14009346039,ADULT SOCIAL CARE PURCHASING,4260018,RESIDENTIAL COSTS RECOVERED,02/10/2017,J2033082081017,"-5,660.64",ALEXANDER COURT CARE HOME,CT230164710,Residential Care Homes,36188900
SHEFFIELD CITY COUNCIL,PEOPLE,14009346039,ADULT SOCIAL CARE PURCHASING,4260018,RESIDENTIAL COSTS RECOVERED,02/10/2017,J2033082081017,"-2,176.29",ALEXANDER COURT CARE HOME,CT230164710,Residential Care Homes,36188900
SHEFFIELD CITY COUNCIL,PEOPLE,14009346039,ADULT SOCIAL CARE PURCHASING,9200001,CONTINUING RESIDENTIAL CARE,02/10/2017,J2033082081017,"-1,842.86",ALEXANDER COURT CARE HOME,CT230164710,Residential Care Homes,36188900
SHEFFIELD CITY COUNCIL,PEOPLE,14009346039,ADULT SOCIAL CARE PURCHASING,4260011,NURSING COSTS RECOVERED,02/10/2017,J2033082081017,"-1,338.64",ALEXANDER COURT CARE HOME,CT230164710,Residential Care Homes,36188900
SHEFFIELD CITY COUNCIL,PEOPLE,14009346039,ADULT SOCIAL CARE PURCHASING,4260018,RESIDENTIAL COSTS RECOVERED,02/10/2017,J2033082081017,"-1,170.52",ALEXANDER COURT CARE HOME,CT230164710,Residential Care Homes,36188900
SHEFFIELD CITY COUNCIL,PEOPLE,14009346039,ADULT SOCIAL CARE PURCHASING,4260018,RESIDENTIAL COSTS RECOVERED,02/10/2017,J2033082081017,-950.88,ALEXANDER COURT CARE HOME,CT230164710,Residential Care Homes,36188900
SHEFFIELD CITY COUNCIL,PEOPLE,14009346039,ADULT SOCIAL CARE PURCHASING,4260011,NURSING COSTS RECOVERED,02/10/2017,J2033082081017,-937.80,ALEXANDER COURT CARE HOME,CT230164710,Residential Care Homes,36188900
SHEFFIELD CITY COUNCIL,PEOPLE,14009346039,ADULT SOCIAL CARE PURCHASING,4260018,RESIDENTIAL COSTS RECOVERED,02/10/2017,J2033082081017,-835.88,ALEXANDER COURT CARE HOME,CT230164710,Residential Care Homes,36188900
SHEFFIELD CITY COUNCIL,PEOPLE,14009346039,ADULT SOCIAL CARE PURCHASING,4260018,RESIDENTIAL COSTS RECOVERED,02/10/2017,J2033082081017,-777.80,ALEXANDER COURT CARE HOME,CT230164710,Residential Care Homes,36188900
SHEFFIELD CITY COUNCIL,PEOPLE,14009346039,ADULT SOCIAL CARE PURCHASING,4260011,NURSING COSTS RECOVERED,02/10/2017,J2033082081017,-777.80,ALEXANDER COURT CARE HOME,CT230164710,Residential Care Homes,36188900
SHEFFIELD CITY COUNCIL,PEOPLE,14009346039,ADULT SOCIAL CARE PURCHASING,4260011,NURSING COSTS RECOVERED,02/10/2017,J2033082081017,-686.64,ALEXANDER COURT CARE HOME,CT230164710,Residential Care Homes,36188900
SHEFFIELD CITY COUNCIL,PEOPLE,14009346039,ADULT SOCIAL CARE PURCHASING,4260011,NURSING COSTS RECOVERED,02/10/2017,J2033082081017,-677.16,ALEXANDER COURT CARE HOME,CT230164710,Residential Care Homes,36188900
SHEFFIELD CITY COUNCIL,PEOPLE,14009346039,ADULT SOCIAL CARE PURCHASING,4260011,NURSING COSTS RECOVERED,02/10/2017,J2033082081017,-617.24,ALEXANDER COURT CARE HOME,CT230164710,Residential Care Homes,36188900
SHEFFIELD CITY COUNCIL,PEOPLE,14009346039,ADULT SOCIAL CARE PURCHASING,4260011,NURSING COSTS RECOVERED,02/10/2017,J2033082081017,-604.44,ALEXANDER COURT CARE HOME,CT230164710,Residential Care Homes,36188900
SHEFFIELD CITY COUNCIL,PEOPLE,14009346039,ADULT SOCIAL CARE PURCHASING,4260011,NURSING COSTS RECOVERED,02/10/2017,J2033082081017,-603.08,ALEXANDER COURT CARE HOME,CT230164710,Residential Care Homes,36188900
SHEFFIELD CITY COUNCIL,PEOPLE,14009346039,ADULT SOCIAL CARE PURCHASING,4260018,RESIDENTIAL COSTS RECOVERED,02/10/2017,J2033082081017,-601.16,ALEXANDER COURT CARE HOME,CT230164710,Residential Care Homes,36188900
SHEFFIELD CITY COUNCIL,PEOPLE,14009346039,ADULT SOCIAL CARE PURCHASING,4260018,RESIDENTIAL COSTS RECOVERED,02/10/2017,J2033082081017,-591.68,ALEXANDER COURT CARE HOME,CT230164710,Residential Care Homes,36188900
SHEFFIELD CITY COUNCIL,PEOPLE,14009346039,ADULT SOCIAL CARE PURCHASING,4260018,RESIDENTIAL COSTS RECOVERED,02/10/2017,J2033082081017,-568.28,ALEXANDER COURT CARE HOME,CT230164710,Residential Care Homes,36188900
SHEFFIELD CITY COUNCIL,PEOPLE,14009346039,ADULT SOCIAL CARE PURCHASING,4260011,NURSING COSTS RECOVERED,02/10/2017,J2033082081017,-543.20,ALEXANDER COURT CARE HOME,CT230164710,Residential Care Homes,36188900
SHEFFIELD CITY COUNCIL,PEOPLE,13008133108,AMBITIONS - SHEFFIELD,9120000,OTHER AGENCIES,02/10/2017,81,"1,000.00",FIREDOG RESEARCH LTD,CT080112100,Business & Management Consultants,62519400
SHEFFIELD CITY COUNCIL,PEOPLE,14009346039,ADULT SOCIAL CARE PURCHASING,4260011,NURSING COSTS RECOVERED,02/10/2017,J2033082081017,-537.80,ALEXANDER COURT CARE HOME,CT230164710,Residential Care Homes,36188900
SHEFFIELD CITY COUNCIL,PEOPLE,14009346039,ADULT SOCIAL CARE PURCHASING,4260018,RESIDENTIAL COSTS RECOVERED,02/10/2017,J2033082081017,-537.80,ALEXANDER COURT CARE HOME,CT230164710,Residential Care Homes,36188900
SHEFFIELD CITY COUNCIL,PEOPLE,14009346039,ADULT SOCIAL CARE PURCHASING,4260011,NURSING COSTS RECOVERED,02/10/2017,J2033082081017,-537.80,ALEXANDER COURT CARE HOME,CT230164710,Residential Care Homes,36188900
SHEFFIELD CITY COUNCIL,PEOPLE,14009346039,ADULT SOCIAL CARE PURCHASING,4260018,RESIDENTIAL COSTS RECOVERED,02/10/2017,J2033082081017,-530.64,ALEXANDER COURT CARE HOME,CT230164710,Residential Care Homes,36188900
SHEFFIELD CITY COUNCIL,PEOPLE,14009346039,ADULT SOCIAL CARE PURCHASING,4260011,NURSING COSTS RECOVERED,02/10/2017,J2033082081017,-520.96,ALEXANDER COURT CARE HOME,CT230164710,Residential Care Homes,36188900
SHEFFIELD CITY COUNCIL,PEOPLE,14009346039,ADULT SOCIAL CARE PURCHASING,4260011,NURSING COSTS RECOVERED,02/10/2017,J2033082081017,-479.04,ALEXANDER COURT CARE HOME,CT230164710,Residential Care Homes,36188900
SHEFFIELD CITY COUNCIL,PEOPLE,14009346039,ADULT SOCIAL CARE PURCHASING,4260018,RESIDENTIAL COSTS RECOVERED,02/10/2017,J2033082081017,-299.20,ALEXANDER COURT CARE HOME,CT230164710,Residential Care Homes,36188900
SHEFFIELD CITY COUNCIL,PEOPLE,14009346039,ADULT SOCIAL CARE PURCHASING,4260011,NURSING COSTS RECOVERED,02/10/2017,J2011278100917,-115.24,ALEXANDER COURT CARE HOME,CT230164710,Residential Care Homes,36188900
SHEFFIELD CITY COUNCIL,PEOPLE,13008133108,AMBITIONS - SHEFFIELD,9120000,OTHER AGENCIES,02/10/2017,80,"3,000.00",FIREDOG RESEARCH LTD,CT080112100,Business & Management Consultants,62519400
SHEFFIELD CITY COUNCIL,PEOPLE,14009346039,ADULT SOCIAL CARE PURCHASING,4260011,NURSING COSTS RECOVERED,02/10/2017,J2017793100917,-72.90,ALEXANDER COURT CARE HOME,CT230164710,Residential Care Homes,36188900
SHEFFIELD CITY COUNCIL,PEOPLE,14009346039,ADULT SOCIAL CARE PURCHASING,4260011,NURSING COSTS RECOVERED,02/10/2017,J2033082081017,-57.62,ALEXANDER COURT CARE HOME,CT230164710,Residential Care Homes,36188900
SHEFFIELD CITY COUNCIL,PEOPLE,14009346039,ADULT SOCIAL CARE PURCHASING,9210001,CONTINUING NURSING CARE,02/10/2017,J2011278100917,377.14,ALEXANDER COURT CARE HOME,CT230164710,Residential Care Homes,36188900
SHEFFIELD CITY COUNCIL,PEOPLE,14009346039,ADULT SOCIAL CARE PURCHASING,9210001,CONTINUING NURSING CARE,02/10/2017,J2033082081017,377.14,ALEXANDER COURT CARE HOME,CT230164710,Residential Care Homes,36188900
SHEFFIELD CITY COUNCIL,PEOPLE,14009346039,ADULT SOCIAL CARE PURCHASING,4260018,RESIDENTIAL COSTS RECOVERED,02/10/2017,J2033082081017,576.21,ALEXANDER COURT CARE HOME,CT230164710,Residential Care Homes,36188900
SHEFFIELD CITY COUNCIL,PEOPLE,14009346039,ADULT SOCIAL CARE PURCHASING,9200001,CONTINUING RESIDENTIAL CARE,02/10/2017,J2033082081017,"1,564.00",ALEXANDER COURT CARE HOME,CT230164710,Residential Care Homes,36188900
SHEFFIELD CITY COUNCIL,PEOPLE,14009346039,ADULT SOCIAL CARE PURCHASING,9200001,CONTINUING RESIDENTIAL CARE,02/10/2017,J2033082081017,"1,564.00",ALEXANDER COURT CARE HOME,CT230164710,Residential Care Homes,36188900
SHEFFIELD CITY COUNCIL,PEOPLE,14009346039,ADULT SOCIAL CARE PURCHASING,9200001,CONTINUING RESIDENTIAL CARE,02/10/2017,J2033082081017,"1,564.00",ALEXANDER COURT CARE HOME,CT230164710,Residential Care Homes,36188900
SHEFFIELD CITY COUNCIL,PEOPLE,14009346039,ADULT SOCIAL CARE PURCHASING,9200001,CONTINUING RESIDENTIAL CARE,02/10/2017,J2033082081017,"1,564.00",ALEXANDER COURT CARE HOME,CT230164710,Residential Care Homes,36188900
SHEFFIELD CITY COUNCIL,PLACE,12019028107,STRATEGY & SKILLS,8440000,FEE EXPENSES,02/10/2017,C092,"4,941.07",EKOSGEN,CT080112100,Business & Management Consultants,62071500
SHEFFIELD CITY COUNCIL,PLACE,12019028107,STRATEGY & SKILLS,8440000,FEE EXPENSES,02/10/2017,C090,"4,941.07",EKOSGEN,CT080112100,Business & Management Consultants,62071500
SHEFFIELD CITY COUNCIL,PEOPLE,14009346039,ADULT SOCIAL CARE PURCHASING,9200001,CONTINUING RESIDENTIAL CARE,02/10/2017,J2033082081017,"1,720.00",ALEXANDER COURT CARE HOME,CT230164710,Residential Care Homes,36188900
SHEFFIELD CITY COUNCIL,PEOPLE,14009346039,ADULT SOCIAL CARE PURCHASING,9200001,CONTINUING RESIDENTIAL CARE,02/10/2017,J2033082081017,"1,720.00",ALEXANDER COURT CARE HOME,CT230164710,Residential Care Homes,36188900
SHEFFIELD CITY COUNCIL,PEOPLE,14009346039,ADULT SOCIAL CARE PURCHASING,9200001,CONTINUING RESIDENTIAL CARE,02/10/2017,J2033082081017,"1,720.00",ALEXANDER COURT CARE HOME,CT230164710,Residential Care Homes,36188900
SHEFFIELD CITY COUNCIL,PEOPLE,14009346039,ADULT SOCIAL CARE PURCHASING,9210001,CONTINUING NURSING CARE,02/10/2017,J2033082081017,"1,756.00",ALEXANDER COURT CARE HOME,CT230164710,Residential Care Homes,36188900
SHEFFIELD CITY COUNCIL,PEOPLE,14009346039,ADULT SOCIAL CARE PURCHASING,9210001,CONTINUING NURSING CARE,02/10/2017,J2033082081017,"1,760.00",ALEXANDER COURT CARE HOME,CT230164710,Residential Care Homes,36188900
SHEFFIELD CITY COUNCIL,PEOPLE,14009346039,ADULT SOCIAL CARE PURCHASING,9210001,CONTINUING NURSING CARE,02/10/2017,J2033082081017,"1,760.00",ALEXANDER COURT CARE HOME,CT230164710,Residential Care Homes,36188900
SHEFFIELD CITY COUNCIL,PEOPLE,14009346039,ADULT SOCIAL CARE PURCHASING,9210001,CONTINUING NURSING CARE,02/10/2017,J2033082081017,"1,760.00",ALEXANDER COURT CARE HOME,CT230164710,Residential Care Homes,36188900
SHEFFIELD CITY COUNCIL,PEOPLE,14009346039,ADULT SOCIAL CARE PURCHASING,9210001,CONTINUING NURSING CARE,02/10/2017,J2033082081017,"1,760.00",ALEXANDER COURT CARE HOME,CT230164710,Residential Care Homes,36188900
SHEFFIELD CITY COUNCIL,PEOPLE,14009346039,ADULT SOCIAL CARE PURCHASING,9210001,CONTINUING NURSING CARE,02/10/2017,J2033082081017,"1,760.00",ALEXANDER COURT CARE HOME,CT230164710,Residential Care Homes,36188900
SHEFFIELD CITY COUNCIL,PEOPLE,14009346039,ADULT SOCIAL CARE PURCHASING,9210001,CONTINUING NURSING CARE,02/10/2017,J2033082081017,"1,760.00",ALEXANDER COURT CARE HOME,CT230164710,Residential Care Homes,36188900
SHEFFIELD CITY COUNCIL,PEOPLE,14009346039,ADULT SOCIAL CARE PURCHASING,9210001,CONTINUING NURSING CARE,02/10/2017,J2033082081017,"1,760.00",ALEXANDER COURT CARE HOME,CT230164710,Residential Care Homes,36188900
SHEFFIELD CITY COUNCIL,PEOPLE,14009346039,ADULT SOCIAL CARE PURCHASING,9210001,CONTINUING NURSING CARE,02/10/2017,J2033082081017,"1,760.00",ALEXANDER COURT CARE HOME,CT230164710,Residential Care Homes,36188900
SHEFFIELD CITY COUNCIL,PEOPLE,14009346039,ADULT SOCIAL CARE PURCHASING,9210001,CONTINUING NURSING CARE,02/10/2017,J2033082081017,"1,760.00",ALEXANDER COURT CARE HOME,CT230164710,Residential Care Homes,36188900
SHEFFIELD CITY COUNCIL,PEOPLE,14009346039,ADULT SOCIAL CARE PURCHASING,9200001,CONTINUING RESIDENTIAL CARE,02/10/2017,J2033082081017,"1,804.00",ALEXANDER COURT CARE HOME,CT230164710,Residential Care Homes,36188900
SHEFFIELD CITY COUNCIL,PEOPLE,14009346039,ADULT SOCIAL CARE PURCHASING,9200001,CONTINUING RESIDENTIAL CARE,02/10/2017,J2033082081017,"1,804.00",ALEXANDER COURT CARE HOME,CT230164710,Residential Care Homes,36188900
SHEFFIELD CITY COUNCIL,PEOPLE,14009346039,ADULT SOCIAL CARE PURCHASING,9200001,CONTINUING RESIDENTIAL CARE,02/10/2017,J2033082081017,"1,960.00",ALEXANDER COURT CARE HOME,CT230164710,Residential Care Homes,36188900
SHEFFIELD CITY COUNCIL,PEOPLE,14009346039,ADULT SOCIAL CARE PURCHASING,9210001,CONTINUING NURSING CARE,02/10/2017,J2033082081017,"2,000.00",ALEXANDER COURT CARE HOME,CT230164710,Residential Care Homes,36188900
SHEFFIELD CITY COUNCIL,PEOPLE,14009346039,ADULT SOCIAL CARE PURCHASING,9210001,CONTINUING NURSING CARE,02/10/2017,J2033082081017,"2,000.00",ALEXANDER COURT CARE HOME,CT230164710,Residential Care Homes,36188900
SHEFFIELD CITY COUNCIL,PEOPLE,14009346039,ADULT SOCIAL CARE PURCHASING,9210001,CONTINUING NURSING CARE,02/10/2017,J2033082081017,"2,160.00",ALEXANDER COURT CARE HOME,CT230164710,Residential Care Homes,36188900
SHEFFIELD CITY COUNCIL,PEOPLE,14009346039,ADULT SOCIAL CARE PURCHASING,9200001,CONTINUING RESIDENTIAL CARE,02/10/2017,J2033082081017,"5,362.29",ALEXANDER COURT CARE HOME,CT230164710,Residential Care Homes,36188900
SHEFFIELD CITY COUNCIL,PEOPLE,14009346039,ADULT SOCIAL CARE PURCHASING,9200001,CONTINUING RESIDENTIAL CARE,02/10/2017,J2033082081017,"7,800.00",ALEXANDER COURT CARE HOME,CT230164710,Residential Care Homes,36188900
SHEFFIELD CITY COUNCIL,PEOPLE,14009346039,ADULT SOCIAL CARE PURCHASING,4260008,DIRECT PAYMENTS,02/10/2017,J2041770,-103.36,IDK SUPPORT 4 YOU LTD - SUPPORT PLANNING,CT9999DIRPY,CAREFIRST DIRECT PAYMENTS,56217800
SHEFFIELD CITY COUNCIL,PEOPLE,14009346039,ADULT SOCIAL CARE PURCHASING,9190004,DIRECT PAYMENTS,02/10/2017,J2041770,336.00,IDK SUPPORT 4 YOU LTD - SUPPORT PLANNING,CT9999DIRPY,CAREFIRST DIRECT PAYMENTS,56217800
SHEFFIELD CITY COUNCIL,PEOPLE,14009346039,ADULT SOCIAL CARE PURCHASING,9190004,DIRECT PAYMENTS,02/10/2017,J2041770,"4,576.00",IDK SUPPORT 4 YOU LTD - SUPPORT PLANNING,CT9999DIRPY,CAREFIRST DIRECT PAYMENTS,56217800
SHEFFIELD CITY COUNCIL,PEOPLE,14009346039,ADULT SOCIAL CARE PURCHASING,9190004,DIRECT PAYMENTS,02/10/2017,J2041770,592.62,REDACTED PERSONAL DATA,CT9999DIRPY,CAREFIRST DIRECT PAYMENTS,54664000
SHEFFIELD CITY COUNCIL,PEOPLE,14007597334,DISABLED GRANTS,1165000,NC&A OTHER,02/10/2017,6141,"1,916.67",THYSSENKRUPP ENCASA,CT072847902,Lift Mnfrs,62780200
SHEFFIELD CITY COUNCIL,PEOPLE,14007597334,DISABLED GRANTS,1165000,NC&A OTHER,02/10/2017,6191,"2,763.70",THYSSENKRUPP ENCASA,CT072847902,Lift Mnfrs,62780200
SHEFFIELD CITY COUNCIL,PEOPLE,14007597334,DISABLED GRANTS,1165000,NC&A OTHER,02/10/2017,6188,"3,343.66",THYSSENKRUPP ENCASA,CT072847902,Lift Mnfrs,62780200
SHEFFIELD CITY COUNCIL,PEOPLE,14007597334,DISABLED GRANTS,1165000,NC&A OTHER,02/10/2017,6152,"3,399.71",THYSSENKRUPP ENCASA,CT072847902,Lift Mnfrs,62780200
SHEFFIELD CITY COUNCIL,PEOPLE,14009242034,PURCHASING LEARNING DISABILITI,9190004,DIRECT PAYMENTS,02/10/2017,J2041770,800.00,PENDERELS TRUST,CT9999DIRPY,CAREFIRST DIRECT PAYMENTS,55645400
SHEFFIELD CITY COUNCIL,PEOPLE,14009242034,PURCHASING LEARNING DISABILITI,9190004,DIRECT PAYMENTS,02/10/2017,J2041770,"1,000.00",PENDERELS TRUST,CT9999DIRPY,CAREFIRST DIRECT PAYMENTS,55645400
SHEFFIELD CITY COUNCIL,PEOPLE,14009346039,ADULT SOCIAL CARE PURCHASING,9190004,DIRECT PAYMENTS,02/10/2017,J2041770,"2,913.15",REDACTED PERSONAL DATA,CT9999DIRPY,CAREFIRST DIRECT PAYMENTS,70005200
SHEFFIELD CITY COUNCIL,PLACE,11850500000,STOCK CONTROL,8070000,STOCKS AND STORES,02/10/2017,130403,450.50,ANALAN SUPPLIES LTD,CT021019000,Cleaning Materials & Equipment,20294700
SHEFFIELD CITY COUNCIL,PLACE,11850500000,STOCK CONTROL,8070000,STOCKS AND STORES,02/10/2017,P04838626,291.75,ARNOLD LAVER & CO LTD,CT075078210,"Timber Merchants, Importers & Agents",20304500
SHEFFIELD CITY COUNCIL,PLACE,11850500000,STOCK CONTROL,8070000,STOCKS AND STORES,02/10/2017,P04838627,389.00,ARNOLD LAVER & CO LTD,CT075078210,"Timber Merchants, Importers & Agents",20304500
SHEFFIELD CITY COUNCIL,PLACE,11850500000,STOCK CONTROL,8070000,STOCKS AND STORES,02/10/2017,P04838683,789.76,ARNOLD LAVER & CO LTD,CT075078210,"Timber Merchants, Importers & Agents",20304500
SHEFFIELD CITY COUNCIL,PLACE,11850500000,STOCK CONTROL,8070000,STOCKS AND STORES,02/10/2017,P04838685,"1,100.80",ARNOLD LAVER & CO LTD,CT075078210,"Timber Merchants, Importers & Agents",20304500
SHEFFIELD CITY COUNCIL,PLACE,11850500000,STOCK CONTROL,8070000,STOCKS AND STORES,02/10/2017,P04838686,"1,400.00",ARNOLD LAVER & CO LTD,CT075078210,"Timber Merchants, Importers & Agents",20304500
SHEFFIELD CITY COUNCIL,PEOPLE,13002639143,CWD INDEPENDENT PLACEMENTS,9270008,INDEPENDENT RESIDENTIAL PMENT,02/10/2017,9000226721,"8,550.00",BARNSLEY METROPOLITAN BOROUGH COUNCIL,CT219948583,Local Government,41483907
SCR COMBINED AUTHORITY        ,LOCAL ENTERPRISE PARTNERSHIP,33074630322,GRANT FOR APPRENTICESHIPS,8440000,FEE EXPENSES,02/10/2017,4985,"1,120.00",LITTLE EINSTEINS DAY NURSERY,CT240517580,Childcare Services,64596900
SCR COMBINED AUTHORITY        ,LOCAL ENTERPRISE PARTNERSHIP,33074630322,GRANT FOR APPRENTICESHIPS,8440000,FEE EXPENSES,02/10/2017,4986,"1,120.00",LITTLE EINSTEINS DAY NURSERY,CT240517580,Childcare Services,64596900
SHEFFIELD CITY COUNCIL,PEOPLE,13002439357,SHORT BREAKS FUNDING FOR DISAB,4080000,FEES & CHARGES,02/10/2017,20,653.94,UK KIDZ,CT240517580,Childcare Services,59808400
SHEFFIELD CITY COUNCIL,PEOPLE,13002439357,SHORT BREAKS FUNDING FOR DISAB,4080000,FEES & CHARGES,02/10/2017,23,"2,781.85",UK KIDZ,CT240517580,Childcare Services,59808400
SCR COMBINED AUTHORITY        ,LOCAL ENTERPRISE PARTNERSHIP,33074630322,GRANT FOR APPRENTICESHIPS,8440000,FEE EXPENSES,02/10/2017,4990,"1,120.00",KELHAM ISLAND COMMUNITY CHILDCARE,CT240417600,Childminders,59845400
SHEFFIELD CITY COUNCIL,PEOPLE,13002439358,DISAB CHILD ACCESS CHILDCARE,9120000,OTHER AGENCIES,02/10/2017,6215,495.00,REDACTED PERSONAL DATA,CT240417600,Childminders,62147300
SHEFFIELD CITY COUNCIL,PLACE,11850400000,NON OPERATIONAL OVERHEADS,8620010,COMPUTER SOFTWARE PURCHASES,02/10/2017,INV/16859,"1,000.00",BIGCHANGE APPS LTD,CT262020365,Commercial Vehicle Component Mnfrs,62756000
SHEFFIELD CITY COUNCIL,"POLICY, PERFORMANCE AND COMMS",11800300000,COMMUNICATIONS PPC,8550002,ADVERTISING SERVICES INVOICED,02/10/2017,18348,250.00,BLIND MICE MEDIA LTD,CT060501967,Advertising - Media,55481300
SHEFFIELD CITY COUNCIL,"POLICY, PERFORMANCE AND COMMS",11800300000,COMMUNICATIONS PPC,8550002,ADVERTISING SERVICES INVOICED,02/10/2017,18269,500.00,BLIND MICE MEDIA LTD,CT060501967,Advertising - Media,55481300
SCR COMBINED AUTHORITY        ,LOCAL ENTERPRISE PARTNERSHIP,33074630322,GRANT FOR APPRENTICESHIPS,8440000,FEE EXPENSES,02/10/2017,4971,"1,120.00",CENTRE SPOT,CT039962330,"Public Houses, Bars & Inns",70019500
SHEFFIELD CITY COUNCIL,PEOPLE,13006932184,LEARN SHEFFIELD CLIENT,8440000,FEE EXPENSES,02/10/2017,915,"215,000.00",LEARN SHEFFIELD,CT090529360,Educational Services,62999800
SHEFFIELD CITY COUNCIL,PEOPLE,14007597334,DISABLED GRANTS,1165000,NC&A OTHER,02/10/2017,6186,"4,265.00",CLARK & PARTNERS LTD,CT149925800,Disability Equipment - Mnfrs & Suppliers,20392800
SHEFFIELD CITY COUNCIL,PEOPLE,14009242034,PURCHASING LEARNING DISABILITI,9180011,RESPITE,02/10/2017,J2040689240917,260.00,REDACTED PERSONAL DATA,CT230243419,Home Care Services,32920400
SHEFFIELD CITY COUNCIL,PEOPLE,14009242034,PURCHASING LEARNING DISABILITI,9180011,RESPITE,02/10/2017,J2040689240917,260.00,REDACTED PERSONAL DATA,CT230243419,Home Care Services,32920400
SHEFFIELD CITY COUNCIL,PEOPLE,14009242034,PURCHASING LEARNING DISABILITI,9180011,RESPITE,02/10/2017,J2038100240917,455.00,REDACTED PERSONAL DATA,CT230243419,Home Care Services,52112800
SHEFFIELD CITY COUNCIL,PEOPLE,14009346039,ADULT SOCIAL CARE PURCHASING,4260018,RESIDENTIAL COSTS RECOVERED,02/10/2017,J2035666081017,-429.02,DEVAGLADE LTD T/A AARON VIEW,CT230753350,Nursing Homes,48604300
SHEFFIELD CITY COUNCIL,PEOPLE,14009346039,ADULT SOCIAL CARE PURCHASING,9200001,CONTINUING RESIDENTIAL CARE,02/10/2017,J2035666081017,"1,055.86",DEVAGLADE LTD T/A AARON VIEW,CT230753350,Nursing Homes,48604300
SCR COMBINED AUTHORITY        ,LOCAL ENTERPRISE PARTNERSHIP,33074630322,GRANT FOR APPRENTICESHIPS,8440000,FEE EXPENSES,02/10/2017,4976,"1,420.00",Doncaster Plastic Fabrication Services,CT079959260,Plastic Products - Mnfrs,70021800
SHEFFIELD CITY COUNCIL,PLACE,12076922248,YOUNG DRIVER & TP LSTF MAIN,8440000,FEE EXPENSES,02/10/2017,833,350.00,EDRIVING SOLUTIONS LTD,CT090328430,Driving Schools,54067100
SHEFFIELD CITY COUNCIL,PEOPLE,14007597334,DISABLED GRANTS,1165000,NC&A OTHER,02/10/2017,6167,511.50,ELITE WETROOMS,CT079959790,Plumbers,62795800
SHEFFIELD CITY COUNCIL,PEOPLE,14032149682,NON CONTRACT TREATMENT COSTS,8060000,MATERIALS AND SUPPLIES GENERAL,02/10/2017,122438,319.60,EXCHANGE SUPPLIES LTD,CT141011584,Occupational Health,42032800
SCR COMBINED AUTHORITY        ,LOCAL ENTERPRISE PARTNERSHIP,33074630322,GRANT FOR APPRENTICESHIPS,8440000,FEE EXPENSES,02/10/2017,4937,"1,120.00",CLIFF NURSERY,CT090353120,Nursery Schools,70023700
SHEFFIELD CITY COUNCIL,PEOPLE,14032149682,NON CONTRACT TREATMENT COSTS,8060000,MATERIALS AND SUPPLIES GENERAL,02/10/2017,122440,748.76,EXCHANGE SUPPLIES LTD,CT141011584,Occupational Health,42032800
SHEFFIELD CITY COUNCIL,PLACE,11850500000,STOCK CONTROL,8060000,MATERIALS AND SUPPLIES GENERAL,02/10/2017,16522,425.30,FLAME HOLD LTD,CT072435430,Fire Protection Consultants & Engineers,64664800
SHEFFIELD CITY COUNCIL,PLACE,11850500000,STOCK CONTROL,8060000,MATERIALS AND SUPPLIES GENERAL,02/10/2017,16517,551.50,FLAME HOLD LTD,CT072435430,Fire Protection Consultants & Engineers,64664800
SHEFFIELD CITY COUNCIL,PEOPLE,14046849706,NORTH EAST,8180000,GRANTS,02/10/2017,2459,450.00,FOXHILL FORUM LTD,CT230417020,Charities & Voluntary Organisations,41373100
SHEFFIELD CITY COUNCIL,PEOPLE,14046949661,LUNCH CLUB GRANT,8180000,GRANTS,02/10/2017,6239,"1,282.00",FRIDAY FOLK LUNCH CLUB,CT230417020,Charities & Voluntary Organisations,38444700
SHEFFIELD CITY COUNCIL,PLACE,11853000000,CSSR CORE CONTRACT,8530001,SUBCONTRACTOR GENERAL,02/10/2017,88319162,252.00,GEZE UK LIMITED,CT079927410,Doors & Shutters - Sales & Installation,38738500
SHEFFIELD CITY COUNCIL,PLACE,11853000000,CSSR CORE CONTRACT,8440000,FEE EXPENSES,02/10/2017,88333496,270.00,GEZE UK LIMITED,CT079927410,Doors & Shutters - Sales & Installation,38738500
SHEFFIELD CITY COUNCIL,PEOPLE,13002639266,CIN NRTPF,9270003,CARELEAVERS ACCOMMODATION,02/10/2017,586026R,374.16,GUINNESS NORTHERN COUNTIES HOUSING,CT050144166,"Housing Associations, Societies, Trusts",50434300
SHEFFIELD CITY COUNCIL,PEOPLE,14007597334,DISABLED GRANTS,1165000,NC&A OTHER,02/10/2017,6154,"8,000.00",HARTLEY CONSTRUCTION CO,CT079911040,Builders,52750500
SHEFFIELD CITY COUNCIL,PEOPLE,14009242034,PURCHASING LEARNING DISABILITI,4260018,RESIDENTIAL COSTS RECOVERED,02/10/2017,J2018055081017,"-3,189.19",HEATHCOTES CB LLP NORTON HOUSE,CT230164710,Residential Care Homes,62025400
SHEFFIELD CITY COUNCIL,PEOPLE,14009242034,PURCHASING LEARNING DISABILITI,9200001,CONTINUING RESIDENTIAL CARE,02/10/2017,J2018055081017,"56,085.71",HEATHCOTES CB LLP NORTON HOUSE,CT230164710,Residential Care Homes,62025400
SHEFFIELD CITY COUNCIL,PEOPLE,13002039406,FOSTERING NON-PLACEMENT LAC 1,9440002,LOOKED AFTER CHILDREN,02/10/2017,HMCS001090,"2,336.40",HOLGATE MEADOWS SCHOOL,CT090167346,Schools & Colleges - Grant Maintained &,64172800
SHEFFIELD CITY COUNCIL,PEOPLE,14009346039,ADULT SOCIAL CARE PURCHASING,4260011,NURSING COSTS RECOVERED,02/10/2017,J2018033081017,-784.76,HOLMWOOD CARE HOME,CT230753350,Nursing Homes,33123800
SHEFFIELD CITY COUNCIL,PEOPLE,14009346039,ADULT SOCIAL CARE PURCHASING,4260011,NURSING COSTS RECOVERED,02/10/2017,J2018033081017,-777.80,HOLMWOOD CARE HOME,CT230753350,Nursing Homes,33123800
SHEFFIELD CITY COUNCIL,PEOPLE,14009346039,ADULT SOCIAL CARE PURCHASING,4260011,NURSING COSTS RECOVERED,02/10/2017,J2018033081017,-682.80,HOLMWOOD CARE HOME,CT230753350,Nursing Homes,33123800
SHEFFIELD CITY COUNCIL,PEOPLE,14009346039,ADULT SOCIAL CARE PURCHASING,4260011,NURSING COSTS RECOVERED,02/10/2017,J2018033081017,-659.48,HOLMWOOD CARE HOME,CT230753350,Nursing Homes,33123800
SHEFFIELD CITY COUNCIL,PEOPLE,14009346039,ADULT SOCIAL CARE PURCHASING,4260011,NURSING COSTS RECOVERED,02/10/2017,J2018033081017,-658.16,HOLMWOOD CARE HOME,CT230753350,Nursing Homes,33123800
SHEFFIELD CITY COUNCIL,PEOPLE,14009346039,ADULT SOCIAL CARE PURCHASING,4260011,NURSING COSTS RECOVERED,02/10/2017,J2018033081017,-581.88,HOLMWOOD CARE HOME,CT230753350,Nursing Homes,33123800
SHEFFIELD CITY COUNCIL,PEOPLE,14009346039,ADULT SOCIAL CARE PURCHASING,4260011,NURSING COSTS RECOVERED,02/10/2017,J2018033081017,-574.36,HOLMWOOD CARE HOME,CT230753350,Nursing Homes,33123800
SHEFFIELD CITY COUNCIL,PEOPLE,14009346039,ADULT SOCIAL CARE PURCHASING,4260011,NURSING COSTS RECOVERED,02/10/2017,J2018033081017,-538.08,HOLMWOOD CARE HOME,CT230753350,Nursing Homes,33123800
SHEFFIELD CITY COUNCIL,PEOPLE,14009346039,ADULT SOCIAL CARE PURCHASING,4260011,NURSING COSTS RECOVERED,02/10/2017,J2018033081017,-522.76,HOLMWOOD CARE HOME,CT230753350,Nursing Homes,33123800
SHEFFIELD CITY COUNCIL,PEOPLE,14009346039,ADULT SOCIAL CARE PURCHASING,4260011,NURSING COSTS RECOVERED,02/10/2017,J2018033081017,-516.72,HOLMWOOD CARE HOME,CT230753350,Nursing Homes,33123800
SHEFFIELD CITY COUNCIL,PEOPLE,14009346039,ADULT SOCIAL CARE PURCHASING,4260011,NURSING COSTS RECOVERED,02/10/2017,J2018033081017,-449.80,HOLMWOOD CARE HOME,CT230753350,Nursing Homes,33123800
SHEFFIELD CITY COUNCIL,PEOPLE,14009346039,ADULT SOCIAL CARE PURCHASING,9210001,CONTINUING NURSING CARE,02/10/2017,J2018033081017,"1,808.00",HOLMWOOD CARE HOME,CT230753350,Nursing Homes,33123800
SHEFFIELD CITY COUNCIL,PEOPLE,14009346039,ADULT SOCIAL CARE PURCHASING,9210001,CONTINUING NURSING CARE,02/10/2017,J2018033081017,"1,812.00",HOLMWOOD CARE HOME,CT230753350,Nursing Homes,33123800
SHEFFIELD CITY COUNCIL,PEOPLE,14009346039,ADULT SOCIAL CARE PURCHASING,9210001,CONTINUING NURSING CARE,02/10/2017,J2018033081017,"1,812.00",HOLMWOOD CARE HOME,CT230753350,Nursing Homes,33123800
SHEFFIELD CITY COUNCIL,PEOPLE,14009346039,ADULT SOCIAL CARE PURCHASING,9210001,CONTINUING NURSING CARE,02/10/2017,J2018033081017,"1,812.00",HOLMWOOD CARE HOME,CT230753350,Nursing Homes,33123800
SHEFFIELD CITY COUNCIL,PEOPLE,14009346039,ADULT SOCIAL CARE PURCHASING,9210001,CONTINUING NURSING CARE,02/10/2017,J2018033081017,"1,812.00",HOLMWOOD CARE HOME,CT230753350,Nursing Homes,33123800
SHEFFIELD CITY COUNCIL,PEOPLE,14009346039,ADULT SOCIAL CARE PURCHASING,9210001,CONTINUING NURSING CARE,02/10/2017,J2018033081017,"1,812.00",HOLMWOOD CARE HOME,CT230753350,Nursing Homes,33123800
SHEFFIELD CITY COUNCIL,PEOPLE,14009346039,ADULT SOCIAL CARE PURCHASING,9210001,CONTINUING NURSING CARE,02/10/2017,J2018033081017,"1,812.00",HOLMWOOD CARE HOME,CT230753350,Nursing Homes,33123800
SHEFFIELD CITY COUNCIL,PEOPLE,14009346039,ADULT SOCIAL CARE PURCHASING,9210001,CONTINUING NURSING CARE,02/10/2017,J2018033081017,"1,812.00",HOLMWOOD CARE HOME,CT230753350,Nursing Homes,33123800
SHEFFIELD CITY COUNCIL,PEOPLE,14009346039,ADULT SOCIAL CARE PURCHASING,9210001,CONTINUING NURSING CARE,02/10/2017,J2018033081017,"1,812.00",HOLMWOOD CARE HOME,CT230753350,Nursing Homes,33123800
SHEFFIELD CITY COUNCIL,PEOPLE,14009346039,ADULT SOCIAL CARE PURCHASING,9210001,CONTINUING NURSING CARE,02/10/2017,J2018033081017,"2,052.00",HOLMWOOD CARE HOME,CT230753350,Nursing Homes,33123800
SHEFFIELD CITY COUNCIL,PEOPLE,14009346039,ADULT SOCIAL CARE PURCHASING,9210001,CONTINUING NURSING CARE,02/10/2017,J2018033081017,"2,052.00",HOLMWOOD CARE HOME,CT230753350,Nursing Homes,33123800
SHEFFIELD CITY COUNCIL,PEOPLE,13005239425,TAMHS,9120000,OTHER AGENCIES,02/10/2017,433,"8,333.33",INTERCHANGE SHEFFIELD CIC,CT140222570,Counselling & Advice Services,57895000
SHEFFIELD CITY COUNCIL,PLACE,11853000000,CSSR CORE CONTRACT,8440000,FEE EXPENSES,02/10/2017,35828,365.50,MACDONALD MARTIN LTD,CT220369240,Security Services,64459800
SHEFFIELD CITY COUNCIL,PEOPLE,13009939569,COMMUNITY YOUTH TEAMS,8440000,FEE EXPENSES,02/10/2017,14820,641.25,MANOR DEVELOPMENT COMPANY LIMITED,CT130753716,Office Rental,42026200
SHEFFIELD CITY COUNCIL,PLACE,12046194516,COLLEY PARK IMPROVEMENTS,1192000,DESIGN FEES,02/10/2017,89,995.00,MET GEO ENVIRONMENTAL LTD,CT101474680,Surveyors - Land,42150600
SHEFFIELD CITY COUNCIL,PLACE,14065397456,GARAGES STRATEGY DEMOLITION,1157000,DWELLINGS MAIN CONTRACT,02/10/2017,SH04460A/17,"29,968.11",MHH CONTRACTING LTD,CT079924582,Demolition & Dismantling Contractors,20532900
SHEFFIELD CITY COUNCIL,PLACE,14065397456,GARAGES STRATEGY DEMOLITION,1157000,DWELLINGS MAIN CONTRACT,02/10/2017,SH04460A/17,"50,031.89",MHH CONTRACTING LTD,CT079924582,Demolition & Dismantling Contractors,20532900
SHEFFIELD CITY COUNCIL,PEOPLE,13002639405,SEMI INDEPENDENT LIVING,9270008,INDEPENDENT RESIDENTIAL PMENT,02/10/2017,23642,"1,899.46",NEXT STEP CARE MANAGEMENT LTD,CT249917780,Children's Homes,58658500
SHEFFIELD CITY COUNCIL,PLACE,12017722049,ENERGY -SCHEME,6150003,ELECTRICITY - INVOICE,02/10/2017,LGU49V8R,"11,243.84",NPOWER NORTHERN LTD,CT270630586,Electricity Companies,20719100
SHEFFIELD CITY COUNCIL,PLACE,12017722049,ENERGY -SCHEME,6150003,ELECTRICITY - INVOICE,02/10/2017,LGU49V8R,"25,929.44",NPOWER NORTHERN LTD,CT270630586,Electricity Companies,20719100
SHEFFIELD CITY COUNCIL,PLACE,12017722049,ENERGY -SCHEME,6150003,ELECTRICITY - INVOICE,02/10/2017,LGU49V8R,"43,299.81",NPOWER NORTHERN LTD,CT270630586,Electricity Companies,20719100
SHEFFIELD CITY COUNCIL,PLACE,14068500000,EXECUTIVE,8350000,MISCELLANEOUS EXPENSES,02/10/2017,1013124,495.33,PICKFORDS,CT025064560,Removals - Overseas,57376300
SHEFFIELD CITY COUNCIL,PLACE,11519315213,CORPORATE MAIL,8030000,EQUIPMENT MAINTENANCE CONTRACT,02/10/2017,28198243,"1,734.59",PITNEY BOWES LTD,CT024549250,Mailing Equipment,52468000
SHEFFIELD CITY COUNCIL,PLACE,14064549318,ACCOMMODATION & SUPPORT SERVS,8050000,FURNITURE PURCHASES,02/10/2017,2,"8,830.99",PYRAMID CARPETS,CT022115410,Carpets & Rugs - Retail,20897501
SHEFFIELD CITY COUNCIL,PLACE,12018024405,COMMERCIAL ESTATE,8420000,ADVERTISING AND PUBLICITY,02/10/2017,DSINV00139888,"4,950.00",REED BUSINESS INFORMATION LIMITED,CT180162450,Publishers,35005300
SHEFFIELD CITY COUNCIL,PEOPLE,13002639405,SEMI INDEPENDENT LIVING,9270008,INDEPENDENT RESIDENTIAL PMENT,02/10/2017,1561,420.67,ROUNDABOUT LTD,CT010143900,Hostels,48314701
SHEFFIELD CITY COUNCIL,PEOPLE,13002639405,SEMI INDEPENDENT LIVING,9270008,INDEPENDENT RESIDENTIAL PMENT,02/10/2017,1493,751.15,ROUNDABOUT LTD,CT010143900,Hostels,48314701
SHEFFIELD CITY COUNCIL,PLACE,11850000000,RESPONSIVE REPAIRS,8060000,MATERIALS AND SUPPLIES GENERAL,02/10/2017,F6515,257.06,SBP LIMITED - WREKIN WINDOWS,CT071984730,Window Frame Mnfrs,64471300
SHEFFIELD CITY COUNCIL,PLACE,11850000000,RESPONSIVE REPAIRS,8060000,MATERIALS AND SUPPLIES GENERAL,02/10/2017,F6501,312.20,SBP LIMITED - WREKIN WINDOWS,CT071984730,Window Frame Mnfrs,64471300
SHEFFIELD CITY COUNCIL,PLACE,11850000000,RESPONSIVE REPAIRS,8060000,MATERIALS AND SUPPLIES GENERAL,02/10/2017,F6519,317.36,SBP LIMITED - WREKIN WINDOWS,CT071984730,Window Frame Mnfrs,64471300
SHEFFIELD CITY COUNCIL,PLACE,11850000000,RESPONSIVE REPAIRS,8060000,MATERIALS AND SUPPLIES GENERAL,02/10/2017,F6494,318.31,SBP LIMITED - WREKIN WINDOWS,CT071984730,Window Frame Mnfrs,64471300
SHEFFIELD CITY COUNCIL,PLACE,11850000000,RESPONSIVE REPAIRS,8060000,MATERIALS AND SUPPLIES GENERAL,02/10/2017,F6517,353.16,SBP LIMITED - WREKIN WINDOWS,CT071984730,Window Frame Mnfrs,64471300
SHEFFIELD CITY COUNCIL,PLACE,11850000000,RESPONSIVE REPAIRS,8060000,MATERIALS AND SUPPLIES GENERAL,02/10/2017,F6520,356.71,SBP LIMITED - WREKIN WINDOWS,CT071984730,Window Frame Mnfrs,64471300
SHEFFIELD CITY COUNCIL,PLACE,11850000000,RESPONSIVE REPAIRS,8060000,MATERIALS AND SUPPLIES GENERAL,02/10/2017,F6521,358.95,SBP LIMITED - WREKIN WINDOWS,CT071984730,Window Frame Mnfrs,64471300
SHEFFIELD CITY COUNCIL,PLACE,11850000000,RESPONSIVE REPAIRS,8060000,MATERIALS AND SUPPLIES GENERAL,02/10/2017,F6516,388.99,SBP LIMITED - WREKIN WINDOWS,CT071984730,Window Frame Mnfrs,64471300
SHEFFIELD CITY COUNCIL,PLACE,11850000000,RESPONSIVE REPAIRS,8060000,MATERIALS AND SUPPLIES GENERAL,02/10/2017,F6491,415.03,SBP LIMITED - WREKIN WINDOWS,CT071984730,Window Frame Mnfrs,64471300
SHEFFIELD CITY COUNCIL,PLACE,11850000000,RESPONSIVE REPAIRS,8060000,MATERIALS AND SUPPLIES GENERAL,02/10/2017,F6489,568.90,SBP LIMITED - WREKIN WINDOWS,CT071984730,Window Frame Mnfrs,64471300
SHEFFIELD CITY COUNCIL,PLACE,11850000000,RESPONSIVE REPAIRS,8060000,MATERIALS AND SUPPLIES GENERAL,02/10/2017,228964,360.91,SBP LTD - PERMADOOR,CT079927253,Door Manufacturers - Industrial,64471500
SHEFFIELD CITY COUNCIL,PLACE,11850000000,RESPONSIVE REPAIRS,8060000,MATERIALS AND SUPPLIES GENERAL,02/10/2017,228963,368.09,SBP LTD - PERMADOOR,CT079927253,Door Manufacturers - Industrial,64471500
SHEFFIELD CITY COUNCIL,PLACE,11850000000,RESPONSIVE REPAIRS,8060000,MATERIALS AND SUPPLIES GENERAL,02/10/2017,228960,369.00,SBP LTD - PERMADOOR,CT079927253,Door Manufacturers - Industrial,64471500
SHEFFIELD CITY COUNCIL,PLACE,11850200000,VOIDS REPAIRS,8060000,MATERIALS AND SUPPLIES GENERAL,02/10/2017,229246,373.24,SBP LTD - PERMADOOR,CT079927253,Door Manufacturers - Industrial,64471500
SHEFFIELD CITY COUNCIL,PLACE,11850000000,RESPONSIVE REPAIRS,8060000,MATERIALS AND SUPPLIES GENERAL,02/10/2017,228970,392.00,SBP LTD - PERMADOOR,CT079927253,Door Manufacturers - Industrial,64471500
SHEFFIELD CITY COUNCIL,PLACE,11850000000,RESPONSIVE REPAIRS,8060000,MATERIALS AND SUPPLIES GENERAL,02/10/2017,228965,394.00,SBP LTD - PERMADOOR,CT079927253,Door Manufacturers - Industrial,64471500
SHEFFIELD CITY COUNCIL,PLACE,11850000000,RESPONSIVE REPAIRS,8060000,MATERIALS AND SUPPLIES GENERAL,02/10/2017,228962,404.00,SBP LTD - PERMADOOR,CT079927253,Door Manufacturers - Industrial,64471500
SHEFFIELD CITY COUNCIL,PLACE,11850000000,RESPONSIVE REPAIRS,8060000,MATERIALS AND SUPPLIES GENERAL,02/10/2017,228961,433.00,SBP LTD - PERMADOOR,CT079927253,Door Manufacturers - Industrial,64471500
SHEFFIELD CITY COUNCIL,PLACE,11850000000,RESPONSIVE REPAIRS,8060000,MATERIALS AND SUPPLIES GENERAL,02/10/2017,228966,470.00,SBP LTD - PERMADOOR,CT079927253,Door Manufacturers - Industrial,64471500
SHEFFIELD CITY COUNCIL,PLACE,11850000000,RESPONSIVE REPAIRS,8060000,MATERIALS AND SUPPLIES GENERAL,02/10/2017,228969,471.00,SBP LTD - PERMADOOR,CT079927253,Door Manufacturers - Industrial,64471500
SHEFFIELD CITY COUNCIL,PLACE,11850000000,RESPONSIVE REPAIRS,8060000,MATERIALS AND SUPPLIES GENERAL,02/10/2017,228967,486.00,SBP LTD - PERMADOOR,CT079927253,Door Manufacturers - Industrial,64471500
SHEFFIELD CITY COUNCIL,PLACE,11850200000,VOIDS REPAIRS,8060000,MATERIALS AND SUPPLIES GENERAL,02/10/2017,229247,487.00,SBP LTD - PERMADOOR,CT079927253,Door Manufacturers - Industrial,64471500
SHEFFIELD CITY COUNCIL,PLACE,11850000000,RESPONSIVE REPAIRS,8060000,MATERIALS AND SUPPLIES GENERAL,02/10/2017,228968,501.00,SBP LTD - PERMADOOR,CT079927253,Door Manufacturers - Industrial,64471500
SHEFFIELD CITY COUNCIL,PLACE,11850200000,VOIDS REPAIRS,8060000,MATERIALS AND SUPPLIES GENERAL,02/10/2017,229253,538.58,SBP LTD - PERMADOOR,CT079927253,Door Manufacturers - Industrial,64471500
SHEFFIELD CITY COUNCIL,PLACE,11850200000,VOIDS REPAIRS,8060000,MATERIALS AND SUPPLIES GENERAL,02/10/2017,229241,739.86,SBP LTD - PERMADOOR,CT079927253,Door Manufacturers - Industrial,64471500
SHEFFIELD CITY COUNCIL,PLACE,14065397418,PITCHED ROOFING & ROOFLINE,1165000,NC&A OTHER,02/10/2017,76769,"12,510.89",SIG TRADING LTD,CT079965460,ROOFING MATERIALS,48654000
SHEFFIELD CITY COUNCIL,PLACE,14065397418,PITCHED ROOFING & ROOFLINE,1165000,NC&A OTHER,02/10/2017,76652,"26,267.06",SIG TRADING LTD,CT079965460,ROOFING MATERIALS,48654000
SHEFFIELD CITY COUNCIL,PEOPLE,14009346039,ADULT SOCIAL CARE PURCHASING,9210001,CONTINUING NURSING CARE,02/10/2017,J2018075081017,"6,090.00",STOCKSBRIDGE NEURO REHAB,CT230753350,Nursing Homes,38702800
SHEFFIELD CITY COUNCIL,PEOPLE,13008832077,GATEWAY 6,7140000,PUBLIC TRANSPORT COSTS,02/10/2017,SL0072832,900.00,SYPTE,CT250211780,Bus & Coach Operators & Stations,20875700
SHEFFIELD CITY COUNCIL,PEOPLE,13002339238,WEST SA - CIN S17,9270011,PAYMENTS TO RELATIVES/FRIENDS,02/10/2017,342208,"1,359.60",TAYLOR & EMMET SOLICITORS,CT190372460,Solicitors,38054300
SHEFFIELD CITY COUNCIL,PLACE,11853000000,CSSR CORE CONTRACT,8440000,FEE EXPENSES,02/10/2017,99477,465.65,VERISERV LIMITED,CT074930350,Electrical Testing & Inspecting,64466100
SHEFFIELD CITY COUNCIL,PEOPLE,13002239077,NORTH SA - LAC,9280000,CONTACT,02/10/2017,WSE00526,520.00,WELCARE SECURE ESCORTS LTD,CT261851180,Mini Buses - Hire & Leasing,59985500
SHEFFIELD CITY COUNCIL,PEOPLE,13005832119,INCLUSION,8440000,FEE EXPENSES,02/10/2017,717,"6,192.00",COMMUNITY TRAINING SERVICES LIMITED,CT160979980,Training Services,53276900
SHEFFIELD CITY COUNCIL,PEOPLE,14009242034,PURCHASING LEARNING DISABILITI,9190004,DIRECT PAYMENTS,02/10/2017,J2041770,"22,924.44",PEOPLEPLUS GROUP LIMITED,CT160979980,Training Services,54756700
SHEFFIELD CITY COUNCIL,PEOPLE,14009242034,PURCHASING LEARNING DISABILITI,9250002,INDEPENDENT DAY CARE,02/10/2017,5912,384.00,WORK LTD,CT160979980,Training Services,35008900
SCR COMBINED AUTHORITY        ,LOCAL ENTERPRISE PARTNERSHIP,33074630322,GRANT FOR APPRENTICESHIPS,8440000,FEE EXPENSES,02/10/2017,4972,"1,120.00",WRS (WHITE ROSE SECURITY),CT220469175,Security Equipment,63975100
SHEFFIELD CITY COUNCIL,PEOPLE,13002639028,SPECIAL GUARDIANSHIP,9270013,RESIDENCE ORDERS,03/10/2017,1.92E+18,359.80,REDACTED PERSONAL DATA,CT240201880,Adoption & Fostering,49257200
SHEFFIELD CITY COUNCIL,PEOPLE,13002639028,SPECIAL GUARDIANSHIP,9270013,RESIDENCE ORDERS,03/10/2017,1.92E+18,359.80,REDACTED PERSONAL DATA,CT240201880,Adoption & Fostering,49257200
SHEFFIELD CITY COUNCIL,PEOPLE,13002639028,SPECIAL GUARDIANSHIP,9270013,RESIDENCE ORDERS,03/10/2017,1.92E+18,359.80,REDACTED PERSONAL DATA,CT240201880,Adoption & Fostering,49257200
SHEFFIELD CITY COUNCIL,PEOPLE,13002639028,SPECIAL GUARDIANSHIP,9270013,RESIDENCE ORDERS,03/10/2017,1.92E+18,359.80,REDACTED PERSONAL DATA,CT240201880,Adoption & Fostering,49257200
SHEFFIELD CITY COUNCIL,PEOPLE,13002639302,IN HOUSE FOSTER PLACEMENT,9270007,IN-HOUSE FOSTERING,03/10/2017,4.82E+18,-30.00,REDACTED PERSONAL DATA,CT240201880,Adoption & Fostering,62759400
SHEFFIELD CITY COUNCIL,PEOPLE,13002639302,IN HOUSE FOSTER PLACEMENT,9270007,IN-HOUSE FOSTERING,03/10/2017,4.82E+18,-30.00,REDACTED PERSONAL DATA,CT240201880,Adoption & Fostering,62759400
SHEFFIELD CITY COUNCIL,PEOPLE,13002639302,IN HOUSE FOSTER PLACEMENT,9270007,IN-HOUSE FOSTERING,03/10/2017,6.55E+17,-161.14,REDACTED PERSONAL DATA,CT240201880,Adoption & Fostering,33300500
SHEFFIELD CITY COUNCIL,PEOPLE,13002039409,STAYING PUT,9270007,IN-HOUSE FOSTERING,03/10/2017,1.80E+18,400.96,REDACTED PERSONAL DATA,CT240201880,Adoption & Fostering,51141200
SHEFFIELD CITY COUNCIL,PEOPLE,13002039409,STAYING PUT,9270007,IN-HOUSE FOSTERING,03/10/2017,1.80E+18,400.96,REDACTED PERSONAL DATA,CT240201880,Adoption & Fostering,51141200
SHEFFIELD CITY COUNCIL,PEOPLE,13002639302,IN HOUSE FOSTER PLACEMENT,9270007,IN-HOUSE FOSTERING,03/10/2017,9.35E+17,310.00,REDACTED PERSONAL DATA,CT240201880,Adoption & Fostering,32919200
SHEFFIELD CITY COUNCIL,PEOPLE,13002039409,STAYING PUT,9270007,IN-HOUSE FOSTERING,03/10/2017,2.05E+18,420.00,REDACTED PERSONAL DATA,CT240201880,Adoption & Fostering,58457300
SHEFFIELD CITY COUNCIL,PEOPLE,13002039409,STAYING PUT,9270007,IN-HOUSE FOSTERING,03/10/2017,2.05E+18,420.00,REDACTED PERSONAL DATA,CT240201880,Adoption & Fostering,58457300
SHEFFIELD CITY COUNCIL,PEOPLE,13002639302,IN HOUSE FOSTER PLACEMENT,9270007,IN-HOUSE FOSTERING,03/10/2017,6.98E+17,-21.00,REDACTED PERSONAL DATA,CT240201880,Adoption & Fostering,32816200
SHEFFIELD CITY COUNCIL,PEOPLE,13002639302,IN HOUSE FOSTER PLACEMENT,9270007,IN-HOUSE FOSTERING,03/10/2017,6.98E+17,-16.00,REDACTED PERSONAL DATA,CT240201880,Adoption & Fostering,32816200
SHEFFIELD CITY COUNCIL,PEOPLE,13002639302,IN HOUSE FOSTER PLACEMENT,9270007,IN-HOUSE FOSTERING,03/10/2017,1.84E+17,-5.00,REDACTED PERSONAL DATA,CT240201880,Adoption & Fostering,33362400
SHEFFIELD CITY COUNCIL,PEOPLE,13002639302,IN HOUSE FOSTER PLACEMENT,9270007,IN-HOUSE FOSTERING,03/10/2017,1.84E+17,-5.00,REDACTED PERSONAL DATA,CT240201880,Adoption & Fostering,33362400
SHEFFIELD CITY COUNCIL,PEOPLE,13002639302,IN HOUSE FOSTER PLACEMENT,9270007,IN-HOUSE FOSTERING,03/10/2017,1.21E+18,-10.00,REDACTED PERSONAL DATA,CT240201880,Adoption & Fostering,45323900
SHEFFIELD CITY COUNCIL,PEOPLE,13002639302,IN HOUSE FOSTER PLACEMENT,9270007,IN-HOUSE FOSTERING,03/10/2017,1.21E+18,-10.00,REDACTED PERSONAL DATA,CT240201880,Adoption & Fostering,45323900
SHEFFIELD CITY COUNCIL,PEOPLE,13002639302,IN HOUSE FOSTER PLACEMENT,9270007,IN-HOUSE FOSTERING,03/10/2017,1.21E+18,-10.00,REDACTED PERSONAL DATA,CT240201880,Adoption & Fostering,45323900
SHEFFIELD CITY COUNCIL,PEOPLE,13002639302,IN HOUSE FOSTER PLACEMENT,9270007,IN-HOUSE FOSTERING,03/10/2017,1.21E+18,-10.00,REDACTED PERSONAL DATA,CT240201880,Adoption & Fostering,45323900
SHEFFIELD CITY COUNCIL,PEOPLE,13002639030,ADOPTION ALLOWANCES,9270001,ADOPTION ALLOWANCES,03/10/2017,4.60E+18,286.50,REDACTED PERSONAL DATA,CT240201880,Adoption & Fostering,57621400
SHEFFIELD CITY COUNCIL,PEOPLE,13002639030,ADOPTION ALLOWANCES,9270001,ADOPTION ALLOWANCES,03/10/2017,4.60E+18,286.50,REDACTED PERSONAL DATA,CT240201880,Adoption & Fostering,57621400
SHEFFIELD CITY COUNCIL,PEOPLE,13002639027,RO's & CAO's,9270013,RESIDENCE ORDERS,03/10/2017,5.57E+18,-20.00,REDACTED PERSONAL DATA,CT240201880,Adoption & Fostering,58374900
SHEFFIELD CITY COUNCIL,PEOPLE,13002639284,IFA's UNDER 16,9270009,INDEPENDENT FOSTERING,03/10/2017,203966,"1,325.94",FOSTERING SOLUTIONS LTD,CT240201880,Adoption & Fostering,34483000
SHEFFIELD CITY COUNCIL,PEOPLE,13002639284,IFA's UNDER 16,9270009,INDEPENDENT FOSTERING,03/10/2017,203965,"1,472.84",FOSTERING SOLUTIONS LTD,CT240201880,Adoption & Fostering,34483000
SHEFFIELD CITY COUNCIL,PEOPLE,13002639302,IN HOUSE FOSTER PLACEMENT,9270007,IN-HOUSE FOSTERING,03/10/2017,8.41E+17,266.00,REDACTED PERSONAL DATA,CT240201880,Adoption & Fostering,32815200
SHEFFIELD CITY COUNCIL,PEOPLE,13002639028,SPECIAL GUARDIANSHIP,9270013,RESIDENCE ORDERS,03/10/2017,1.96E+17,288.98,REDACTED PERSONAL DATA,CT240201880,Adoption & Fostering,33314700
SHEFFIELD CITY COUNCIL,PEOPLE,13002639028,SPECIAL GUARDIANSHIP,9270013,RESIDENCE ORDERS,03/10/2017,1.96E+17,288.98,REDACTED PERSONAL DATA,CT240201880,Adoption & Fostering,33314700
SHEFFIELD CITY COUNCIL,PEOPLE,13002639030,ADOPTION ALLOWANCES,9270001,ADOPTION ALLOWANCES,03/10/2017,1.47E+18,357.00,REDACTED PERSONAL DATA,CT240201880,Adoption & Fostering,44342100
SHEFFIELD CITY COUNCIL,PEOPLE,13002639030,ADOPTION ALLOWANCES,9270001,ADOPTION ALLOWANCES,03/10/2017,1.47E+18,357.00,REDACTED PERSONAL DATA,CT240201880,Adoption & Fostering,44342100
SHEFFIELD CITY COUNCIL,PEOPLE,13002639302,IN HOUSE FOSTER PLACEMENT,9270007,IN-HOUSE FOSTERING,03/10/2017,1.49E+18,-2.00,REDACTED PERSONAL DATA,CT240201880,Adoption & Fostering,45395700
SHEFFIELD CITY COUNCIL,PEOPLE,13002639302,IN HOUSE FOSTER PLACEMENT,9270007,IN-HOUSE FOSTERING,03/10/2017,1.49E+18,-2.00,REDACTED PERSONAL DATA,CT240201880,Adoption & Fostering,45395700
SHEFFIELD CITY COUNCIL,PEOPLE,13002639302,IN HOUSE FOSTER PLACEMENT,9270007,IN-HOUSE FOSTERING,03/10/2017,1.49E+18,-2.00,REDACTED PERSONAL DATA,CT240201880,Adoption & Fostering,45395700
SHEFFIELD CITY COUNCIL,PEOPLE,13002639302,IN HOUSE FOSTER PLACEMENT,9270007,IN-HOUSE FOSTERING,03/10/2017,1.49E+18,-2.00,REDACTED PERSONAL DATA,CT240201880,Adoption & Fostering,45395700
SHEFFIELD CITY COUNCIL,PEOPLE,13002639302,IN HOUSE FOSTER PLACEMENT,9270007,IN-HOUSE FOSTERING,03/10/2017,1.49E+18,-1.00,REDACTED PERSONAL DATA,CT240201880,Adoption & Fostering,45395700
SHEFFIELD CITY COUNCIL,PEOPLE,13002639302,IN HOUSE FOSTER PLACEMENT,9270007,IN-HOUSE FOSTERING,03/10/2017,1.49E+18,-1.00,REDACTED PERSONAL DATA,CT240201880,Adoption & Fostering,45395700
SHEFFIELD CITY COUNCIL,PEOPLE,13002639302,IN HOUSE FOSTER PLACEMENT,9270007,IN-HOUSE FOSTERING,03/10/2017,8.43E+17,-90.35,REDACTED PERSONAL DATA,CT240201880,Adoption & Fostering,33306000
SHEFFIELD CITY COUNCIL,PEOPLE,13002639302,IN HOUSE FOSTER PLACEMENT,9270007,IN-HOUSE FOSTERING,03/10/2017,1.60E+18,-7.86,REDACTED PERSONAL DATA,CT240201880,Adoption & Fostering,45906100
SHEFFIELD CITY COUNCIL,PEOPLE,13002639302,IN HOUSE FOSTER PLACEMENT,9270007,IN-HOUSE FOSTERING,03/10/2017,1.60E+18,-5.29,REDACTED PERSONAL DATA,CT240201880,Adoption & Fostering,45906100
SHEFFIELD CITY COUNCIL,PEOPLE,13002639302,IN HOUSE FOSTER PLACEMENT,9270007,IN-HOUSE FOSTERING,03/10/2017,2.35E+18,412.00,REDACTED PERSONAL DATA,CT240201880,Adoption & Fostering,53087600
SHEFFIELD CITY COUNCIL,PEOPLE,13002639028,SPECIAL GUARDIANSHIP,9270013,RESIDENCE ORDERS,03/10/2017,3.61E+18,679.30,REDACTED PERSONAL DATA,CT240201880,Adoption & Fostering,70001800
SHEFFIELD CITY COUNCIL,PEOPLE,13002639028,SPECIAL GUARDIANSHIP,9270013,RESIDENCE ORDERS,03/10/2017,3.61E+18,679.30,REDACTED PERSONAL DATA,CT240201880,Adoption & Fostering,70001800
SHEFFIELD CITY COUNCIL,PEOPLE,13002639030,ADOPTION ALLOWANCES,9270001,ADOPTION ALLOWANCES,03/10/2017,3.33E+18,349.00,REDACTED PERSONAL DATA,CT240201880,Adoption & Fostering,55639200
SHEFFIELD CITY COUNCIL,PEOPLE,13002639030,ADOPTION ALLOWANCES,9270001,ADOPTION ALLOWANCES,03/10/2017,3.33E+18,349.00,REDACTED PERSONAL DATA,CT240201880,Adoption & Fostering,55639200
SHEFFIELD CITY COUNCIL,PEOPLE,13002639302,IN HOUSE FOSTER PLACEMENT,9270007,IN-HOUSE FOSTERING,03/10/2017,1.67E+18,-50.00,REDACTED PERSONAL DATA,CT240201880,Adoption & Fostering,42479100
SHEFFIELD CITY COUNCIL,PEOPLE,13002639302,IN HOUSE FOSTER PLACEMENT,9270007,IN-HOUSE FOSTERING,03/10/2017,1.67E+18,-50.00,REDACTED PERSONAL DATA,CT240201880,Adoption & Fostering,42479100
SHEFFIELD CITY COUNCIL,PEOPLE,13002039409,STAYING PUT,9270007,IN-HOUSE FOSTERING,03/10/2017,8.81E+17,420.98,REDACTED PERSONAL DATA,CT240201880,Adoption & Fostering,58658400
SHEFFIELD CITY COUNCIL,PEOPLE,13002039409,STAYING PUT,9270007,IN-HOUSE FOSTERING,03/10/2017,8.81E+17,420.98,REDACTED PERSONAL DATA,CT240201880,Adoption & Fostering,58658400
SHEFFIELD CITY COUNCIL,PEOPLE,13002639302,IN HOUSE FOSTER PLACEMENT,9270007,IN-HOUSE FOSTERING,03/10/2017,2.70E+18,-10.00,REDACTED PERSONAL DATA,CT240201880,Adoption & Fostering,53708900
SHEFFIELD CITY COUNCIL,PEOPLE,13002639302,IN HOUSE FOSTER PLACEMENT,9270007,IN-HOUSE FOSTERING,03/10/2017,2.70E+18,-10.00,REDACTED PERSONAL DATA,CT240201880,Adoption & Fostering,53708900
SHEFFIELD CITY COUNCIL,PEOPLE,13002039409,STAYING PUT,9270007,IN-HOUSE FOSTERING,03/10/2017,8.11E+18,503.37,REDACTED PERSONAL DATA,CT240201880,Adoption & Fostering,59121500
SHEFFIELD CITY COUNCIL,PEOPLE,13002039409,STAYING PUT,9270007,IN-HOUSE FOSTERING,03/10/2017,8.11E+18,503.37,REDACTED PERSONAL DATA,CT240201880,Adoption & Fostering,59121500
SHEFFIELD CITY COUNCIL,PEOPLE,13002639030,ADOPTION ALLOWANCES,9270001,ADOPTION ALLOWANCES,03/10/2017,5.12E+18,"1,267.72",REDACTED PERSONAL DATA,CT240201880,Adoption & Fostering,57344500
SHEFFIELD CITY COUNCIL,PEOPLE,13002639030,ADOPTION ALLOWANCES,9270001,ADOPTION ALLOWANCES,03/10/2017,5.12E+18,"1,267.72",REDACTED PERSONAL DATA,CT240201880,Adoption & Fostering,57344500
SHEFFIELD CITY COUNCIL,PEOPLE,13002639302,IN HOUSE FOSTER PLACEMENT,9270007,IN-HOUSE FOSTERING,03/10/2017,2.25E+18,-5.00,REDACTED PERSONAL DATA,CT240201880,Adoption & Fostering,52145500
SHEFFIELD CITY COUNCIL,PEOPLE,13002639302,IN HOUSE FOSTER PLACEMENT,9270007,IN-HOUSE FOSTERING,03/10/2017,2.25E+18,-4.00,REDACTED PERSONAL DATA,CT240201880,Adoption & Fostering,52145500
SHEFFIELD CITY COUNCIL,PEOPLE,13002639302,IN HOUSE FOSTER PLACEMENT,9270007,IN-HOUSE FOSTERING,03/10/2017,2.25E+18,-3.71,REDACTED PERSONAL DATA,CT240201880,Adoption & Fostering,52145500
SHEFFIELD CITY COUNCIL,PEOPLE,13002639302,IN HOUSE FOSTER PLACEMENT,9270007,IN-HOUSE FOSTERING,03/10/2017,2.25E+18,-3.00,REDACTED PERSONAL DATA,CT240201880,Adoption & Fostering,52145500
SHEFFIELD CITY COUNCIL,PEOPLE,13002639302,IN HOUSE FOSTER PLACEMENT,9270007,IN-HOUSE FOSTERING,03/10/2017,2.25E+18,-3.00,REDACTED PERSONAL DATA,CT240201880,Adoption & Fostering,52145500
SHEFFIELD CITY COUNCIL,PEOPLE,13002639302,IN HOUSE FOSTER PLACEMENT,9270007,IN-HOUSE FOSTERING,03/10/2017,2.25E+18,-3.00,REDACTED PERSONAL DATA,CT240201880,Adoption & Fostering,52145500
SHEFFIELD CITY COUNCIL,PEOPLE,13002639302,IN HOUSE FOSTER PLACEMENT,9270007,IN-HOUSE FOSTERING,03/10/2017,2.25E+18,-2.00,REDACTED PERSONAL DATA,CT240201880,Adoption & Fostering,52145500
SHEFFIELD CITY COUNCIL,PEOPLE,13002639302,IN HOUSE FOSTER PLACEMENT,9270007,IN-HOUSE FOSTERING,03/10/2017,2.25E+18,-2.00,REDACTED PERSONAL DATA,CT240201880,Adoption & Fostering,52145500
SHEFFIELD CITY COUNCIL,PEOPLE,13002639302,IN HOUSE FOSTER PLACEMENT,9270007,IN-HOUSE FOSTERING,03/10/2017,2.25E+18,-2.00,REDACTED PERSONAL DATA,CT240201880,Adoption & Fostering,52145500
SHEFFIELD CITY COUNCIL,PEOPLE,13002639302,IN HOUSE FOSTER PLACEMENT,9270007,IN-HOUSE FOSTERING,03/10/2017,2.25E+18,-2.00,REDACTED PERSONAL DATA,CT240201880,Adoption & Fostering,52145500
SHEFFIELD CITY COUNCIL,PEOPLE,13002639302,IN HOUSE FOSTER PLACEMENT,9270007,IN-HOUSE FOSTERING,03/10/2017,2.25E+18,-2.00,REDACTED PERSONAL DATA,CT240201880,Adoption & Fostering,52145500
SHEFFIELD CITY COUNCIL,PEOPLE,13002639302,IN HOUSE FOSTER PLACEMENT,9270007,IN-HOUSE FOSTERING,03/10/2017,2.25E+18,-2.00,REDACTED PERSONAL DATA,CT240201880,Adoption & Fostering,52145500
SHEFFIELD CITY COUNCIL,PEOPLE,13002639302,IN HOUSE FOSTER PLACEMENT,9270007,IN-HOUSE FOSTERING,03/10/2017,2.25E+18,-2.00,REDACTED PERSONAL DATA,CT240201880,Adoption & Fostering,52145500
SHEFFIELD CITY COUNCIL,PEOPLE,13002639028,SPECIAL GUARDIANSHIP,9270013,RESIDENCE ORDERS,03/10/2017,3.06E+18,294.04,REDACTED PERSONAL DATA,CT240201880,Adoption & Fostering,59564800
SHEFFIELD CITY COUNCIL,PEOPLE,13002639028,SPECIAL GUARDIANSHIP,9270013,RESIDENCE ORDERS,03/10/2017,3.06E+18,294.04,REDACTED PERSONAL DATA,CT240201880,Adoption & Fostering,59564800
SHEFFIELD CITY COUNCIL,PEOPLE,13002639302,IN HOUSE FOSTER PLACEMENT,9270007,IN-HOUSE FOSTERING,03/10/2017,2.53E+18,-276.00,REDACTED PERSONAL DATA,CT240201880,Adoption & Fostering,54777300
SHEFFIELD CITY COUNCIL,PEOPLE,13002039409,STAYING PUT,9270007,IN-HOUSE FOSTERING,03/10/2017,6.49E+18,463.40,REDACTED PERSONAL DATA,CT240201880,Adoption & Fostering,59226900
SHEFFIELD CITY COUNCIL,PEOPLE,13002039409,STAYING PUT,9270007,IN-HOUSE FOSTERING,03/10/2017,6.49E+18,463.40,REDACTED PERSONAL DATA,CT240201880,Adoption & Fostering,59226900
SHEFFIELD CITY COUNCIL,PEOPLE,13002639028,SPECIAL GUARDIANSHIP,9270013,RESIDENCE ORDERS,03/10/2017,2.15E+18,-80.00,REDACTED PERSONAL DATA,CT240201880,Adoption & Fostering,47747200
SHEFFIELD CITY COUNCIL,PEOPLE,13002639302,IN HOUSE FOSTER PLACEMENT,9270007,IN-HOUSE FOSTERING,03/10/2017,1.51E+18,-261.85,REDACTED PERSONAL DATA,CT240201880,Adoption & Fostering,44247300
SHEFFIELD CITY COUNCIL,PEOPLE,13002639027,RO's & CAO's,9270013,RESIDENCE ORDERS,03/10/2017,1.84E+18,256.98,REDACTED PERSONAL DATA,CT240201880,Adoption & Fostering,45520700
SHEFFIELD CITY COUNCIL,PEOPLE,13002639027,RO's & CAO's,9270013,RESIDENCE ORDERS,03/10/2017,1.84E+18,256.98,REDACTED PERSONAL DATA,CT240201880,Adoption & Fostering,45520700
SHEFFIELD CITY COUNCIL,PEOPLE,13002639028,SPECIAL GUARDIANSHIP,9270013,RESIDENCE ORDERS,03/10/2017,2.08E+17,298.50,REDACTED PERSONAL DATA,CT240201880,Adoption & Fostering,33383000
SHEFFIELD CITY COUNCIL,PEOPLE,13002639028,SPECIAL GUARDIANSHIP,9270013,RESIDENCE ORDERS,03/10/2017,2.08E+17,298.50,REDACTED PERSONAL DATA,CT240201880,Adoption & Fostering,33383000
SHEFFIELD CITY COUNCIL,PEOPLE,13002639302,IN HOUSE FOSTER PLACEMENT,9270007,IN-HOUSE FOSTERING,03/10/2017,1.93E+17,-46.00,REDACTED PERSONAL DATA,CT240201880,Adoption & Fostering,33285200
SHEFFIELD CITY COUNCIL,PEOPLE,13002639302,IN HOUSE FOSTER PLACEMENT,9270007,IN-HOUSE FOSTERING,03/10/2017,8.19E+17,-11.00,REDACTED PERSONAL DATA,CT240201880,Adoption & Fostering,33877800
SHEFFIELD CITY COUNCIL,PEOPLE,13002639302,IN HOUSE FOSTER PLACEMENT,9270007,IN-HOUSE FOSTERING,03/10/2017,2.42E+17,-5.71,REDACTED PERSONAL DATA,CT240201880,Adoption & Fostering,33343500
SHEFFIELD CITY COUNCIL,PEOPLE,13002639302,IN HOUSE FOSTER PLACEMENT,9270007,IN-HOUSE FOSTERING,03/10/2017,2.42E+17,-4.57,REDACTED PERSONAL DATA,CT240201880,Adoption & Fostering,33343500
SHEFFIELD CITY COUNCIL,PEOPLE,13002639302,IN HOUSE FOSTER PLACEMENT,9270007,IN-HOUSE FOSTERING,03/10/2017,2.42E+17,-4.57,REDACTED PERSONAL DATA,CT240201880,Adoption & Fostering,33343500
SHEFFIELD CITY COUNCIL,PEOPLE,13002639302,IN HOUSE FOSTER PLACEMENT,9270007,IN-HOUSE FOSTERING,03/10/2017,2.42E+17,-2.29,REDACTED PERSONAL DATA,CT240201880,Adoption & Fostering,33343500
SHEFFIELD CITY COUNCIL,PEOPLE,13002639302,IN HOUSE FOSTER PLACEMENT,9270007,IN-HOUSE FOSTERING,03/10/2017,8.77E+18,-261.85,REDACTED PERSONAL DATA,CT240201880,Adoption & Fostering,62030900
SHEFFIELD CITY COUNCIL,PEOPLE,13002639302,IN HOUSE FOSTER PLACEMENT,9270007,IN-HOUSE FOSTERING,03/10/2017,8.77E+18,-69.00,REDACTED PERSONAL DATA,CT240201880,Adoption & Fostering,62030900
SHEFFIELD CITY COUNCIL,PEOPLE,13002639302,IN HOUSE FOSTER PLACEMENT,9270007,IN-HOUSE FOSTERING,03/10/2017,4.67E+18,"1,014.28",REDACTED PERSONAL DATA,CT240201880,Adoption & Fostering,57972300
SHEFFIELD CITY COUNCIL,PEOPLE,13002639028,SPECIAL GUARDIANSHIP,9270013,RESIDENCE ORDERS,03/10/2017,2.08E+18,431.07,REDACTED PERSONAL DATA,CT240201880,Adoption & Fostering,48722600
SHEFFIELD CITY COUNCIL,PEOPLE,13002639028,SPECIAL GUARDIANSHIP,9270013,RESIDENCE ORDERS,03/10/2017,2.08E+18,431.07,REDACTED PERSONAL DATA,CT240201880,Adoption & Fostering,48722600
SHEFFIELD CITY COUNCIL,PEOPLE,13002639028,SPECIAL GUARDIANSHIP,9270013,RESIDENCE ORDERS,03/10/2017,2.08E+18,431.07,REDACTED PERSONAL DATA,CT240201880,Adoption & Fostering,48722600
SHEFFIELD CITY COUNCIL,PEOPLE,13002639028,SPECIAL GUARDIANSHIP,9270013,RESIDENCE ORDERS,03/10/2017,2.08E+18,431.07,REDACTED PERSONAL DATA,CT240201880,Adoption & Fostering,48722600
SHEFFIELD CITY COUNCIL,RESOURCES,11100400000,AUDIT FEES,8450000,AUDIT FEES,03/10/2017,INV-0280,500.00,GARY BANDY LTD,CT080112100,Business & Management Consultants,47080800
SCR COMBINED AUTHORITY        ,LOCAL ENTERPRISE PARTNERSHIP,33070830130,CORPORATE AFFAIRS,8250000,MARKETING EXPENSES,03/10/2017,SCR0120170922,"2,400.00",UKC (INTERNATIONAL) LIMITED T/A UKC CO,CT080112100,Business & Management Consultants,64804600
SHEFFIELD CITY COUNCIL,PEOPLE,14009346039,ADULT SOCIAL CARE PURCHASING,9190004,DIRECT PAYMENTS,03/10/2017,J2042755,712.08,REDACTED PERSONAL DATA,CT9999DIRPY,CAREFIRST DIRECT PAYMENTS,36971200
SHEFFIELD CITY COUNCIL,PEOPLE,14009346039,ADULT SOCIAL CARE PURCHASING,9190004,DIRECT PAYMENTS,03/10/2017,J2042755,297.00,REDACTED PERSONAL DATA,CT9999DIRPY,CAREFIRST DIRECT PAYMENTS,63398300
SHEFFIELD CITY COUNCIL,PEOPLE,14009346039,ADULT SOCIAL CARE PURCHASING,9190004,DIRECT PAYMENTS,03/10/2017,J2042755,595.20,REDACTED PERSONAL DATA,CT9999DIRPY,CAREFIRST DIRECT PAYMENTS,63210700
SHEFFIELD CITY COUNCIL,PEOPLE,14009242034,PURCHASING LEARNING DISABILITI,9190004,DIRECT PAYMENTS,03/10/2017,J2042755,367.80,REDACTED PERSONAL DATA,CT9999DIRPY,CAREFIRST DIRECT PAYMENTS,51150800
SHEFFIELD CITY COUNCIL,PEOPLE,14009242034,PURCHASING LEARNING DISABILITI,4260008,DIRECT PAYMENTS,03/10/2017,J2042755,-166.16,REDACTED PERSONAL DATA,CT9999DIRPY,CAREFIRST DIRECT PAYMENTS,50787300
SHEFFIELD CITY COUNCIL,PEOPLE,14009242034,PURCHASING LEARNING DISABILITI,9190004,DIRECT PAYMENTS,03/10/2017,J2042755,602.80,REDACTED PERSONAL DATA,CT9999DIRPY,CAREFIRST DIRECT PAYMENTS,50787300
SHEFFIELD CITY COUNCIL,PEOPLE,14009242034,PURCHASING LEARNING DISABILITI,4260008,DIRECT PAYMENTS,03/10/2017,J2042755,-136.08,REDACTED PERSONAL DATA,CT9999DIRPY,CAREFIRST DIRECT PAYMENTS,45095800
SHEFFIELD CITY COUNCIL,PEOPLE,14009242034,PURCHASING LEARNING DISABILITI,9190004,DIRECT PAYMENTS,03/10/2017,J2042755,"1,342.04",REDACTED PERSONAL DATA,CT9999DIRPY,CAREFIRST DIRECT PAYMENTS,45095800
SHEFFIELD CITY COUNCIL,PEOPLE,14009242034,PURCHASING LEARNING DISABILITI,4260008,DIRECT PAYMENTS,03/10/2017,J2042755,-477.92,REDACTED PERSONAL DATA,CT9999DIRPY,CAREFIRST DIRECT PAYMENTS,45235500
SHEFFIELD CITY COUNCIL,PEOPLE,14031444001,PURCHASING,9190004,DIRECT PAYMENTS,03/10/2017,J2042755,424.24,REDACTED PERSONAL DATA,CT9999DIRPY,CAREFIRST DIRECT PAYMENTS,45235500
SHEFFIELD CITY COUNCIL,PEOPLE,14009242034,PURCHASING LEARNING DISABILITI,9190004,DIRECT PAYMENTS,03/10/2017,J2042755,"2,857.80",REDACTED PERSONAL DATA,CT9999DIRPY,CAREFIRST DIRECT PAYMENTS,45235500
SHEFFIELD CITY COUNCIL,PEOPLE,13002439148,DIRECT PAYMENTS,9190004,DIRECT PAYMENTS,03/10/2017,J2042755,263.20,REDACTED PERSONAL DATA,CT9999DIRPY,CAREFIRST DIRECT PAYMENTS,47240600
SHEFFIELD CITY COUNCIL,PEOPLE,14009346039,ADULT SOCIAL CARE PURCHASING,4260008,DIRECT PAYMENTS,03/10/2017,J2042755,-328.76,REDACTED PERSONAL DATA,CT9999DIRPY,CAREFIRST DIRECT PAYMENTS,41776400
SHEFFIELD CITY COUNCIL,PEOPLE,14009346039,ADULT SOCIAL CARE PURCHASING,9190004,DIRECT PAYMENTS,03/10/2017,J2042755,"2,259.60",REDACTED PERSONAL DATA,CT9999DIRPY,CAREFIRST DIRECT PAYMENTS,41776400
SHEFFIELD CITY COUNCIL,PEOPLE,14009346039,ADULT SOCIAL CARE PURCHASING,4260008,DIRECT PAYMENTS,03/10/2017,J2042755,-169.00,REDACTED PERSONAL DATA,CT9999DIRPY,CAREFIRST DIRECT PAYMENTS,64807800
SHEFFIELD CITY COUNCIL,PEOPLE,14009346039,ADULT SOCIAL CARE PURCHASING,9190004,DIRECT PAYMENTS,03/10/2017,J2042755,996.00,REDACTED PERSONAL DATA,CT9999DIRPY,CAREFIRST DIRECT PAYMENTS,64807800
SHEFFIELD CITY COUNCIL,PEOPLE,14009242034,PURCHASING LEARNING DISABILITI,4260008,DIRECT PAYMENTS,03/10/2017,J2042755,-346.32,REDACTED PERSONAL DATA,CT9999DIRPY,CAREFIRST DIRECT PAYMENTS,45725400
SHEFFIELD CITY COUNCIL,PEOPLE,14009242034,PURCHASING LEARNING DISABILITI,9190004,DIRECT PAYMENTS,03/10/2017,J2042755,"1,230.16",REDACTED PERSONAL DATA,CT9999DIRPY,CAREFIRST DIRECT PAYMENTS,45725400
SHEFFIELD CITY COUNCIL,PEOPLE,13002439148,DIRECT PAYMENTS,9190004,DIRECT PAYMENTS,03/10/2017,J2042755,276.28,REDACTED PERSONAL DATA,CT9999DIRPY,CAREFIRST DIRECT PAYMENTS,57512600
SHEFFIELD CITY COUNCIL,PEOPLE,14009346039,ADULT SOCIAL CARE PURCHASING,4260008,DIRECT PAYMENTS,03/10/2017,J2042755,-295.68,REDACTED PERSONAL DATA,CT9999DIRPY,CAREFIRST DIRECT PAYMENTS,39546700
SHEFFIELD CITY COUNCIL,PEOPLE,14009346039,ADULT SOCIAL CARE PURCHASING,9190004,DIRECT PAYMENTS,03/10/2017,J2042755,"3,414.36",REDACTED PERSONAL DATA,CT9999DIRPY,CAREFIRST DIRECT PAYMENTS,39546700
SHEFFIELD CITY COUNCIL,PEOPLE,14009346039,ADULT SOCIAL CARE PURCHASING,9190004,DIRECT PAYMENTS,03/10/2017,J2042755,821.20,REDACTED PERSONAL DATA,CT9999DIRPY,CAREFIRST DIRECT PAYMENTS,40338100
SHEFFIELD CITY COUNCIL,PEOPLE,14009346039,ADULT SOCIAL CARE PURCHASING,9190004,DIRECT PAYMENTS,03/10/2017,J2042755,542.88,REDACTED PERSONAL DATA,CT9999DIRPY,CAREFIRST DIRECT PAYMENTS,39682200
SHEFFIELD CITY COUNCIL,PEOPLE,14009242034,PURCHASING LEARNING DISABILITI,9190004,DIRECT PAYMENTS,03/10/2017,J2042755,"3,705.72",REDACTED PERSONAL DATA,CT9999DIRPY,CAREFIRST DIRECT PAYMENTS,52564000
SHEFFIELD CITY COUNCIL,PEOPLE,14009346039,ADULT SOCIAL CARE PURCHASING,9190004,DIRECT PAYMENTS,03/10/2017,J2042755,"5,959.00",REDACTED PERSONAL DATA,CT9999DIRPY,CAREFIRST DIRECT PAYMENTS,36971900
SHEFFIELD CITY COUNCIL,PEOPLE,14009346039,ADULT SOCIAL CARE PURCHASING,4260008,DIRECT PAYMENTS,03/10/2017,J2042755,-374.20,REDACTED PERSONAL DATA,CT9999DIRPY,CAREFIRST DIRECT PAYMENTS,41453000
SHEFFIELD CITY COUNCIL,PEOPLE,14009346039,ADULT SOCIAL CARE PURCHASING,9190004,DIRECT PAYMENTS,03/10/2017,J2042755,"1,103.64",REDACTED PERSONAL DATA,CT9999DIRPY,CAREFIRST DIRECT PAYMENTS,41453000
SHEFFIELD CITY COUNCIL,PEOPLE,14009346039,ADULT SOCIAL CARE PURCHASING,9190004,DIRECT PAYMENTS,03/10/2017,J2042755,"3,808.16",REDACTED PERSONAL DATA,CT9999DIRPY,CAREFIRST DIRECT PAYMENTS,48136900
SHEFFIELD CITY COUNCIL,PEOPLE,14009346039,ADULT SOCIAL CARE PURCHASING,4260008,DIRECT PAYMENTS,03/10/2017,J2042755,-61.60,REDACTED PERSONAL DATA,CT9999DIRPY,CAREFIRST DIRECT PAYMENTS,48694700
SHEFFIELD CITY COUNCIL,PEOPLE,14009346039,ADULT SOCIAL CARE PURCHASING,9190004,DIRECT PAYMENTS,03/10/2017,J2042755,"2,538.68",REDACTED PERSONAL DATA,CT9999DIRPY,CAREFIRST DIRECT PAYMENTS,48694700
SHEFFIELD CITY COUNCIL,PEOPLE,14009346039,ADULT SOCIAL CARE PURCHASING,9190004,DIRECT PAYMENTS,03/10/2017,J2042755,924.60,REDACTED PERSONAL DATA,CT9999DIRPY,CAREFIRST DIRECT PAYMENTS,57432000
SHEFFIELD CITY COUNCIL,PEOPLE,14009346039,ADULT SOCIAL CARE PURCHASING,4260008,DIRECT PAYMENTS,03/10/2017,J2042755,-213.80,REDACTED PERSONAL DATA,CT9999DIRPY,CAREFIRST DIRECT PAYMENTS,36978500
SHEFFIELD CITY COUNCIL,PEOPLE,14009346039,ADULT SOCIAL CARE PURCHASING,9190004,DIRECT PAYMENTS,03/10/2017,J2042755,659.20,REDACTED PERSONAL DATA,CT9999DIRPY,CAREFIRST DIRECT PAYMENTS,36978500
SHEFFIELD CITY COUNCIL,PEOPLE,14009242034,PURCHASING LEARNING DISABILITI,4260008,DIRECT PAYMENTS,03/10/2017,J2042755,-177.44,REDACTED PERSONAL DATA,CT9999DIRPY,CAREFIRST DIRECT PAYMENTS,43950100
SHEFFIELD CITY COUNCIL,PEOPLE,14009242034,PURCHASING LEARNING DISABILITI,9190004,DIRECT PAYMENTS,03/10/2017,J2042755,"2,081.84",REDACTED PERSONAL DATA,CT9999DIRPY,CAREFIRST DIRECT PAYMENTS,43950100
SHEFFIELD CITY COUNCIL,PEOPLE,14009242034,PURCHASING LEARNING DISABILITI,4260008,DIRECT PAYMENTS,03/10/2017,J2042755,-134.96,REDACTED PERSONAL DATA,CT9999DIRPY,CAREFIRST DIRECT PAYMENTS,48939200
SHEFFIELD CITY COUNCIL,PEOPLE,14009242034,PURCHASING LEARNING DISABILITI,9190004,DIRECT PAYMENTS,03/10/2017,J2042755,469.48,REDACTED PERSONAL DATA,CT9999DIRPY,CAREFIRST DIRECT PAYMENTS,48939200
SHEFFIELD CITY COUNCIL,PEOPLE,13002439148,DIRECT PAYMENTS,9190004,DIRECT PAYMENTS,03/10/2017,J2042755,882.68,REDACTED PERSONAL DATA,CT9999DIRPY,CAREFIRST DIRECT PAYMENTS,56379700
SHEFFIELD CITY COUNCIL,PEOPLE,14009346039,ADULT SOCIAL CARE PURCHASING,4260008,DIRECT PAYMENTS,03/10/2017,J2042755,-179.88,AUTELA LIMITED,CT9999DIRPY,CAREFIRST DIRECT PAYMENTS,63464100
SHEFFIELD CITY COUNCIL,PEOPLE,14009346039,ADULT SOCIAL CARE PURCHASING,9190004,DIRECT PAYMENTS,03/10/2017,J2042755,"1,668.64",AUTELA LIMITED,CT9999DIRPY,CAREFIRST DIRECT PAYMENTS,63464100
SHEFFIELD CITY COUNCIL,PEOPLE,14009346039,ADULT SOCIAL CARE PURCHASING,4260008,DIRECT PAYMENTS,03/10/2017,J2042755,-91.64,AWESOME HEALTHCARE SOLUTIONS,CT9999DIRPY,CAREFIRST DIRECT PAYMENTS,63636800
SHEFFIELD CITY COUNCIL,PEOPLE,14009346039,ADULT SOCIAL CARE PURCHASING,9190004,DIRECT PAYMENTS,03/10/2017,J2042755,"1,332.04",AWESOME HEALTHCARE SOLUTIONS,CT9999DIRPY,CAREFIRST DIRECT PAYMENTS,63636800
SHEFFIELD CITY COUNCIL,PEOPLE,14009242034,PURCHASING LEARNING DISABILITI,4260008,DIRECT PAYMENTS,03/10/2017,J2042755,-433.72,CITIZENSHIP FIRST,CT9999DIRPY,CAREFIRST DIRECT PAYMENTS,55689000
SHEFFIELD CITY COUNCIL,PEOPLE,14009242034,PURCHASING LEARNING DISABILITI,4260008,DIRECT PAYMENTS,03/10/2017,J2042755,-212.88,BARRIE BOOKKEEPING & PAYROLL SOLUTIO,CT9999DIRPY,CAREFIRST DIRECT PAYMENTS,63267100
SHEFFIELD CITY COUNCIL,PEOPLE,14009242034,PURCHASING LEARNING DISABILITI,9190004,DIRECT PAYMENTS,03/10/2017,J2042755,943.84,BARRIE BOOKKEEPING & PAYROLL SOLUTIO,CT9999DIRPY,CAREFIRST DIRECT PAYMENTS,63267100
SHEFFIELD CITY COUNCIL,PEOPLE,14009242034,PURCHASING LEARNING DISABILITI,4260008,DIRECT PAYMENTS,03/10/2017,J2042755,-149.24,REDACTED PERSONAL DATA,CT9999DIRPY,CAREFIRST DIRECT PAYMENTS,41819700
SHEFFIELD CITY COUNCIL,PEOPLE,14009242034,PURCHASING LEARNING DISABILITI,9190004,DIRECT PAYMENTS,03/10/2017,J2042755,"1,387.80",REDACTED PERSONAL DATA,CT9999DIRPY,CAREFIRST DIRECT PAYMENTS,41819700
SHEFFIELD CITY COUNCIL,PEOPLE,14009346039,ADULT SOCIAL CARE PURCHASING,4260008,DIRECT PAYMENTS,03/10/2017,J2042755,"-1,319.60",REDACTED PERSONAL DATA,CT9999DIRPY,CAREFIRST DIRECT PAYMENTS,42842300
SHEFFIELD CITY COUNCIL,PEOPLE,14009346039,ADULT SOCIAL CARE PURCHASING,9190007,FUNDED HOME SUPPORT,03/10/2017,J2042755,545.72,REDACTED PERSONAL DATA,CT9999DIRPY,CAREFIRST DIRECT PAYMENTS,42842300
SHEFFIELD CITY COUNCIL,PEOPLE,14009346039,ADULT SOCIAL CARE PURCHASING,9190004,DIRECT PAYMENTS,03/10/2017,J2042755,"1,413.48",REDACTED PERSONAL DATA,CT9999DIRPY,CAREFIRST DIRECT PAYMENTS,42842300
SHEFFIELD CITY COUNCIL,PEOPLE,14009242034,PURCHASING LEARNING DISABILITI,4260008,DIRECT PAYMENTS,03/10/2017,J2042755,-140.00,REDACTED PERSONAL DATA,CT9999DIRPY,CAREFIRST DIRECT PAYMENTS,52563700
SHEFFIELD CITY COUNCIL,PEOPLE,14009242034,PURCHASING LEARNING DISABILITI,9190004,DIRECT PAYMENTS,03/10/2017,J2042755,494.44,REDACTED PERSONAL DATA,CT9999DIRPY,CAREFIRST DIRECT PAYMENTS,52563700
SHEFFIELD CITY COUNCIL,PEOPLE,14009346039,ADULT SOCIAL CARE PURCHASING,4260008,DIRECT PAYMENTS,03/10/2017,J2042755,-162.44,REDACTED PERSONAL DATA,CT9999DIRPY,CAREFIRST DIRECT PAYMENTS,37728600
SHEFFIELD CITY COUNCIL,PEOPLE,14009346039,ADULT SOCIAL CARE PURCHASING,9190004,DIRECT PAYMENTS,03/10/2017,J2042755,"3,159.00",REDACTED PERSONAL DATA,CT9999DIRPY,CAREFIRST DIRECT PAYMENTS,37728600
SHEFFIELD CITY COUNCIL,PEOPLE,14009346039,ADULT SOCIAL CARE PURCHASING,9190004,DIRECT PAYMENTS,03/10/2017,J2042755,"1,529.84",REDACTED PERSONAL DATA,CT9999DIRPY,CAREFIRST DIRECT PAYMENTS,58420500
SHEFFIELD CITY COUNCIL,PEOPLE,14009346039,ADULT SOCIAL CARE PURCHASING,4260008,DIRECT PAYMENTS,03/10/2017,J2042755,-496.52,REDACTED PERSONAL DATA,CT9999DIRPY,CAREFIRST DIRECT PAYMENTS,51287900
SHEFFIELD CITY COUNCIL,PEOPLE,14009346039,ADULT SOCIAL CARE PURCHASING,9190004,DIRECT PAYMENTS,03/10/2017,J2042755,872.12,REDACTED PERSONAL DATA,CT9999DIRPY,CAREFIRST DIRECT PAYMENTS,51287900
SHEFFIELD CITY COUNCIL,PEOPLE,13002439148,DIRECT PAYMENTS,9190004,DIRECT PAYMENTS,03/10/2017,J2042755,368.40,BTS,CT9999DIRPY,CAREFIRST DIRECT PAYMENTS,59768200
SHEFFIELD CITY COUNCIL,PEOPLE,14009242034,PURCHASING LEARNING DISABILITI,4260008,DIRECT PAYMENTS,03/10/2017,J2042755,-273.84,REDACTED PERSONAL DATA,CT9999DIRPY,CAREFIRST DIRECT PAYMENTS,62419700
SHEFFIELD CITY COUNCIL,PEOPLE,14009242034,PURCHASING LEARNING DISABILITI,9190004,DIRECT PAYMENTS,03/10/2017,J2042755,574.00,REDACTED PERSONAL DATA,CT9999DIRPY,CAREFIRST DIRECT PAYMENTS,62419700
SHEFFIELD CITY COUNCIL,PEOPLE,14009242034,PURCHASING LEARNING DISABILITI,9190004,DIRECT PAYMENTS,03/10/2017,J2042755,"2,047.16",REDACTED PERSONAL DATA,CT9999DIRPY,CAREFIRST DIRECT PAYMENTS,48566900
SHEFFIELD CITY COUNCIL,PEOPLE,14009346039,ADULT SOCIAL CARE PURCHASING,4260008,DIRECT PAYMENTS,03/10/2017,J2042755,-152.52,CARE2CARE TRAINING SERVICES,CT9999DIRPY,CAREFIRST DIRECT PAYMENTS,55689300
SHEFFIELD CITY COUNCIL,PEOPLE,14009346039,ADULT SOCIAL CARE PURCHASING,4260008,DIRECT PAYMENTS,03/10/2017,J2042755,-143.40,CARE2CARE TRAINING SERVICES,CT9999DIRPY,CAREFIRST DIRECT PAYMENTS,55689300
SHEFFIELD CITY COUNCIL,PEOPLE,14009346039,ADULT SOCIAL CARE PURCHASING,9190004,DIRECT PAYMENTS,03/10/2017,J2042755,303.80,CARE2CARE TRAINING SERVICES,CT9999DIRPY,CAREFIRST DIRECT PAYMENTS,55689300
SHEFFIELD CITY COUNCIL,PEOPLE,14009346039,ADULT SOCIAL CARE PURCHASING,9190004,DIRECT PAYMENTS,03/10/2017,J2042755,640.00,CARE2CARE TRAINING SERVICES,CT9999DIRPY,CAREFIRST DIRECT PAYMENTS,55689300
SHEFFIELD CITY COUNCIL,PEOPLE,14009346039,ADULT SOCIAL CARE PURCHASING,9190004,DIRECT PAYMENTS,03/10/2017,J2042755,417.28,REDACTED PERSONAL DATA,CT9999DIRPY,CAREFIRST DIRECT PAYMENTS,44013300
SHEFFIELD CITY COUNCIL,PEOPLE,14009346039,ADULT SOCIAL CARE PURCHASING,9190004,DIRECT PAYMENTS,03/10/2017,J2042755,598.28,REDACTED PERSONAL DATA,CT9999DIRPY,CAREFIRST DIRECT PAYMENTS,42315200
SHEFFIELD CITY COUNCIL,PEOPLE,14009346039,ADULT SOCIAL CARE PURCHASING,4260008,DIRECT PAYMENTS,03/10/2017,J2042755,-142.64,REDACTED PERSONAL DATA,CT9999DIRPY,CAREFIRST DIRECT PAYMENTS,42521000
SHEFFIELD CITY COUNCIL,PEOPLE,14009346039,ADULT SOCIAL CARE PURCHASING,9190004,DIRECT PAYMENTS,03/10/2017,J2042755,420.00,REDACTED PERSONAL DATA,CT9999DIRPY,CAREFIRST DIRECT PAYMENTS,42521000
SHEFFIELD CITY COUNCIL,PEOPLE,13002439148,DIRECT PAYMENTS,9190004,DIRECT PAYMENTS,03/10/2017,J2042755,598.68,REDACTED PERSONAL DATA,CT9999DIRPY,CAREFIRST DIRECT PAYMENTS,49272700
SHEFFIELD CITY COUNCIL,PEOPLE,14009346039,ADULT SOCIAL CARE PURCHASING,9190004,DIRECT PAYMENTS,03/10/2017,J2042755,698.40,REDACTED PERSONAL DATA,CT9999DIRPY,CAREFIRST DIRECT PAYMENTS,46203400
SHEFFIELD CITY COUNCIL,PEOPLE,14009346039,ADULT SOCIAL CARE PURCHASING,4260008,DIRECT PAYMENTS,03/10/2017,J2042755,-97.48,REDACTED PERSONAL DATA,CT9999DIRPY,CAREFIRST DIRECT PAYMENTS,36974700
SHEFFIELD CITY COUNCIL,PEOPLE,14009346039,ADULT SOCIAL CARE PURCHASING,9190004,DIRECT PAYMENTS,03/10/2017,J2042755,"1,535.28",REDACTED PERSONAL DATA,CT9999DIRPY,CAREFIRST DIRECT PAYMENTS,36974700
SHEFFIELD CITY COUNCIL,PEOPLE,14009242034,PURCHASING LEARNING DISABILITI,4260008,DIRECT PAYMENTS,03/10/2017,J2042755,-69.72,REDACTED PERSONAL DATA,CT9999DIRPY,CAREFIRST DIRECT PAYMENTS,51929000
SHEFFIELD CITY COUNCIL,PEOPLE,14009242034,PURCHASING LEARNING DISABILITI,9190004,DIRECT PAYMENTS,03/10/2017,J2042755,"1,309.12",REDACTED PERSONAL DATA,CT9999DIRPY,CAREFIRST DIRECT PAYMENTS,51929000
SHEFFIELD CITY COUNCIL,PEOPLE,14009346039,ADULT SOCIAL CARE PURCHASING,9190004,DIRECT PAYMENTS,03/10/2017,J2042755,"2,202.08",REDACTED PERSONAL DATA,CT9999DIRPY,CAREFIRST DIRECT PAYMENTS,47695300
SHEFFIELD CITY COUNCIL,PEOPLE,14009242034,PURCHASING LEARNING DISABILITI,4260008,DIRECT PAYMENTS,03/10/2017,J2042755,-242.64,REDACTED PERSONAL DATA,CT9999DIRPY,CAREFIRST DIRECT PAYMENTS,62806100
SHEFFIELD CITY COUNCIL,PEOPLE,14009242034,PURCHASING LEARNING DISABILITI,9190004,DIRECT PAYMENTS,03/10/2017,J2042755,"6,034.88",REDACTED PERSONAL DATA,CT9999DIRPY,CAREFIRST DIRECT PAYMENTS,62806100
SHEFFIELD CITY COUNCIL,PEOPLE,14009346039,ADULT SOCIAL CARE PURCHASING,4260008,DIRECT PAYMENTS,03/10/2017,J2042755,-207.68,REDACTED PERSONAL DATA,CT9999DIRPY,CAREFIRST DIRECT PAYMENTS,46899200
SHEFFIELD CITY COUNCIL,PEOPLE,14009346039,ADULT SOCIAL CARE PURCHASING,9190004,DIRECT PAYMENTS,03/10/2017,J2042755,605.32,REDACTED PERSONAL DATA,CT9999DIRPY,CAREFIRST DIRECT PAYMENTS,46899200
SHEFFIELD CITY COUNCIL,PEOPLE,14009242034,PURCHASING LEARNING DISABILITI,4260008,DIRECT PAYMENTS,03/10/2017,J2042755,-192.76,REDACTED PERSONAL DATA,CT9999DIRPY,CAREFIRST DIRECT PAYMENTS,47581300
SHEFFIELD CITY COUNCIL,PEOPLE,14009242034,PURCHASING LEARNING DISABILITI,9190004,DIRECT PAYMENTS,03/10/2017,J2042755,828.16,REDACTED PERSONAL DATA,CT9999DIRPY,CAREFIRST DIRECT PAYMENTS,47581300
SHEFFIELD CITY COUNCIL,PEOPLE,14009242034,PURCHASING LEARNING DISABILITI,9190004,DIRECT PAYMENTS,03/10/2017,J2042755,298.16,REDACTED PERSONAL DATA,CT9999DIRPY,CAREFIRST DIRECT PAYMENTS,45348800
SHEFFIELD CITY COUNCIL,PEOPLE,14009242034,PURCHASING LEARNING DISABILITI,4260008,DIRECT PAYMENTS,03/10/2017,J2042755,-458.20,CITIZENSHIP FIRST,CT9999DIRPY,CAREFIRST DIRECT PAYMENTS,55689000
SHEFFIELD CITY COUNCIL,PEOPLE,14009346039,ADULT SOCIAL CARE PURCHASING,4260008,DIRECT PAYMENTS,03/10/2017,J2042755,-426.20,CITIZENSHIP FIRST,CT9999DIRPY,CAREFIRST DIRECT PAYMENTS,55689000
SHEFFIELD CITY COUNCIL,PEOPLE,14009242034,PURCHASING LEARNING DISABILITI,4260008,DIRECT PAYMENTS,03/10/2017,J2042755,-400.40,CITIZENSHIP FIRST,CT9999DIRPY,CAREFIRST DIRECT PAYMENTS,55689000
SHEFFIELD CITY COUNCIL,PEOPLE,14009346039,ADULT SOCIAL CARE PURCHASING,4260008,DIRECT PAYMENTS,03/10/2017,J2042755,-393.88,CITIZENSHIP FIRST,CT9999DIRPY,CAREFIRST DIRECT PAYMENTS,55689000
SHEFFIELD CITY COUNCIL,PEOPLE,14009242034,PURCHASING LEARNING DISABILITI,4260008,DIRECT PAYMENTS,03/10/2017,J2042755,-363.24,CITIZENSHIP FIRST,CT9999DIRPY,CAREFIRST DIRECT PAYMENTS,55689000
SHEFFIELD CITY COUNCIL,PEOPLE,14009242034,PURCHASING LEARNING DISABILITI,4260008,DIRECT PAYMENTS,03/10/2017,J2042755,-350.68,CITIZENSHIP FIRST,CT9999DIRPY,CAREFIRST DIRECT PAYMENTS,55689000
SHEFFIELD CITY COUNCIL,PEOPLE,14009346039,ADULT SOCIAL CARE PURCHASING,4260008,DIRECT PAYMENTS,03/10/2017,J2042755,-317.08,CITIZENSHIP FIRST,CT9999DIRPY,CAREFIRST DIRECT PAYMENTS,55689000
SHEFFIELD CITY COUNCIL,PEOPLE,14009346039,ADULT SOCIAL CARE PURCHASING,4260008,DIRECT PAYMENTS,03/10/2017,J2042755,-307.84,CITIZENSHIP FIRST,CT9999DIRPY,CAREFIRST DIRECT PAYMENTS,55689000
SHEFFIELD CITY COUNCIL,PEOPLE,14009242034,PURCHASING LEARNING DISABILITI,4260008,DIRECT PAYMENTS,03/10/2017,J2042755,-261.96,CITIZENSHIP FIRST,CT9999DIRPY,CAREFIRST DIRECT PAYMENTS,55689000
SHEFFIELD CITY COUNCIL,PEOPLE,14009242034,PURCHASING LEARNING DISABILITI,4260008,DIRECT PAYMENTS,03/10/2017,J2042755,-253.68,CITIZENSHIP FIRST,CT9999DIRPY,CAREFIRST DIRECT PAYMENTS,55689000
SHEFFIELD CITY COUNCIL,PEOPLE,14009242034,PURCHASING LEARNING DISABILITI,4260008,DIRECT PAYMENTS,03/10/2017,J2042755,-229.28,CITIZENSHIP FIRST,CT9999DIRPY,CAREFIRST DIRECT PAYMENTS,55689000
SHEFFIELD CITY COUNCIL,PEOPLE,14009242034,PURCHASING LEARNING DISABILITI,4260008,DIRECT PAYMENTS,03/10/2017,J2042755,-219.68,CITIZENSHIP FIRST,CT9999DIRPY,CAREFIRST DIRECT PAYMENTS,55689000
SHEFFIELD CITY COUNCIL,PEOPLE,14009242034,PURCHASING LEARNING DISABILITI,4260008,DIRECT PAYMENTS,03/10/2017,J2042755,-209.84,CITIZENSHIP FIRST,CT9999DIRPY,CAREFIRST DIRECT PAYMENTS,55689000
SHEFFIELD CITY COUNCIL,PEOPLE,14009242034,PURCHASING LEARNING DISABILITI,4260008,DIRECT PAYMENTS,03/10/2017,J2042755,-198.28,CITIZENSHIP FIRST,CT9999DIRPY,CAREFIRST DIRECT PAYMENTS,55689000
SHEFFIELD CITY COUNCIL,PEOPLE,14009242034,PURCHASING LEARNING DISABILITI,4260008,DIRECT PAYMENTS,03/10/2017,J2042755,-181.04,CITIZENSHIP FIRST,CT9999DIRPY,CAREFIRST DIRECT PAYMENTS,55689000
SHEFFIELD CITY COUNCIL,PEOPLE,14009242034,PURCHASING LEARNING DISABILITI,4260008,DIRECT PAYMENTS,03/10/2017,J2042755,-180.72,CITIZENSHIP FIRST,CT9999DIRPY,CAREFIRST DIRECT PAYMENTS,55689000
SHEFFIELD CITY COUNCIL,PEOPLE,14009242034,PURCHASING LEARNING DISABILITI,4260008,DIRECT PAYMENTS,03/10/2017,J2042755,-178.40,CITIZENSHIP FIRST,CT9999DIRPY,CAREFIRST DIRECT PAYMENTS,55689000
SHEFFIELD CITY COUNCIL,PEOPLE,14009242034,PURCHASING LEARNING DISABILITI,4260008,DIRECT PAYMENTS,03/10/2017,J2042755,-169.00,CITIZENSHIP FIRST,CT9999DIRPY,CAREFIRST DIRECT PAYMENTS,55689000
SHEFFIELD CITY COUNCIL,PEOPLE,14009242034,PURCHASING LEARNING DISABILITI,4260008,DIRECT PAYMENTS,03/10/2017,J2042755,-134.96,CITIZENSHIP FIRST,CT9999DIRPY,CAREFIRST DIRECT PAYMENTS,55689000
SHEFFIELD CITY COUNCIL,PEOPLE,14009242034,PURCHASING LEARNING DISABILITI,4260008,DIRECT PAYMENTS,03/10/2017,J2042755,-134.96,CITIZENSHIP FIRST,CT9999DIRPY,CAREFIRST DIRECT PAYMENTS,55689000
SHEFFIELD CITY COUNCIL,PEOPLE,14009242034,PURCHASING LEARNING DISABILITI,4260008,DIRECT PAYMENTS,03/10/2017,J2042755,-132.52,CITIZENSHIP FIRST,CT9999DIRPY,CAREFIRST DIRECT PAYMENTS,55689000
SHEFFIELD CITY COUNCIL,PEOPLE,14009242034,PURCHASING LEARNING DISABILITI,4260008,DIRECT PAYMENTS,03/10/2017,J2042755,-115.56,CITIZENSHIP FIRST,CT9999DIRPY,CAREFIRST DIRECT PAYMENTS,55689000
SHEFFIELD CITY COUNCIL,PEOPLE,14009242034,PURCHASING LEARNING DISABILITI,4260008,DIRECT PAYMENTS,03/10/2017,J2042755,-113.00,CITIZENSHIP FIRST,CT9999DIRPY,CAREFIRST DIRECT PAYMENTS,55689000
SHEFFIELD CITY COUNCIL,PEOPLE,14009242034,PURCHASING LEARNING DISABILITI,4260008,DIRECT PAYMENTS,03/10/2017,J2042755,-110.40,CITIZENSHIP FIRST,CT9999DIRPY,CAREFIRST DIRECT PAYMENTS,55689000
SHEFFIELD CITY COUNCIL,PEOPLE,14009242034,PURCHASING LEARNING DISABILITI,4260008,DIRECT PAYMENTS,03/10/2017,J2042755,-108.72,CITIZENSHIP FIRST,CT9999DIRPY,CAREFIRST DIRECT PAYMENTS,55689000
SHEFFIELD CITY COUNCIL,PEOPLE,14009242034,PURCHASING LEARNING DISABILITI,4260008,DIRECT PAYMENTS,03/10/2017,J2042755,-105.16,CITIZENSHIP FIRST,CT9999DIRPY,CAREFIRST DIRECT PAYMENTS,55689000
SHEFFIELD CITY COUNCIL,PEOPLE,14009242034,PURCHASING LEARNING DISABILITI,4260008,DIRECT PAYMENTS,03/10/2017,J2042755,-98.36,CITIZENSHIP FIRST,CT9999DIRPY,CAREFIRST DIRECT PAYMENTS,55689000
SHEFFIELD CITY COUNCIL,PEOPLE,14009242034,PURCHASING LEARNING DISABILITI,4260008,DIRECT PAYMENTS,03/10/2017,J2042755,-92.76,CITIZENSHIP FIRST,CT9999DIRPY,CAREFIRST DIRECT PAYMENTS,55689000
SHEFFIELD CITY COUNCIL,PEOPLE,14009242034,PURCHASING LEARNING DISABILITI,4260008,DIRECT PAYMENTS,03/10/2017,J2042755,-83.00,CITIZENSHIP FIRST,CT9999DIRPY,CAREFIRST DIRECT PAYMENTS,55689000
SHEFFIELD CITY COUNCIL,PEOPLE,14009242034,PURCHASING LEARNING DISABILITI,4260008,DIRECT PAYMENTS,03/10/2017,J2042755,-53.08,CITIZENSHIP FIRST,CT9999DIRPY,CAREFIRST DIRECT PAYMENTS,55689000
SHEFFIELD CITY COUNCIL,PEOPLE,14009346039,ADULT SOCIAL CARE PURCHASING,4260008,DIRECT PAYMENTS,03/10/2017,J2042755,-51.64,CITIZENSHIP FIRST,CT9999DIRPY,CAREFIRST DIRECT PAYMENTS,55689000
SHEFFIELD CITY COUNCIL,PEOPLE,14009242034,PURCHASING LEARNING DISABILITI,4260008,DIRECT PAYMENTS,03/10/2017,J2042755,-9.48,CITIZENSHIP FIRST,CT9999DIRPY,CAREFIRST DIRECT PAYMENTS,55689000
SHEFFIELD CITY COUNCIL,PEOPLE,14009242034,PURCHASING LEARNING DISABILITI,9190004,DIRECT PAYMENTS,03/10/2017,J2042755,303.48,CITIZENSHIP FIRST,CT9999DIRPY,CAREFIRST DIRECT PAYMENTS,55689000
SHEFFIELD CITY COUNCIL,PEOPLE,14009242034,PURCHASING LEARNING DISABILITI,9190004,DIRECT PAYMENTS,03/10/2017,J2042755,311.52,CITIZENSHIP FIRST,CT9999DIRPY,CAREFIRST DIRECT PAYMENTS,55689000
SHEFFIELD CITY COUNCIL,PEOPLE,14009242034,PURCHASING LEARNING DISABILITI,9190004,DIRECT PAYMENTS,03/10/2017,J2042755,355.24,CITIZENSHIP FIRST,CT9999DIRPY,CAREFIRST DIRECT PAYMENTS,55689000
SHEFFIELD CITY COUNCIL,PEOPLE,14009242034,PURCHASING LEARNING DISABILITI,9190004,DIRECT PAYMENTS,03/10/2017,J2042755,395.48,CITIZENSHIP FIRST,CT9999DIRPY,CAREFIRST DIRECT PAYMENTS,55689000
SHEFFIELD CITY COUNCIL,PEOPLE,14009242034,PURCHASING LEARNING DISABILITI,9190004,DIRECT PAYMENTS,03/10/2017,J2042755,406.88,CITIZENSHIP FIRST,CT9999DIRPY,CAREFIRST DIRECT PAYMENTS,55689000
SHEFFIELD CITY COUNCIL,PEOPLE,14009242034,PURCHASING LEARNING DISABILITI,9190004,DIRECT PAYMENTS,03/10/2017,J2042755,460.48,CITIZENSHIP FIRST,CT9999DIRPY,CAREFIRST DIRECT PAYMENTS,55689000
SHEFFIELD CITY COUNCIL,PEOPLE,14009242034,PURCHASING LEARNING DISABILITI,9190004,DIRECT PAYMENTS,03/10/2017,J2042755,461.52,CITIZENSHIP FIRST,CT9999DIRPY,CAREFIRST DIRECT PAYMENTS,55689000
SHEFFIELD CITY COUNCIL,PEOPLE,14009242034,PURCHASING LEARNING DISABILITI,9190004,DIRECT PAYMENTS,03/10/2017,J2042755,496.00,CITIZENSHIP FIRST,CT9999DIRPY,CAREFIRST DIRECT PAYMENTS,55689000
SHEFFIELD CITY COUNCIL,PEOPLE,14009242034,PURCHASING LEARNING DISABILITI,9190004,DIRECT PAYMENTS,03/10/2017,J2042755,541.56,CITIZENSHIP FIRST,CT9999DIRPY,CAREFIRST DIRECT PAYMENTS,55689000
SHEFFIELD CITY COUNCIL,PEOPLE,14009242034,PURCHASING LEARNING DISABILITI,9190004,DIRECT PAYMENTS,03/10/2017,J2042755,549.00,CITIZENSHIP FIRST,CT9999DIRPY,CAREFIRST DIRECT PAYMENTS,55689000
SHEFFIELD CITY COUNCIL,PEOPLE,14009242034,PURCHASING LEARNING DISABILITI,9190004,DIRECT PAYMENTS,03/10/2017,J2042755,575.36,CITIZENSHIP FIRST,CT9999DIRPY,CAREFIRST DIRECT PAYMENTS,55689000
SHEFFIELD CITY COUNCIL,PEOPLE,14009242034,PURCHASING LEARNING DISABILITI,9190004,DIRECT PAYMENTS,03/10/2017,J2042755,587.68,CITIZENSHIP FIRST,CT9999DIRPY,CAREFIRST DIRECT PAYMENTS,55689000
SHEFFIELD CITY COUNCIL,PEOPLE,14009242034,PURCHASING LEARNING DISABILITI,9190004,DIRECT PAYMENTS,03/10/2017,J2042755,604.20,CITIZENSHIP FIRST,CT9999DIRPY,CAREFIRST DIRECT PAYMENTS,55689000
SHEFFIELD CITY COUNCIL,PEOPLE,14009242034,PURCHASING LEARNING DISABILITI,9190004,DIRECT PAYMENTS,03/10/2017,J2042755,616.04,CITIZENSHIP FIRST,CT9999DIRPY,CAREFIRST DIRECT PAYMENTS,55689000
SHEFFIELD CITY COUNCIL,PEOPLE,14009242034,PURCHASING LEARNING DISABILITI,9190004,DIRECT PAYMENTS,03/10/2017,J2042755,651.72,CITIZENSHIP FIRST,CT9999DIRPY,CAREFIRST DIRECT PAYMENTS,55689000
SHEFFIELD CITY COUNCIL,PEOPLE,14009242034,PURCHASING LEARNING DISABILITI,9190004,DIRECT PAYMENTS,03/10/2017,J2042755,743.84,CITIZENSHIP FIRST,CT9999DIRPY,CAREFIRST DIRECT PAYMENTS,55689000
SHEFFIELD CITY COUNCIL,PEOPLE,14009346039,ADULT SOCIAL CARE PURCHASING,9190007,FUNDED HOME SUPPORT,03/10/2017,J2042755,751.64,CITIZENSHIP FIRST,CT9999DIRPY,CAREFIRST DIRECT PAYMENTS,55689000
SHEFFIELD CITY COUNCIL,PEOPLE,14009346039,ADULT SOCIAL CARE PURCHASING,9190004,DIRECT PAYMENTS,03/10/2017,J2042755,751.64,CITIZENSHIP FIRST,CT9999DIRPY,CAREFIRST DIRECT PAYMENTS,55689000
SHEFFIELD CITY COUNCIL,PEOPLE,14009346039,ADULT SOCIAL CARE PURCHASING,9190004,DIRECT PAYMENTS,03/10/2017,J2042755,752.48,CITIZENSHIP FIRST,CT9999DIRPY,CAREFIRST DIRECT PAYMENTS,55689000
SHEFFIELD CITY COUNCIL,PEOPLE,14009346039,ADULT SOCIAL CARE PURCHASING,9190004,DIRECT PAYMENTS,03/10/2017,J2042755,765.36,CITIZENSHIP FIRST,CT9999DIRPY,CAREFIRST DIRECT PAYMENTS,55689000
SHEFFIELD CITY COUNCIL,PEOPLE,14009242034,PURCHASING LEARNING DISABILITI,9190004,DIRECT PAYMENTS,03/10/2017,J2042755,772.72,CITIZENSHIP FIRST,CT9999DIRPY,CAREFIRST DIRECT PAYMENTS,55689000
SHEFFIELD CITY COUNCIL,PEOPLE,14009242034,PURCHASING LEARNING DISABILITI,9190004,DIRECT PAYMENTS,03/10/2017,J2042755,795.96,CITIZENSHIP FIRST,CT9999DIRPY,CAREFIRST DIRECT PAYMENTS,55689000
SHEFFIELD CITY COUNCIL,PEOPLE,14009242034,PURCHASING LEARNING DISABILITI,9190004,DIRECT PAYMENTS,03/10/2017,J2042755,803.60,CITIZENSHIP FIRST,CT9999DIRPY,CAREFIRST DIRECT PAYMENTS,55689000
SHEFFIELD CITY COUNCIL,PEOPLE,14009242034,PURCHASING LEARNING DISABILITI,9190004,DIRECT PAYMENTS,03/10/2017,J2042755,840.68,CITIZENSHIP FIRST,CT9999DIRPY,CAREFIRST DIRECT PAYMENTS,55689000
SHEFFIELD CITY COUNCIL,PEOPLE,14009242034,PURCHASING LEARNING DISABILITI,9190004,DIRECT PAYMENTS,03/10/2017,J2042755,848.01,CITIZENSHIP FIRST,CT9999DIRPY,CAREFIRST DIRECT PAYMENTS,55689000
SHEFFIELD CITY COUNCIL,PEOPLE,14009242034,PURCHASING LEARNING DISABILITI,9190004,DIRECT PAYMENTS,03/10/2017,J2042755,874.00,CITIZENSHIP FIRST,CT9999DIRPY,CAREFIRST DIRECT PAYMENTS,55689000
SHEFFIELD CITY COUNCIL,PEOPLE,14009242034,PURCHASING LEARNING DISABILITI,9190004,DIRECT PAYMENTS,03/10/2017,J2042755,879.24,CITIZENSHIP FIRST,CT9999DIRPY,CAREFIRST DIRECT PAYMENTS,55689000
SHEFFIELD CITY COUNCIL,PEOPLE,14009242034,PURCHASING LEARNING DISABILITI,9190004,DIRECT PAYMENTS,03/10/2017,J2042755,911.08,CITIZENSHIP FIRST,CT9999DIRPY,CAREFIRST DIRECT PAYMENTS,55689000
SHEFFIELD CITY COUNCIL,PEOPLE,14009242034,PURCHASING LEARNING DISABILITI,9190004,DIRECT PAYMENTS,03/10/2017,J2042755,920.96,CITIZENSHIP FIRST,CT9999DIRPY,CAREFIRST DIRECT PAYMENTS,55689000
SHEFFIELD CITY COUNCIL,PEOPLE,14009346039,ADULT SOCIAL CARE PURCHASING,9190004,DIRECT PAYMENTS,03/10/2017,J2042755,927.80,CITIZENSHIP FIRST,CT9999DIRPY,CAREFIRST DIRECT PAYMENTS,55689000
SHEFFIELD CITY COUNCIL,PEOPLE,14009242034,PURCHASING LEARNING DISABILITI,9190004,DIRECT PAYMENTS,03/10/2017,J2042755,938.48,CITIZENSHIP FIRST,CT9999DIRPY,CAREFIRST DIRECT PAYMENTS,55689000
SHEFFIELD CITY COUNCIL,PEOPLE,14009346039,ADULT SOCIAL CARE PURCHASING,9190004,DIRECT PAYMENTS,03/10/2017,J2042755,938.84,CITIZENSHIP FIRST,CT9999DIRPY,CAREFIRST DIRECT PAYMENTS,55689000
SHEFFIELD CITY COUNCIL,PEOPLE,14009242034,PURCHASING LEARNING DISABILITI,9190004,DIRECT PAYMENTS,03/10/2017,J2042755,954.92,CITIZENSHIP FIRST,CT9999DIRPY,CAREFIRST DIRECT PAYMENTS,55689000
SHEFFIELD CITY COUNCIL,PEOPLE,14009242034,PURCHASING LEARNING DISABILITI,9190004,DIRECT PAYMENTS,03/10/2017,J2042755,957.44,CITIZENSHIP FIRST,CT9999DIRPY,CAREFIRST DIRECT PAYMENTS,55689000
SHEFFIELD CITY COUNCIL,PEOPLE,14009346039,ADULT SOCIAL CARE PURCHASING,9190004,DIRECT PAYMENTS,03/10/2017,J2042755,960.00,CITIZENSHIP FIRST,CT9999DIRPY,CAREFIRST DIRECT PAYMENTS,55689000
SHEFFIELD CITY COUNCIL,PEOPLE,14009242034,PURCHASING LEARNING DISABILITI,9190004,DIRECT PAYMENTS,03/10/2017,J2042755,961.28,CITIZENSHIP FIRST,CT9999DIRPY,CAREFIRST DIRECT PAYMENTS,55689000
SHEFFIELD CITY COUNCIL,PEOPLE,14009242034,PURCHASING LEARNING DISABILITI,9190004,DIRECT PAYMENTS,03/10/2017,J2042755,977.88,CITIZENSHIP FIRST,CT9999DIRPY,CAREFIRST DIRECT PAYMENTS,55689000
SHEFFIELD CITY COUNCIL,PEOPLE,14009242034,PURCHASING LEARNING DISABILITI,9190004,DIRECT PAYMENTS,03/10/2017,J2042755,988.68,CITIZENSHIP FIRST,CT9999DIRPY,CAREFIRST DIRECT PAYMENTS,55689000
SHEFFIELD CITY COUNCIL,PEOPLE,14009242034,PURCHASING LEARNING DISABILITI,9190004,DIRECT PAYMENTS,03/10/2017,J2042755,"1,081.88",CITIZENSHIP FIRST,CT9999DIRPY,CAREFIRST DIRECT PAYMENTS,55689000
SHEFFIELD CITY COUNCIL,PEOPLE,14009242034,PURCHASING LEARNING DISABILITI,9190004,DIRECT PAYMENTS,03/10/2017,J2042755,"1,112.68",CITIZENSHIP FIRST,CT9999DIRPY,CAREFIRST DIRECT PAYMENTS,55689000
SHEFFIELD CITY COUNCIL,PEOPLE,14009242034,PURCHASING LEARNING DISABILITI,9190004,DIRECT PAYMENTS,03/10/2017,J2042755,"1,121.00",CITIZENSHIP FIRST,CT9999DIRPY,CAREFIRST DIRECT PAYMENTS,55689000
SHEFFIELD CITY COUNCIL,PEOPLE,14009242034,PURCHASING LEARNING DISABILITI,9190007,FUNDED HOME SUPPORT,03/10/2017,J2042755,"1,292.40",CITIZENSHIP FIRST,CT9999DIRPY,CAREFIRST DIRECT PAYMENTS,55689000
SHEFFIELD CITY COUNCIL,PEOPLE,14009242034,PURCHASING LEARNING DISABILITI,9190004,DIRECT PAYMENTS,03/10/2017,J2042755,"1,310.48",CITIZENSHIP FIRST,CT9999DIRPY,CAREFIRST DIRECT PAYMENTS,55689000
SHEFFIELD CITY COUNCIL,PEOPLE,14009242034,PURCHASING LEARNING DISABILITI,9190004,DIRECT PAYMENTS,03/10/2017,J2042755,"1,368.48",CITIZENSHIP FIRST,CT9999DIRPY,CAREFIRST DIRECT PAYMENTS,55689000
SHEFFIELD CITY COUNCIL,PEOPLE,14009242034,PURCHASING LEARNING DISABILITI,9190004,DIRECT PAYMENTS,03/10/2017,J2042755,"1,566.00",CITIZENSHIP FIRST,CT9999DIRPY,CAREFIRST DIRECT PAYMENTS,55689000
SHEFFIELD CITY COUNCIL,PEOPLE,14009242034,PURCHASING LEARNING DISABILITI,9190004,DIRECT PAYMENTS,03/10/2017,J2042755,"1,573.68",CITIZENSHIP FIRST,CT9999DIRPY,CAREFIRST DIRECT PAYMENTS,55689000
SHEFFIELD CITY COUNCIL,PEOPLE,14009346039,ADULT SOCIAL CARE PURCHASING,9190004,DIRECT PAYMENTS,03/10/2017,J2042755,"1,758.40",CITIZENSHIP FIRST,CT9999DIRPY,CAREFIRST DIRECT PAYMENTS,55689000
SHEFFIELD CITY COUNCIL,PEOPLE,14009242034,PURCHASING LEARNING DISABILITI,9190004,DIRECT PAYMENTS,03/10/2017,J2042755,"1,785.36",CITIZENSHIP FIRST,CT9999DIRPY,CAREFIRST DIRECT PAYMENTS,55689000
SHEFFIELD CITY COUNCIL,PEOPLE,14009242034,PURCHASING LEARNING DISABILITI,9190004,DIRECT PAYMENTS,03/10/2017,J2042755,"1,845.64",CITIZENSHIP FIRST,CT9999DIRPY,CAREFIRST DIRECT PAYMENTS,55689000
SHEFFIELD CITY COUNCIL,PEOPLE,14009346039,ADULT SOCIAL CARE PURCHASING,9190004,DIRECT PAYMENTS,03/10/2017,J2042755,"2,040.00",CITIZENSHIP FIRST,CT9999DIRPY,CAREFIRST DIRECT PAYMENTS,55689000
SHEFFIELD CITY COUNCIL,PEOPLE,14009242034,PURCHASING LEARNING DISABILITI,9190004,DIRECT PAYMENTS,03/10/2017,J2042755,"2,077.12",CITIZENSHIP FIRST,CT9999DIRPY,CAREFIRST DIRECT PAYMENTS,55689000
SHEFFIELD CITY COUNCIL,PEOPLE,14009242034,PURCHASING LEARNING DISABILITI,9190004,DIRECT PAYMENTS,03/10/2017,J2042755,"2,093.88",CITIZENSHIP FIRST,CT9999DIRPY,CAREFIRST DIRECT PAYMENTS,55689000
SHEFFIELD CITY COUNCIL,PEOPLE,14009242034,PURCHASING LEARNING DISABILITI,9190004,DIRECT PAYMENTS,03/10/2017,J2042755,"2,099.96",CITIZENSHIP FIRST,CT9999DIRPY,CAREFIRST DIRECT PAYMENTS,55689000
SHEFFIELD CITY COUNCIL,PEOPLE,14009242034,PURCHASING LEARNING DISABILITI,9190004,DIRECT PAYMENTS,03/10/2017,J2042755,"2,207.72",CITIZENSHIP FIRST,CT9999DIRPY,CAREFIRST DIRECT PAYMENTS,55689000
SHEFFIELD CITY COUNCIL,PEOPLE,14009242034,PURCHASING LEARNING DISABILITI,9190004,DIRECT PAYMENTS,03/10/2017,J2042755,"2,424.44",CITIZENSHIP FIRST,CT9999DIRPY,CAREFIRST DIRECT PAYMENTS,55689000
SHEFFIELD CITY COUNCIL,PEOPLE,14009242034,PURCHASING LEARNING DISABILITI,9190004,DIRECT PAYMENTS,03/10/2017,J2042755,"2,539.72",CITIZENSHIP FIRST,CT9999DIRPY,CAREFIRST DIRECT PAYMENTS,55689000
SHEFFIELD CITY COUNCIL,PEOPLE,14009242034,PURCHASING LEARNING DISABILITI,9190004,DIRECT PAYMENTS,03/10/2017,J2042755,"2,744.84",CITIZENSHIP FIRST,CT9999DIRPY,CAREFIRST DIRECT PAYMENTS,55689000
SHEFFIELD CITY COUNCIL,PEOPLE,14009242034,PURCHASING LEARNING DISABILITI,9190004,DIRECT PAYMENTS,03/10/2017,J2042755,"2,904.68",CITIZENSHIP FIRST,CT9999DIRPY,CAREFIRST DIRECT PAYMENTS,55689000
SHEFFIELD CITY COUNCIL,PEOPLE,14009242034,PURCHASING LEARNING DISABILITI,9190004,DIRECT PAYMENTS,03/10/2017,J2042755,"3,337.44",CITIZENSHIP FIRST,CT9999DIRPY,CAREFIRST DIRECT PAYMENTS,55689000
SHEFFIELD CITY COUNCIL,PEOPLE,14009346039,ADULT SOCIAL CARE PURCHASING,9190004,DIRECT PAYMENTS,03/10/2017,J2042755,"3,411.52",CITIZENSHIP FIRST,CT9999DIRPY,CAREFIRST DIRECT PAYMENTS,55689000
SHEFFIELD CITY COUNCIL,PEOPLE,14009242034,PURCHASING LEARNING DISABILITI,9190004,DIRECT PAYMENTS,03/10/2017,J2042755,"4,094.76",CITIZENSHIP FIRST,CT9999DIRPY,CAREFIRST DIRECT PAYMENTS,55689000
SHEFFIELD CITY COUNCIL,PEOPLE,14009242034,PURCHASING LEARNING DISABILITI,9190004,DIRECT PAYMENTS,03/10/2017,J2042755,"4,230.88",CITIZENSHIP FIRST,CT9999DIRPY,CAREFIRST DIRECT PAYMENTS,55689000
SHEFFIELD CITY COUNCIL,PEOPLE,14009242034,PURCHASING LEARNING DISABILITI,9190004,DIRECT PAYMENTS,03/10/2017,J2042755,"4,741.60",CITIZENSHIP FIRST,CT9999DIRPY,CAREFIRST DIRECT PAYMENTS,55689000
SHEFFIELD CITY COUNCIL,PEOPLE,14009242034,PURCHASING LEARNING DISABILITI,9190004,DIRECT PAYMENTS,03/10/2017,J2042755,"6,558.16",CITIZENSHIP FIRST,CT9999DIRPY,CAREFIRST DIRECT PAYMENTS,55689000
SHEFFIELD CITY COUNCIL,PEOPLE,14009242034,PURCHASING LEARNING DISABILITI,9190004,DIRECT PAYMENTS,03/10/2017,J2042755,"8,067.72",CITIZENSHIP FIRST,CT9999DIRPY,CAREFIRST DIRECT PAYMENTS,55689000
SHEFFIELD CITY COUNCIL,PEOPLE,14009242034,PURCHASING LEARNING DISABILITI,4260008,DIRECT PAYMENTS,03/10/2017,J2042755,-143.84,REDACTED PERSONAL DATA,CT9999DIRPY,CAREFIRST DIRECT PAYMENTS,49074400
SHEFFIELD CITY COUNCIL,PEOPLE,14009242034,PURCHASING LEARNING DISABILITI,9190004,DIRECT PAYMENTS,03/10/2017,J2042755,"1,160.24",REDACTED PERSONAL DATA,CT9999DIRPY,CAREFIRST DIRECT PAYMENTS,49074400
SHEFFIELD CITY COUNCIL,PEOPLE,14009242034,PURCHASING LEARNING DISABILITI,4260008,DIRECT PAYMENTS,03/10/2017,J2042755,-183.68,REDACTED PERSONAL DATA,CT9999DIRPY,CAREFIRST DIRECT PAYMENTS,45644600
SHEFFIELD CITY COUNCIL,PEOPLE,14009242034,PURCHASING LEARNING DISABILITI,9190004,DIRECT PAYMENTS,03/10/2017,J2042755,"1,656.40",REDACTED PERSONAL DATA,CT9999DIRPY,CAREFIRST DIRECT PAYMENTS,45644600
SHEFFIELD CITY COUNCIL,PEOPLE,14009242034,PURCHASING LEARNING DISABILITI,9190007,FUNDED HOME SUPPORT,03/10/2017,J2042755,340.28,REDACTED PERSONAL DATA,CT9999DIRPY,CAREFIRST DIRECT PAYMENTS,47115600
SHEFFIELD CITY COUNCIL,PEOPLE,14009242034,PURCHASING LEARNING DISABILITI,4260008,DIRECT PAYMENTS,03/10/2017,J2042755,-151.76,REDACTED PERSONAL DATA,CT9999DIRPY,CAREFIRST DIRECT PAYMENTS,47130500
SHEFFIELD CITY COUNCIL,PEOPLE,14009242034,PURCHASING LEARNING DISABILITI,9190004,DIRECT PAYMENTS,03/10/2017,J2042755,"1,552.16",REDACTED PERSONAL DATA,CT9999DIRPY,CAREFIRST DIRECT PAYMENTS,47130500
SHEFFIELD CITY COUNCIL,PEOPLE,14009346039,ADULT SOCIAL CARE PURCHASING,4260008,DIRECT PAYMENTS,03/10/2017,J2042755,-347.24,CUSTOM HOME CARE LTD,CT9999DIRPY,CAREFIRST DIRECT PAYMENTS,63052200
SHEFFIELD CITY COUNCIL,PEOPLE,14009346039,ADULT SOCIAL CARE PURCHASING,9190004,DIRECT PAYMENTS,03/10/2017,J2042755,382.48,CUSTOM HOME CARE LTD,CT9999DIRPY,CAREFIRST DIRECT PAYMENTS,63052200
SHEFFIELD CITY COUNCIL,PEOPLE,14009346039,ADULT SOCIAL CARE PURCHASING,9190004,DIRECT PAYMENTS,03/10/2017,J2042755,412.80,CUSTOM HOME CARE LTD,CT9999DIRPY,CAREFIRST DIRECT PAYMENTS,63052200
SHEFFIELD CITY COUNCIL,PEOPLE,14009346039,ADULT SOCIAL CARE PURCHASING,4260008,DIRECT PAYMENTS,03/10/2017,J2042755,-366.92,REDACTED PERSONAL DATA,CT9999DIRPY,CAREFIRST DIRECT PAYMENTS,34431600
SHEFFIELD CITY COUNCIL,PEOPLE,14009346039,ADULT SOCIAL CARE PURCHASING,9190004,DIRECT PAYMENTS,03/10/2017,J2042755,"1,048.48",REDACTED PERSONAL DATA,CT9999DIRPY,CAREFIRST DIRECT PAYMENTS,34431600
SHEFFIELD CITY COUNCIL,PEOPLE,14009242034,PURCHASING LEARNING DISABILITI,4260008,DIRECT PAYMENTS,03/10/2017,J2042755,-167.92,REDACTED PERSONAL DATA,CT9999DIRPY,CAREFIRST DIRECT PAYMENTS,43712200
SHEFFIELD CITY COUNCIL,PEOPLE,14009242034,PURCHASING LEARNING DISABILITI,9190004,DIRECT PAYMENTS,03/10/2017,J2042755,399.36,REDACTED PERSONAL DATA,CT9999DIRPY,CAREFIRST DIRECT PAYMENTS,43712200
SHEFFIELD CITY COUNCIL,PEOPLE,14009346039,ADULT SOCIAL CARE PURCHASING,9190004,DIRECT PAYMENTS,03/10/2017,J2042755,"3,675.12",REDACTED PERSONAL DATA,CT9999DIRPY,CAREFIRST DIRECT PAYMENTS,39895600
SHEFFIELD CITY COUNCIL,PEOPLE,14009242034,PURCHASING LEARNING DISABILITI,4260008,DIRECT PAYMENTS,03/10/2017,J2042755,-190.92,REDACTED PERSONAL DATA,CT9999DIRPY,CAREFIRST DIRECT PAYMENTS,46598700
SHEFFIELD CITY COUNCIL,PEOPLE,14009242034,PURCHASING LEARNING DISABILITI,9190004,DIRECT PAYMENTS,03/10/2017,J2042755,"3,505.16",REDACTED PERSONAL DATA,CT9999DIRPY,CAREFIRST DIRECT PAYMENTS,46598700
SHEFFIELD CITY COUNCIL,PEOPLE,14009242034,PURCHASING LEARNING DISABILITI,4260008,DIRECT PAYMENTS,03/10/2017,J2042755,-102.88,REDACTED PERSONAL DATA,CT9999DIRPY,CAREFIRST DIRECT PAYMENTS,44940800
SHEFFIELD CITY COUNCIL,PEOPLE,14009242034,PURCHASING LEARNING DISABILITI,9190004,DIRECT PAYMENTS,03/10/2017,J2042755,869.12,REDACTED PERSONAL DATA,CT9999DIRPY,CAREFIRST DIRECT PAYMENTS,44940800
SHEFFIELD CITY COUNCIL,PEOPLE,14009242034,PURCHASING LEARNING DISABILITI,4260008,DIRECT PAYMENTS,03/10/2017,J2042755,-139.32,REDACTED PERSONAL DATA,CT9999DIRPY,CAREFIRST DIRECT PAYMENTS,47483600
SHEFFIELD CITY COUNCIL,PEOPLE,14009242034,PURCHASING LEARNING DISABILITI,9190004,DIRECT PAYMENTS,03/10/2017,J2042755,802.36,REDACTED PERSONAL DATA,CT9999DIRPY,CAREFIRST DIRECT PAYMENTS,47483600
SHEFFIELD CITY COUNCIL,PEOPLE,14009242034,PURCHASING LEARNING DISABILITI,9190004,DIRECT PAYMENTS,03/10/2017,J2042755,621.92,REDACTED PERSONAL DATA,CT9999DIRPY,CAREFIRST DIRECT PAYMENTS,52653600
SHEFFIELD CITY COUNCIL,PEOPLE,14009346039,ADULT SOCIAL CARE PURCHASING,4260008,DIRECT PAYMENTS,03/10/2017,J2042755,-370.32,REDACTED PERSONAL DATA,CT9999DIRPY,CAREFIRST DIRECT PAYMENTS,47408800
SHEFFIELD CITY COUNCIL,PEOPLE,14009346039,ADULT SOCIAL CARE PURCHASING,9190007,FUNDED HOME SUPPORT,03/10/2017,J2042755,746.88,REDACTED PERSONAL DATA,CT9999DIRPY,CAREFIRST DIRECT PAYMENTS,47408800
SHEFFIELD CITY COUNCIL,PEOPLE,14009346039,ADULT SOCIAL CARE PURCHASING,9190004,DIRECT PAYMENTS,03/10/2017,J2042755,"2,389.12",REDACTED PERSONAL DATA,CT9999DIRPY,CAREFIRST DIRECT PAYMENTS,47408800
SHEFFIELD CITY COUNCIL,PEOPLE,14009242034,PURCHASING LEARNING DISABILITI,4260008,DIRECT PAYMENTS,03/10/2017,J2042755,-85.48,REDACTED PERSONAL DATA,CT9999DIRPY,CAREFIRST DIRECT PAYMENTS,52099000
SHEFFIELD CITY COUNCIL,PEOPLE,14009242034,PURCHASING LEARNING DISABILITI,9190004,DIRECT PAYMENTS,03/10/2017,J2042755,"1,271.20",REDACTED PERSONAL DATA,CT9999DIRPY,CAREFIRST DIRECT PAYMENTS,52099000
SHEFFIELD CITY COUNCIL,PEOPLE,14009346039,ADULT SOCIAL CARE PURCHASING,9190007,FUNDED HOME SUPPORT,03/10/2017,J2042755,564.52,REDACTED PERSONAL DATA,CT9999DIRPY,CAREFIRST DIRECT PAYMENTS,41775600
SHEFFIELD CITY COUNCIL,PEOPLE,14009346039,ADULT SOCIAL CARE PURCHASING,9190004,DIRECT PAYMENTS,03/10/2017,J2042755,"3,041.64",REDACTED PERSONAL DATA,CT9999DIRPY,CAREFIRST DIRECT PAYMENTS,41775600
SHEFFIELD CITY COUNCIL,PEOPLE,14008048007,PUBLIC HEALTH DIRECT PAYMENTS,9190007,FUNDED HOME SUPPORT,03/10/2017,J2042755,689.44,DD PAYROLL SERVICES,CT9999DIRPY,CAREFIRST DIRECT PAYMENTS,64205800
SHEFFIELD CITY COUNCIL,PEOPLE,14008048007,PUBLIC HEALTH DIRECT PAYMENTS,9190004,DIRECT PAYMENTS,03/10/2017,J2042755,"1,225.24",DD PAYROLL SERVICES,CT9999DIRPY,CAREFIRST DIRECT PAYMENTS,64205800
SHEFFIELD CITY COUNCIL,PEOPLE,14008048007,PUBLIC HEALTH DIRECT PAYMENTS,9190004,DIRECT PAYMENTS,03/10/2017,J2042755,"3,585.20",DD PAYROLL SERVICES,CT9999DIRPY,CAREFIRST DIRECT PAYMENTS,64205800
SHEFFIELD CITY COUNCIL,PEOPLE,14009346039,ADULT SOCIAL CARE PURCHASING,4260008,DIRECT PAYMENTS,03/10/2017,J2042755,-368.88,REDACTED PERSONAL DATA,CT9999DIRPY,CAREFIRST DIRECT PAYMENTS,44829000
SHEFFIELD CITY COUNCIL,PEOPLE,14009346039,ADULT SOCIAL CARE PURCHASING,9190004,DIRECT PAYMENTS,03/10/2017,J2042755,"1,091.44",REDACTED PERSONAL DATA,CT9999DIRPY,CAREFIRST DIRECT PAYMENTS,44829000
SHEFFIELD CITY COUNCIL,PEOPLE,14009242034,PURCHASING LEARNING DISABILITI,4260008,DIRECT PAYMENTS,03/10/2017,J2042755,-125.00,REDACTED PERSONAL DATA,CT9999DIRPY,CAREFIRST DIRECT PAYMENTS,43299700
SHEFFIELD CITY COUNCIL,PEOPLE,14009242034,PURCHASING LEARNING DISABILITI,9190004,DIRECT PAYMENTS,03/10/2017,J2042755,834.48,REDACTED PERSONAL DATA,CT9999DIRPY,CAREFIRST DIRECT PAYMENTS,43299700
SHEFFIELD CITY COUNCIL,PEOPLE,14009346039,ADULT SOCIAL CARE PURCHASING,9190007,FUNDED HOME SUPPORT,03/10/2017,J2042755,"1,914.80",REDACTED PERSONAL DATA,CT9999DIRPY,CAREFIRST DIRECT PAYMENTS,43712100
SHEFFIELD CITY COUNCIL,PEOPLE,14009346039,ADULT SOCIAL CARE PURCHASING,4260008,DIRECT PAYMENTS,03/10/2017,J2042755,-119.28,REDACTED PERSONAL DATA,CT9999DIRPY,CAREFIRST DIRECT PAYMENTS,48594500
SHEFFIELD CITY COUNCIL,PEOPLE,14009346039,ADULT SOCIAL CARE PURCHASING,9190004,DIRECT PAYMENTS,03/10/2017,J2042755,284.96,REDACTED PERSONAL DATA,CT9999DIRPY,CAREFIRST DIRECT PAYMENTS,48594500
SHEFFIELD CITY COUNCIL,PEOPLE,14009346039,ADULT SOCIAL CARE PURCHASING,4260008,DIRECT PAYMENTS,03/10/2017,J2042755,-359.56,REDACTED PERSONAL DATA,CT9999DIRPY,CAREFIRST DIRECT PAYMENTS,52277300
SHEFFIELD CITY COUNCIL,PEOPLE,14009346039,ADULT SOCIAL CARE PURCHASING,9190004,DIRECT PAYMENTS,03/10/2017,J2042755,475.40,REDACTED PERSONAL DATA,CT9999DIRPY,CAREFIRST DIRECT PAYMENTS,52277300
SHEFFIELD CITY COUNCIL,PEOPLE,14009346039,ADULT SOCIAL CARE PURCHASING,4260008,DIRECT PAYMENTS,03/10/2017,J2042755,-175.00,REDACTED PERSONAL DATA,CT9999DIRPY,CAREFIRST DIRECT PAYMENTS,58457000
SHEFFIELD CITY COUNCIL,PEOPLE,14009346039,ADULT SOCIAL CARE PURCHASING,9190004,DIRECT PAYMENTS,03/10/2017,J2042755,"1,041.20",REDACTED PERSONAL DATA,CT9999DIRPY,CAREFIRST DIRECT PAYMENTS,58457000
SHEFFIELD CITY COUNCIL,PEOPLE,14009346039,ADULT SOCIAL CARE PURCHASING,4260008,DIRECT PAYMENTS,03/10/2017,J2042755,-19.40,REDACTED PERSONAL DATA,CT9999DIRPY,CAREFIRST DIRECT PAYMENTS,62898500
SHEFFIELD CITY COUNCIL,PEOPLE,14009346039,ADULT SOCIAL CARE PURCHASING,4260008,DIRECT PAYMENTS,03/10/2017,J2042755,-19.40,REDACTED PERSONAL DATA,CT9999DIRPY,CAREFIRST DIRECT PAYMENTS,62898500
SHEFFIELD CITY COUNCIL,PEOPLE,14009346039,ADULT SOCIAL CARE PURCHASING,9190004,DIRECT PAYMENTS,03/10/2017,J2042755,825.60,REDACTED PERSONAL DATA,CT9999DIRPY,CAREFIRST DIRECT PAYMENTS,62898500
SHEFFIELD CITY COUNCIL,PEOPLE,14009346039,ADULT SOCIAL CARE PURCHASING,9190004,DIRECT PAYMENTS,03/10/2017,J2042755,"2,605.80",REDACTED PERSONAL DATA,CT9999DIRPY,CAREFIRST DIRECT PAYMENTS,62898500
SHEFFIELD CITY COUNCIL,PEOPLE,14009242034,PURCHASING LEARNING DISABILITI,4260008,DIRECT PAYMENTS,03/10/2017,J2042755,-219.76,REDACTED PERSONAL DATA,CT9999DIRPY,CAREFIRST DIRECT PAYMENTS,43871900
SHEFFIELD CITY COUNCIL,PEOPLE,14009242034,PURCHASING LEARNING DISABILITI,9190004,DIRECT PAYMENTS,03/10/2017,J2042755,"1,359.72",REDACTED PERSONAL DATA,CT9999DIRPY,CAREFIRST DIRECT PAYMENTS,43871900
SHEFFIELD CITY COUNCIL,PEOPLE,13002439148,DIRECT PAYMENTS,9190004,DIRECT PAYMENTS,03/10/2017,J2042755,"1,051.80",REDACTED PERSONAL DATA,CT9999DIRPY,CAREFIRST DIRECT PAYMENTS,50100500
SHEFFIELD CITY COUNCIL,PEOPLE,14009346039,ADULT SOCIAL CARE PURCHASING,9190004,DIRECT PAYMENTS,03/10/2017,J2042755,977.32,REDACTED PERSONAL DATA,CT9999DIRPY,CAREFIRST DIRECT PAYMENTS,52513600
SHEFFIELD CITY COUNCIL,PEOPLE,14009346039,ADULT SOCIAL CARE PURCHASING,4260008,DIRECT PAYMENTS,03/10/2017,J2042755,"-1,500.00",REDACTED PERSONAL DATA,CT9999DIRPY,CAREFIRST DIRECT PAYMENTS,51150600
SHEFFIELD CITY COUNCIL,PEOPLE,14009346039,ADULT SOCIAL CARE PURCHASING,9190004,DIRECT PAYMENTS,03/10/2017,J2042755,"1,967.44",REDACTED PERSONAL DATA,CT9999DIRPY,CAREFIRST DIRECT PAYMENTS,51150600
SHEFFIELD CITY COUNCIL,PEOPLE,14031444001,PURCHASING,9190004,DIRECT PAYMENTS,03/10/2017,J2042755,695.64,REDACTED PERSONAL DATA,CT9999DIRPY,CAREFIRST DIRECT PAYMENTS,46173900
SHEFFIELD CITY COUNCIL,PEOPLE,14009242034,PURCHASING LEARNING DISABILITI,9190004,DIRECT PAYMENTS,03/10/2017,J2042755,867.12,REDACTED PERSONAL DATA,CT9999DIRPY,CAREFIRST DIRECT PAYMENTS,62579300
SHEFFIELD CITY COUNCIL,PEOPLE,14009346039,ADULT SOCIAL CARE PURCHASING,4260008,DIRECT PAYMENTS,03/10/2017,J2042755,-401.68,EXCELL HOME CARE LIMITED,CT9999DIRPY,CAREFIRST DIRECT PAYMENTS,57711500
SHEFFIELD CITY COUNCIL,PEOPLE,14009346039,ADULT SOCIAL CARE PURCHASING,4260008,DIRECT PAYMENTS,03/10/2017,J2042755,-244.32,EXCELL HOME CARE LIMITED,CT9999DIRPY,CAREFIRST DIRECT PAYMENTS,57711500
SHEFFIELD CITY COUNCIL,PEOPLE,14009346039,ADULT SOCIAL CARE PURCHASING,9190004,DIRECT PAYMENTS,03/10/2017,J2042755,734.48,EXCELL HOME CARE LIMITED,CT9999DIRPY,CAREFIRST DIRECT PAYMENTS,57711500
SHEFFIELD CITY COUNCIL,PEOPLE,14009346039,ADULT SOCIAL CARE PURCHASING,9190004,DIRECT PAYMENTS,03/10/2017,J2042755,933.60,EXCELL HOME CARE LIMITED,CT9999DIRPY,CAREFIRST DIRECT PAYMENTS,57711500
SHEFFIELD CITY COUNCIL,PEOPLE,14009346039,ADULT SOCIAL CARE PURCHASING,9190004,DIRECT PAYMENTS,03/10/2017,J2042755,990.00,EXCELL HOME CARE LIMITED,CT9999DIRPY,CAREFIRST DIRECT PAYMENTS,57711500
SHEFFIELD CITY COUNCIL,PEOPLE,14009346039,ADULT SOCIAL CARE PURCHASING,9190004,DIRECT PAYMENTS,03/10/2017,J2042755,"1,047.52",EXCELL HOME CARE LIMITED,CT9999DIRPY,CAREFIRST DIRECT PAYMENTS,57711500
SHEFFIELD CITY COUNCIL,PEOPLE,14009346039,ADULT SOCIAL CARE PURCHASING,9190004,DIRECT PAYMENTS,03/10/2017,J2042755,"1,869.36",EXCELL HOME CARE LIMITED,CT9999DIRPY,CAREFIRST DIRECT PAYMENTS,57711500
SHEFFIELD CITY COUNCIL,PEOPLE,14009346039,ADULT SOCIAL CARE PURCHASING,4260008,DIRECT PAYMENTS,03/10/2017,J2042755,-199.76,REDACTED PERSONAL DATA,CT9999DIRPY,CAREFIRST DIRECT PAYMENTS,63175100
SHEFFIELD CITY COUNCIL,PEOPLE,14009346039,ADULT SOCIAL CARE PURCHASING,9190004,DIRECT PAYMENTS,03/10/2017,J2042755,"1,050.00",REDACTED PERSONAL DATA,CT9999DIRPY,CAREFIRST DIRECT PAYMENTS,63175100
SHEFFIELD CITY COUNCIL,PEOPLE,14009242034,PURCHASING LEARNING DISABILITI,4260008,DIRECT PAYMENTS,03/10/2017,J2042755,-106.40,REDACTED PERSONAL DATA,CT9999DIRPY,CAREFIRST DIRECT PAYMENTS,45442800
SHEFFIELD CITY COUNCIL,PEOPLE,14009346039,ADULT SOCIAL CARE PURCHASING,9190004,DIRECT PAYMENTS,03/10/2017,J2042755,"1,034.04",REDACTED PERSONAL DATA,CT9999DIRPY,CAREFIRST DIRECT PAYMENTS,40893900
SHEFFIELD CITY COUNCIL,PEOPLE,14009346039,ADULT SOCIAL CARE PURCHASING,4260008,DIRECT PAYMENTS,03/10/2017,J2042755,-205.56,REDACTED PERSONAL DATA,CT9999DIRPY,CAREFIRST DIRECT PAYMENTS,45654700
SHEFFIELD CITY COUNCIL,PEOPLE,14009346039,ADULT SOCIAL CARE PURCHASING,9190004,DIRECT PAYMENTS,03/10/2017,J2042755,747.08,REDACTED PERSONAL DATA,CT9999DIRPY,CAREFIRST DIRECT PAYMENTS,45654700
SHEFFIELD CITY COUNCIL,PEOPLE,14009346039,ADULT SOCIAL CARE PURCHASING,4260008,DIRECT PAYMENTS,03/10/2017,J2042755,-337.24,REDACTED PERSONAL DATA,CT9999DIRPY,CAREFIRST DIRECT PAYMENTS,36972500
SHEFFIELD CITY COUNCIL,PEOPLE,14009346039,ADULT SOCIAL CARE PURCHASING,9190004,DIRECT PAYMENTS,03/10/2017,J2042755,693.52,REDACTED PERSONAL DATA,CT9999DIRPY,CAREFIRST DIRECT PAYMENTS,36972500
SHEFFIELD CITY COUNCIL,PEOPLE,13002439148,DIRECT PAYMENTS,9190004,DIRECT PAYMENTS,03/10/2017,J2042755,300.72,REDACTED PERSONAL DATA,CT9999DIRPY,CAREFIRST DIRECT PAYMENTS,58030300
SHEFFIELD CITY COUNCIL,PEOPLE,14009242034,PURCHASING LEARNING DISABILITI,4260008,DIRECT PAYMENTS,03/10/2017,J2042755,-209.48,REDACTED PERSONAL DATA,CT9999DIRPY,CAREFIRST DIRECT PAYMENTS,53005600
SHEFFIELD CITY COUNCIL,PEOPLE,14009242034,PURCHASING LEARNING DISABILITI,9190004,DIRECT PAYMENTS,03/10/2017,J2042755,672.64,REDACTED PERSONAL DATA,CT9999DIRPY,CAREFIRST DIRECT PAYMENTS,53005600
SHEFFIELD CITY COUNCIL,PEOPLE,14009242034,PURCHASING LEARNING DISABILITI,4260008,DIRECT PAYMENTS,03/10/2017,J2042755,-289.60,REDACTED PERSONAL DATA,CT9999DIRPY,CAREFIRST DIRECT PAYMENTS,47335300
SHEFFIELD CITY COUNCIL,PEOPLE,14009242034,PURCHASING LEARNING DISABILITI,9190004,DIRECT PAYMENTS,03/10/2017,J2042755,569.40,REDACTED PERSONAL DATA,CT9999DIRPY,CAREFIRST DIRECT PAYMENTS,47335300
SHEFFIELD CITY COUNCIL,PEOPLE,14008048007,PUBLIC HEALTH DIRECT PAYMENTS,9190004,DIRECT PAYMENTS,03/10/2017,J2042755,900.24,REDACTED PERSONAL DATA,CT9999DIRPY,CAREFIRST DIRECT PAYMENTS,63560500
SHEFFIELD CITY COUNCIL,PEOPLE,14009242034,PURCHASING LEARNING DISABILITI,4260008,DIRECT PAYMENTS,03/10/2017,J2042755,-16.20,REDACTED PERSONAL DATA,CT9999DIRPY,CAREFIRST DIRECT PAYMENTS,45306900
SHEFFIELD CITY COUNCIL,PEOPLE,14009242034,PURCHASING LEARNING DISABILITI,9190004,DIRECT PAYMENTS,03/10/2017,J2042755,319.12,REDACTED PERSONAL DATA,CT9999DIRPY,CAREFIRST DIRECT PAYMENTS,45306900
SHEFFIELD CITY COUNCIL,PEOPLE,14009346039,ADULT SOCIAL CARE PURCHASING,9190004,DIRECT PAYMENTS,03/10/2017,J2042755,"2,520.00",REDACTED PERSONAL DATA,CT9999DIRPY,CAREFIRST DIRECT PAYMENTS,46476200
SHEFFIELD CITY COUNCIL,PEOPLE,14009242034,PURCHASING LEARNING DISABILITI,4260008,DIRECT PAYMENTS,03/10/2017,J2042755,-415.04,REDACTED PERSONAL DATA,CT9999DIRPY,CAREFIRST DIRECT PAYMENTS,47279600
SHEFFIELD CITY COUNCIL,PEOPLE,14009242034,PURCHASING LEARNING DISABILITI,9190007,FUNDED HOME SUPPORT,03/10/2017,J2042755,399.88,REDACTED PERSONAL DATA,CT9999DIRPY,CAREFIRST DIRECT PAYMENTS,47279600
SHEFFIELD CITY COUNCIL,PEOPLE,14009242034,PURCHASING LEARNING DISABILITI,9190004,DIRECT PAYMENTS,03/10/2017,J2042755,"8,394.92",REDACTED PERSONAL DATA,CT9999DIRPY,CAREFIRST DIRECT PAYMENTS,47279600
SHEFFIELD CITY COUNCIL,PEOPLE,14009242034,PURCHASING LEARNING DISABILITI,9190004,DIRECT PAYMENTS,03/10/2017,J2042755,619.84,REDACTED PERSONAL DATA,CT9999DIRPY,CAREFIRST DIRECT PAYMENTS,58479500
SHEFFIELD CITY COUNCIL,PEOPLE,14009242034,PURCHASING LEARNING DISABILITI,4260008,DIRECT PAYMENTS,03/10/2017,J2042755,-101.60,REDACTED PERSONAL DATA,CT9999DIRPY,CAREFIRST DIRECT PAYMENTS,53540700
SHEFFIELD CITY COUNCIL,PEOPLE,14009242034,PURCHASING LEARNING DISABILITI,9190004,DIRECT PAYMENTS,03/10/2017,J2042755,"1,799.64",REDACTED PERSONAL DATA,CT9999DIRPY,CAREFIRST DIRECT PAYMENTS,53540700
SHEFFIELD CITY COUNCIL,PEOPLE,14009346039,ADULT SOCIAL CARE PURCHASING,4260008,DIRECT PAYMENTS,03/10/2017,J2042755,-394.56,REDACTED PERSONAL DATA,CT9999DIRPY,CAREFIRST DIRECT PAYMENTS,36978200
SHEFFIELD CITY COUNCIL,PEOPLE,14009346039,ADULT SOCIAL CARE PURCHASING,9190004,DIRECT PAYMENTS,03/10/2017,J2042755,"2,167.60",REDACTED PERSONAL DATA,CT9999DIRPY,CAREFIRST DIRECT PAYMENTS,36978200
SHEFFIELD CITY COUNCIL,PEOPLE,14009242034,PURCHASING LEARNING DISABILITI,9190004,DIRECT PAYMENTS,03/10/2017,J2042755,"2,277.68",REDACTED PERSONAL DATA,CT9999DIRPY,CAREFIRST DIRECT PAYMENTS,41069800
SHEFFIELD CITY COUNCIL,PEOPLE,14009346039,ADULT SOCIAL CARE PURCHASING,9190004,DIRECT PAYMENTS,03/10/2017,J2042755,644.00,REDACTED PERSONAL DATA,CT9999DIRPY,CAREFIRST DIRECT PAYMENTS,42060100
SHEFFIELD CITY COUNCIL,PEOPLE,13002439148,DIRECT PAYMENTS,9190004,DIRECT PAYMENTS,03/10/2017,J2042755,263.20,REDACTED PERSONAL DATA,CT9999DIRPY,CAREFIRST DIRECT PAYMENTS,47240500
SHEFFIELD CITY COUNCIL,PEOPLE,13002439148,DIRECT PAYMENTS,9190004,DIRECT PAYMENTS,03/10/2017,J2042755,359.00,REDACTED PERSONAL DATA,CT9999DIRPY,CAREFIRST DIRECT PAYMENTS,58251200
SHEFFIELD CITY COUNCIL,PEOPLE,14009242034,PURCHASING LEARNING DISABILITI,9190007,FUNDED HOME SUPPORT,03/10/2017,J2042755,"1,097.76",REDACTED PERSONAL DATA,CT9999DIRPY,CAREFIRST DIRECT PAYMENTS,53277600
SHEFFIELD CITY COUNCIL,PEOPLE,14009242034,PURCHASING LEARNING DISABILITI,9190004,DIRECT PAYMENTS,03/10/2017,J2042755,"1,131.52",REDACTED PERSONAL DATA,CT9999DIRPY,CAREFIRST DIRECT PAYMENTS,53277600
SHEFFIELD CITY COUNCIL,PEOPLE,14009242034,PURCHASING LEARNING DISABILITI,4260008,DIRECT PAYMENTS,03/10/2017,J2042755,-174.68,REDACTED PERSONAL DATA,CT9999DIRPY,CAREFIRST DIRECT PAYMENTS,41848800
SHEFFIELD CITY COUNCIL,PEOPLE,14009242034,PURCHASING LEARNING DISABILITI,9190004,DIRECT PAYMENTS,03/10/2017,J2042755,"1,393.28",REDACTED PERSONAL DATA,CT9999DIRPY,CAREFIRST DIRECT PAYMENTS,41848800
SHEFFIELD CITY COUNCIL,PEOPLE,14009242034,PURCHASING LEARNING DISABILITI,4260008,DIRECT PAYMENTS,03/10/2017,J2042755,-146.04,REDACTED PERSONAL DATA,CT9999DIRPY,CAREFIRST DIRECT PAYMENTS,42398500
SHEFFIELD CITY COUNCIL,PEOPLE,14009242034,PURCHASING LEARNING DISABILITI,9190004,DIRECT PAYMENTS,03/10/2017,J2042755,"1,709.52",REDACTED PERSONAL DATA,CT9999DIRPY,CAREFIRST DIRECT PAYMENTS,42398500
SHEFFIELD CITY COUNCIL,PEOPLE,14009242034,PURCHASING LEARNING DISABILITI,4260008,DIRECT PAYMENTS,03/10/2017,J2042755,-37.48,REDACTED PERSONAL DATA,CT9999DIRPY,CAREFIRST DIRECT PAYMENTS,49214400
SHEFFIELD CITY COUNCIL,PEOPLE,14009242034,PURCHASING LEARNING DISABILITI,9190004,DIRECT PAYMENTS,03/10/2017,J2042755,"3,335.48",REDACTED PERSONAL DATA,CT9999DIRPY,CAREFIRST DIRECT PAYMENTS,49214400
SHEFFIELD CITY COUNCIL,PEOPLE,14009346039,ADULT SOCIAL CARE PURCHASING,4260008,DIRECT PAYMENTS,03/10/2017,J2042755,-155.32,REDACTED PERSONAL DATA,CT9999DIRPY,CAREFIRST DIRECT PAYMENTS,48889800
SHEFFIELD CITY COUNCIL,PEOPLE,14009346039,ADULT SOCIAL CARE PURCHASING,9190004,DIRECT PAYMENTS,03/10/2017,J2042755,982.96,REDACTED PERSONAL DATA,CT9999DIRPY,CAREFIRST DIRECT PAYMENTS,48889800
SHEFFIELD CITY COUNCIL,PEOPLE,14009346039,ADULT SOCIAL CARE PURCHASING,4260008,DIRECT PAYMENTS,03/10/2017,J2042755,-342.80,HOME INSTEAD,CT9999DIRPY,CAREFIRST DIRECT PAYMENTS,55882000
SHEFFIELD CITY COUNCIL,PEOPLE,14009346039,ADULT SOCIAL CARE PURCHASING,4260008,DIRECT PAYMENTS,03/10/2017,J2042755,-296.44,HOME INSTEAD,CT9999DIRPY,CAREFIRST DIRECT PAYMENTS,55882000
SHEFFIELD CITY COUNCIL,PEOPLE,14009346039,ADULT SOCIAL CARE PURCHASING,4260008,DIRECT PAYMENTS,03/10/2017,J2042755,-250.84,HOME INSTEAD,CT9999DIRPY,CAREFIRST DIRECT PAYMENTS,55882000
SHEFFIELD CITY COUNCIL,PEOPLE,14009346039,ADULT SOCIAL CARE PURCHASING,9190004,DIRECT PAYMENTS,03/10/2017,J2042755,360.00,HOME INSTEAD,CT9999DIRPY,CAREFIRST DIRECT PAYMENTS,55882000
SHEFFIELD CITY COUNCIL,PEOPLE,14009346039,ADULT SOCIAL CARE PURCHASING,9190004,DIRECT PAYMENTS,03/10/2017,J2042755,407.76,HOME INSTEAD,CT9999DIRPY,CAREFIRST DIRECT PAYMENTS,55882000
SHEFFIELD CITY COUNCIL,PEOPLE,14009346039,ADULT SOCIAL CARE PURCHASING,9190004,DIRECT PAYMENTS,03/10/2017,J2042755,654.88,HOME INSTEAD,CT9999DIRPY,CAREFIRST DIRECT PAYMENTS,55882000
SHEFFIELD CITY COUNCIL,PEOPLE,14009346039,ADULT SOCIAL CARE PURCHASING,9190004,DIRECT PAYMENTS,03/10/2017,J2042755,669.32,HOME INSTEAD,CT9999DIRPY,CAREFIRST DIRECT PAYMENTS,55882000
SHEFFIELD CITY COUNCIL,PEOPLE,14009346039,ADULT SOCIAL CARE PURCHASING,9190004,DIRECT PAYMENTS,03/10/2017,J2042755,864.08,HOME INSTEAD,CT9999DIRPY,CAREFIRST DIRECT PAYMENTS,55882000
SHEFFIELD CITY COUNCIL,PEOPLE,14009346039,ADULT SOCIAL CARE PURCHASING,9190004,DIRECT PAYMENTS,03/10/2017,J2042755,"1,406.72",HOME INSTEAD,CT9999DIRPY,CAREFIRST DIRECT PAYMENTS,55882000
SHEFFIELD CITY COUNCIL,PEOPLE,14009346039,ADULT SOCIAL CARE PURCHASING,9190004,DIRECT PAYMENTS,03/10/2017,J2042755,"2,092.84",HOME INSTEAD,CT9999DIRPY,CAREFIRST DIRECT PAYMENTS,55882000
SHEFFIELD CITY COUNCIL,PEOPLE,14009346039,ADULT SOCIAL CARE PURCHASING,4260008,DIRECT PAYMENTS,03/10/2017,J2042755,-176.08,REDACTED PERSONAL DATA,CT9999DIRPY,CAREFIRST DIRECT PAYMENTS,64187500
SHEFFIELD CITY COUNCIL,PEOPLE,14009346039,ADULT SOCIAL CARE PURCHASING,9190004,DIRECT PAYMENTS,03/10/2017,J2042755,938.00,REDACTED PERSONAL DATA,CT9999DIRPY,CAREFIRST DIRECT PAYMENTS,64187500
SHEFFIELD CITY COUNCIL,PEOPLE,13002439148,DIRECT PAYMENTS,9190004,DIRECT PAYMENTS,03/10/2017,J2042755,"2,791.88",REDACTED PERSONAL DATA,CT9999DIRPY,CAREFIRST DIRECT PAYMENTS,46173500
SHEFFIELD CITY COUNCIL,PEOPLE,14009346039,ADULT SOCIAL CARE PURCHASING,9190004,DIRECT PAYMENTS,03/10/2017,J2042755,"1,706.04",REDACTED PERSONAL DATA,CT9999DIRPY,CAREFIRST DIRECT PAYMENTS,37578000
SHEFFIELD CITY COUNCIL,PEOPLE,14009242034,PURCHASING LEARNING DISABILITI,4260008,DIRECT PAYMENTS,03/10/2017,J2042755,-363.28,IBK INITIATIVES,CT9999DIRPY,CAREFIRST DIRECT PAYMENTS,56108500
SHEFFIELD CITY COUNCIL,PEOPLE,14031444001,PURCHASING,4260008,DIRECT PAYMENTS,03/10/2017,J2042755,-343.76,IBK INITIATIVES,CT9999DIRPY,CAREFIRST DIRECT PAYMENTS,56108500
SHEFFIELD CITY COUNCIL,PEOPLE,14009242034,PURCHASING LEARNING DISABILITI,4260008,DIRECT PAYMENTS,03/10/2017,J2042755,-303.48,IBK INITIATIVES,CT9999DIRPY,CAREFIRST DIRECT PAYMENTS,56108500
SHEFFIELD CITY COUNCIL,PEOPLE,14009242034,PURCHASING LEARNING DISABILITI,4260008,DIRECT PAYMENTS,03/10/2017,J2042755,-288.20,IBK INITIATIVES,CT9999DIRPY,CAREFIRST DIRECT PAYMENTS,56108500
SHEFFIELD CITY COUNCIL,PEOPLE,14009242034,PURCHASING LEARNING DISABILITI,4260008,DIRECT PAYMENTS,03/10/2017,J2042755,-261.44,IBK INITIATIVES,CT9999DIRPY,CAREFIRST DIRECT PAYMENTS,56108500
SHEFFIELD CITY COUNCIL,PEOPLE,14009242034,PURCHASING LEARNING DISABILITI,4260008,DIRECT PAYMENTS,03/10/2017,J2042755,-257.08,IBK INITIATIVES,CT9999DIRPY,CAREFIRST DIRECT PAYMENTS,56108500
SHEFFIELD CITY COUNCIL,PEOPLE,14009242034,PURCHASING LEARNING DISABILITI,4260008,DIRECT PAYMENTS,03/10/2017,J2042755,-239.28,IBK INITIATIVES,CT9999DIRPY,CAREFIRST DIRECT PAYMENTS,56108500
SHEFFIELD CITY COUNCIL,PEOPLE,14009242034,PURCHASING LEARNING DISABILITI,4260008,DIRECT PAYMENTS,03/10/2017,J2042755,-230.76,IBK INITIATIVES,CT9999DIRPY,CAREFIRST DIRECT PAYMENTS,56108500
SHEFFIELD CITY COUNCIL,PEOPLE,14009346039,ADULT SOCIAL CARE PURCHASING,4260008,DIRECT PAYMENTS,03/10/2017,J2042755,-212.04,IBK INITIATIVES,CT9999DIRPY,CAREFIRST DIRECT PAYMENTS,56108500
SHEFFIELD CITY COUNCIL,PEOPLE,14009242034,PURCHASING LEARNING DISABILITI,4260008,DIRECT PAYMENTS,03/10/2017,J2042755,-206.08,IBK INITIATIVES,CT9999DIRPY,CAREFIRST DIRECT PAYMENTS,56108500
SHEFFIELD CITY COUNCIL,PEOPLE,14009242034,PURCHASING LEARNING DISABILITI,4260008,DIRECT PAYMENTS,03/10/2017,J2042755,-169.68,IBK INITIATIVES,CT9999DIRPY,CAREFIRST DIRECT PAYMENTS,56108500
SHEFFIELD CITY COUNCIL,PEOPLE,14009242034,PURCHASING LEARNING DISABILITI,4260008,DIRECT PAYMENTS,03/10/2017,J2042755,-159.72,IBK INITIATIVES,CT9999DIRPY,CAREFIRST DIRECT PAYMENTS,56108500
SHEFFIELD CITY COUNCIL,PEOPLE,14009242034,PURCHASING LEARNING DISABILITI,4260008,DIRECT PAYMENTS,03/10/2017,J2042755,-106.68,IBK INITIATIVES,CT9999DIRPY,CAREFIRST DIRECT PAYMENTS,56108500
SHEFFIELD CITY COUNCIL,PEOPLE,14009346039,ADULT SOCIAL CARE PURCHASING,4260008,DIRECT PAYMENTS,03/10/2017,J2042755,-96.40,IBK INITIATIVES,CT9999DIRPY,CAREFIRST DIRECT PAYMENTS,56108500
SHEFFIELD CITY COUNCIL,PEOPLE,14009242034,PURCHASING LEARNING DISABILITI,4260008,DIRECT PAYMENTS,03/10/2017,J2042755,-73.36,IBK INITIATIVES,CT9999DIRPY,CAREFIRST DIRECT PAYMENTS,56108500
SHEFFIELD CITY COUNCIL,PEOPLE,14009346039,ADULT SOCIAL CARE PURCHASING,4260008,DIRECT PAYMENTS,03/10/2017,J2042755,-44.08,IBK INITIATIVES,CT9999DIRPY,CAREFIRST DIRECT PAYMENTS,56108500
SHEFFIELD CITY COUNCIL,PEOPLE,14009242034,PURCHASING LEARNING DISABILITI,4260008,DIRECT PAYMENTS,03/10/2017,J2042755,-23.60,IBK INITIATIVES,CT9999DIRPY,CAREFIRST DIRECT PAYMENTS,56108500
SHEFFIELD CITY COUNCIL,PEOPLE,13002439148,DIRECT PAYMENTS,9190004,DIRECT PAYMENTS,03/10/2017,J2042755,273.44,IBK INITIATIVES,CT9999DIRPY,CAREFIRST DIRECT PAYMENTS,56108500
SHEFFIELD CITY COUNCIL,PEOPLE,14009346039,ADULT SOCIAL CARE PURCHASING,9190004,DIRECT PAYMENTS,03/10/2017,J2042755,299.32,IBK INITIATIVES,CT9999DIRPY,CAREFIRST DIRECT PAYMENTS,56108500
SHEFFIELD CITY COUNCIL,PEOPLE,14009242034,PURCHASING LEARNING DISABILITI,9190004,DIRECT PAYMENTS,03/10/2017,J2042755,322.92,IBK INITIATIVES,CT9999DIRPY,CAREFIRST DIRECT PAYMENTS,56108500
SHEFFIELD CITY COUNCIL,PEOPLE,13002439148,DIRECT PAYMENTS,9190004,DIRECT PAYMENTS,03/10/2017,J2042755,325.32,IBK INITIATIVES,CT9999DIRPY,CAREFIRST DIRECT PAYMENTS,56108500
SHEFFIELD CITY COUNCIL,PEOPLE,13002439148,DIRECT PAYMENTS,9190004,DIRECT PAYMENTS,03/10/2017,J2042755,331.84,IBK INITIATIVES,CT9999DIRPY,CAREFIRST DIRECT PAYMENTS,56108500
SHEFFIELD CITY COUNCIL,PEOPLE,13002439148,DIRECT PAYMENTS,9190004,DIRECT PAYMENTS,03/10/2017,J2042755,343.32,IBK INITIATIVES,CT9999DIRPY,CAREFIRST DIRECT PAYMENTS,56108500
SHEFFIELD CITY COUNCIL,PEOPLE,13002439148,DIRECT PAYMENTS,9190004,DIRECT PAYMENTS,03/10/2017,J2042755,345.36,IBK INITIATIVES,CT9999DIRPY,CAREFIRST DIRECT PAYMENTS,56108500
SHEFFIELD CITY COUNCIL,PEOPLE,13002439148,DIRECT PAYMENTS,9190004,DIRECT PAYMENTS,03/10/2017,J2042755,345.36,IBK INITIATIVES,CT9999DIRPY,CAREFIRST DIRECT PAYMENTS,56108500
SHEFFIELD CITY COUNCIL,PEOPLE,13002439148,DIRECT PAYMENTS,9190004,DIRECT PAYMENTS,03/10/2017,J2042755,345.36,IBK INITIATIVES,CT9999DIRPY,CAREFIRST DIRECT PAYMENTS,56108500
SHEFFIELD CITY COUNCIL,PEOPLE,13002439148,DIRECT PAYMENTS,9190004,DIRECT PAYMENTS,03/10/2017,J2042755,345.68,IBK INITIATIVES,CT9999DIRPY,CAREFIRST DIRECT PAYMENTS,56108500
SHEFFIELD CITY COUNCIL,PEOPLE,14009242034,PURCHASING LEARNING DISABILITI,9190004,DIRECT PAYMENTS,03/10/2017,J2042755,346.48,IBK INITIATIVES,CT9999DIRPY,CAREFIRST DIRECT PAYMENTS,56108500
SHEFFIELD CITY COUNCIL,PEOPLE,13002439148,DIRECT PAYMENTS,9190004,DIRECT PAYMENTS,03/10/2017,J2042755,352.56,IBK INITIATIVES,CT9999DIRPY,CAREFIRST DIRECT PAYMENTS,56108500
SHEFFIELD CITY COUNCIL,PEOPLE,13002439148,DIRECT PAYMENTS,9190004,DIRECT PAYMENTS,03/10/2017,J2042755,378.24,IBK INITIATIVES,CT9999DIRPY,CAREFIRST DIRECT PAYMENTS,56108500
SHEFFIELD CITY COUNCIL,PEOPLE,13002439148,DIRECT PAYMENTS,9190004,DIRECT PAYMENTS,03/10/2017,J2042755,391.40,IBK INITIATIVES,CT9999DIRPY,CAREFIRST DIRECT PAYMENTS,56108500
SHEFFIELD CITY COUNCIL,PEOPLE,14009346039,ADULT SOCIAL CARE PURCHASING,9190004,DIRECT PAYMENTS,03/10/2017,J2042755,392.36,IBK INITIATIVES,CT9999DIRPY,CAREFIRST DIRECT PAYMENTS,56108500
SHEFFIELD CITY COUNCIL,PEOPLE,14008048007,PUBLIC HEALTH DIRECT PAYMENTS,9190007,FUNDED HOME SUPPORT,03/10/2017,J2042755,392.92,IBK INITIATIVES,CT9999DIRPY,CAREFIRST DIRECT PAYMENTS,56108500
SHEFFIELD CITY COUNCIL,PEOPLE,14009242034,PURCHASING LEARNING DISABILITI,9190004,DIRECT PAYMENTS,03/10/2017,J2042755,401.68,IBK INITIATIVES,CT9999DIRPY,CAREFIRST DIRECT PAYMENTS,56108500
SHEFFIELD CITY COUNCIL,PEOPLE,14009242034,PURCHASING LEARNING DISABILITI,9190007,FUNDED HOME SUPPORT,03/10/2017,J2042755,415.56,IBK INITIATIVES,CT9999DIRPY,CAREFIRST DIRECT PAYMENTS,56108500
SHEFFIELD CITY COUNCIL,PEOPLE,14009346039,ADULT SOCIAL CARE PURCHASING,9190004,DIRECT PAYMENTS,03/10/2017,J2042755,425.24,IBK INITIATIVES,CT9999DIRPY,CAREFIRST DIRECT PAYMENTS,56108500
SHEFFIELD CITY COUNCIL,PEOPLE,14009242034,PURCHASING LEARNING DISABILITI,9190004,DIRECT PAYMENTS,03/10/2017,J2042755,431.88,IBK INITIATIVES,CT9999DIRPY,CAREFIRST DIRECT PAYMENTS,56108500
SHEFFIELD CITY COUNCIL,PEOPLE,13002439148,DIRECT PAYMENTS,9190004,DIRECT PAYMENTS,03/10/2017,J2042755,440.20,IBK INITIATIVES,CT9999DIRPY,CAREFIRST DIRECT PAYMENTS,56108500
SHEFFIELD CITY COUNCIL,PEOPLE,13002439148,DIRECT PAYMENTS,9190004,DIRECT PAYMENTS,03/10/2017,J2042755,440.20,IBK INITIATIVES,CT9999DIRPY,CAREFIRST DIRECT PAYMENTS,56108500
SHEFFIELD CITY COUNCIL,PEOPLE,13002439148,DIRECT PAYMENTS,9190004,DIRECT PAYMENTS,03/10/2017,J2042755,448.96,IBK INITIATIVES,CT9999DIRPY,CAREFIRST DIRECT PAYMENTS,56108500
SHEFFIELD CITY COUNCIL,PEOPLE,14009242034,PURCHASING LEARNING DISABILITI,9190004,DIRECT PAYMENTS,03/10/2017,J2042755,449.32,IBK INITIATIVES,CT9999DIRPY,CAREFIRST DIRECT PAYMENTS,56108500
SHEFFIELD CITY COUNCIL,PEOPLE,14009242034,PURCHASING LEARNING DISABILITI,9190007,FUNDED HOME SUPPORT,03/10/2017,J2042755,474.00,IBK INITIATIVES,CT9999DIRPY,CAREFIRST DIRECT PAYMENTS,56108500
SHEFFIELD CITY COUNCIL,PEOPLE,14009242034,PURCHASING LEARNING DISABILITI,9190004,DIRECT PAYMENTS,03/10/2017,J2042755,521.60,IBK INITIATIVES,CT9999DIRPY,CAREFIRST DIRECT PAYMENTS,56108500
SHEFFIELD CITY COUNCIL,PEOPLE,14009346039,ADULT SOCIAL CARE PURCHASING,9190004,DIRECT PAYMENTS,03/10/2017,J2042755,526.44,IBK INITIATIVES,CT9999DIRPY,CAREFIRST DIRECT PAYMENTS,56108500
SHEFFIELD CITY COUNCIL,PEOPLE,14009346039,ADULT SOCIAL CARE PURCHASING,9190004,DIRECT PAYMENTS,03/10/2017,J2042755,539.12,IBK INITIATIVES,CT9999DIRPY,CAREFIRST DIRECT PAYMENTS,56108500
SHEFFIELD CITY COUNCIL,PEOPLE,14009346039,ADULT SOCIAL CARE PURCHASING,9190004,DIRECT PAYMENTS,03/10/2017,J2042755,540.00,IBK INITIATIVES,CT9999DIRPY,CAREFIRST DIRECT PAYMENTS,56108500
SHEFFIELD CITY COUNCIL,PEOPLE,13002439148,DIRECT PAYMENTS,9190004,DIRECT PAYMENTS,03/10/2017,J2042755,552.56,IBK INITIATIVES,CT9999DIRPY,CAREFIRST DIRECT PAYMENTS,56108500
SHEFFIELD CITY COUNCIL,PEOPLE,14009242034,PURCHASING LEARNING DISABILITI,9190004,DIRECT PAYMENTS,03/10/2017,J2042755,558.48,IBK INITIATIVES,CT9999DIRPY,CAREFIRST DIRECT PAYMENTS,56108500
SHEFFIELD CITY COUNCIL,PEOPLE,13002439148,DIRECT PAYMENTS,9190007,FUNDED HOME SUPPORT,03/10/2017,J2042755,580.20,IBK INITIATIVES,CT9999DIRPY,CAREFIRST DIRECT PAYMENTS,56108500
SHEFFIELD CITY COUNCIL,PEOPLE,13002439148,DIRECT PAYMENTS,9190004,DIRECT PAYMENTS,03/10/2017,J2042755,621.68,IBK INITIATIVES,CT9999DIRPY,CAREFIRST DIRECT PAYMENTS,56108500
SHEFFIELD CITY COUNCIL,PEOPLE,13002439148,DIRECT PAYMENTS,9190004,DIRECT PAYMENTS,03/10/2017,J2042755,621.68,IBK INITIATIVES,CT9999DIRPY,CAREFIRST DIRECT PAYMENTS,56108500
SHEFFIELD CITY COUNCIL,PEOPLE,14009242034,PURCHASING LEARNING DISABILITI,9190004,DIRECT PAYMENTS,03/10/2017,J2042755,631.20,IBK INITIATIVES,CT9999DIRPY,CAREFIRST DIRECT PAYMENTS,56108500
SHEFFIELD CITY COUNCIL,PEOPLE,13002439148,DIRECT PAYMENTS,9190004,DIRECT PAYMENTS,03/10/2017,J2042755,672.40,IBK INITIATIVES,CT9999DIRPY,CAREFIRST DIRECT PAYMENTS,56108500
SHEFFIELD CITY COUNCIL,PEOPLE,13002439148,DIRECT PAYMENTS,9190004,DIRECT PAYMENTS,03/10/2017,J2042755,672.40,IBK INITIATIVES,CT9999DIRPY,CAREFIRST DIRECT PAYMENTS,56108500
SHEFFIELD CITY COUNCIL,PEOPLE,14009242034,PURCHASING LEARNING DISABILITI,9190004,DIRECT PAYMENTS,03/10/2017,J2042755,678.04,IBK INITIATIVES,CT9999DIRPY,CAREFIRST DIRECT PAYMENTS,56108500
SHEFFIELD CITY COUNCIL,PEOPLE,14009242034,PURCHASING LEARNING DISABILITI,9190004,DIRECT PAYMENTS,03/10/2017,J2042755,687.56,IBK INITIATIVES,CT9999DIRPY,CAREFIRST DIRECT PAYMENTS,56108500
SHEFFIELD CITY COUNCIL,PEOPLE,14009346039,ADULT SOCIAL CARE PURCHASING,9190004,DIRECT PAYMENTS,03/10/2017,J2042755,724.80,IBK INITIATIVES,CT9999DIRPY,CAREFIRST DIRECT PAYMENTS,56108500
SHEFFIELD CITY COUNCIL,PEOPLE,13002439148,DIRECT PAYMENTS,9190004,DIRECT PAYMENTS,03/10/2017,J2042755,731.64,IBK INITIATIVES,CT9999DIRPY,CAREFIRST DIRECT PAYMENTS,56108500
SHEFFIELD CITY COUNCIL,PEOPLE,14009242034,PURCHASING LEARNING DISABILITI,9190004,DIRECT PAYMENTS,03/10/2017,J2042755,748.00,IBK INITIATIVES,CT9999DIRPY,CAREFIRST DIRECT PAYMENTS,56108500
SHEFFIELD CITY COUNCIL,PEOPLE,14009242034,PURCHASING LEARNING DISABILITI,9190007,FUNDED HOME SUPPORT,03/10/2017,J2042755,762.00,IBK INITIATIVES,CT9999DIRPY,CAREFIRST DIRECT PAYMENTS,56108500
SHEFFIELD CITY COUNCIL,PEOPLE,14009242034,PURCHASING LEARNING DISABILITI,9190007,FUNDED HOME SUPPORT,03/10/2017,J2042755,806.04,IBK INITIATIVES,CT9999DIRPY,CAREFIRST DIRECT PAYMENTS,56108500
SHEFFIELD CITY COUNCIL,PEOPLE,13002439148,DIRECT PAYMENTS,9190004,DIRECT PAYMENTS,03/10/2017,J2042755,813.84,IBK INITIATIVES,CT9999DIRPY,CAREFIRST DIRECT PAYMENTS,56108500
SHEFFIELD CITY COUNCIL,PEOPLE,13002439148,DIRECT PAYMENTS,9190007,FUNDED HOME SUPPORT,03/10/2017,J2042755,815.52,IBK INITIATIVES,CT9999DIRPY,CAREFIRST DIRECT PAYMENTS,56108500
SHEFFIELD CITY COUNCIL,PEOPLE,14009242034,PURCHASING LEARNING DISABILITI,9190004,DIRECT PAYMENTS,03/10/2017,J2042755,848.44,IBK INITIATIVES,CT9999DIRPY,CAREFIRST DIRECT PAYMENTS,56108500
SHEFFIELD CITY COUNCIL,PEOPLE,14009346039,ADULT SOCIAL CARE PURCHASING,9190004,DIRECT PAYMENTS,03/10/2017,J2042755,863.08,IBK INITIATIVES,CT9999DIRPY,CAREFIRST DIRECT PAYMENTS,56108500
SHEFFIELD CITY COUNCIL,PEOPLE,14009242034,PURCHASING LEARNING DISABILITI,9190004,DIRECT PAYMENTS,03/10/2017,J2042755,911.28,IBK INITIATIVES,CT9999DIRPY,CAREFIRST DIRECT PAYMENTS,56108500
SHEFFIELD CITY COUNCIL,PEOPLE,14009346039,ADULT SOCIAL CARE PURCHASING,9190004,DIRECT PAYMENTS,03/10/2017,J2042755,916.80,IBK INITIATIVES,CT9999DIRPY,CAREFIRST DIRECT PAYMENTS,56108500
SHEFFIELD CITY COUNCIL,PEOPLE,14009242034,PURCHASING LEARNING DISABILITI,9190004,DIRECT PAYMENTS,03/10/2017,J2042755,952.32,IBK INITIATIVES,CT9999DIRPY,CAREFIRST DIRECT PAYMENTS,56108500
SHEFFIELD CITY COUNCIL,PEOPLE,14009346039,ADULT SOCIAL CARE PURCHASING,9190004,DIRECT PAYMENTS,03/10/2017,J2042755,955.76,IBK INITIATIVES,CT9999DIRPY,CAREFIRST DIRECT PAYMENTS,56108500
SHEFFIELD CITY COUNCIL,PEOPLE,13002439148,DIRECT PAYMENTS,9190004,DIRECT PAYMENTS,03/10/2017,J2042755,"1,017.00",IBK INITIATIVES,CT9999DIRPY,CAREFIRST DIRECT PAYMENTS,56108500
SHEFFIELD CITY COUNCIL,PEOPLE,14009242034,PURCHASING LEARNING DISABILITI,9190004,DIRECT PAYMENTS,03/10/2017,J2042755,"1,025.68",IBK INITIATIVES,CT9999DIRPY,CAREFIRST DIRECT PAYMENTS,56108500
SHEFFIELD CITY COUNCIL,PEOPLE,14009242034,PURCHASING LEARNING DISABILITI,9190004,DIRECT PAYMENTS,03/10/2017,J2042755,"1,026.60",IBK INITIATIVES,CT9999DIRPY,CAREFIRST DIRECT PAYMENTS,56108500
SHEFFIELD CITY COUNCIL,PEOPLE,14009242034,PURCHASING LEARNING DISABILITI,9190004,DIRECT PAYMENTS,03/10/2017,J2042755,"1,032.76",IBK INITIATIVES,CT9999DIRPY,CAREFIRST DIRECT PAYMENTS,56108500
SHEFFIELD CITY COUNCIL,PEOPLE,14009242034,PURCHASING LEARNING DISABILITI,9190004,DIRECT PAYMENTS,03/10/2017,J2042755,"1,100.00",IBK INITIATIVES,CT9999DIRPY,CAREFIRST DIRECT PAYMENTS,56108500
SHEFFIELD CITY COUNCIL,PEOPLE,14009346039,ADULT SOCIAL CARE PURCHASING,9190004,DIRECT PAYMENTS,03/10/2017,J2042755,"1,138.12",IBK INITIATIVES,CT9999DIRPY,CAREFIRST DIRECT PAYMENTS,56108500
SHEFFIELD CITY COUNCIL,PEOPLE,14009242034,PURCHASING LEARNING DISABILITI,9190004,DIRECT PAYMENTS,03/10/2017,J2042755,"1,197.72",IBK INITIATIVES,CT9999DIRPY,CAREFIRST DIRECT PAYMENTS,56108500
SHEFFIELD CITY COUNCIL,PEOPLE,14009242034,PURCHASING LEARNING DISABILITI,9190007,FUNDED HOME SUPPORT,03/10/2017,J2042755,"1,237.96",IBK INITIATIVES,CT9999DIRPY,CAREFIRST DIRECT PAYMENTS,56108500
SHEFFIELD CITY COUNCIL,PEOPLE,13002439148,DIRECT PAYMENTS,9190004,DIRECT PAYMENTS,03/10/2017,J2042755,"1,268.08",IBK INITIATIVES,CT9999DIRPY,CAREFIRST DIRECT PAYMENTS,56108500
SHEFFIELD CITY COUNCIL,PEOPLE,14009242034,PURCHASING LEARNING DISABILITI,9190004,DIRECT PAYMENTS,03/10/2017,J2042755,"1,395.28",IBK INITIATIVES,CT9999DIRPY,CAREFIRST DIRECT PAYMENTS,56108500
SHEFFIELD CITY COUNCIL,PEOPLE,14009242034,PURCHASING LEARNING DISABILITI,9190004,DIRECT PAYMENTS,03/10/2017,J2042755,"1,540.64",IBK INITIATIVES,CT9999DIRPY,CAREFIRST DIRECT PAYMENTS,56108500
SHEFFIELD CITY COUNCIL,PEOPLE,14009242034,PURCHASING LEARNING DISABILITI,9190004,DIRECT PAYMENTS,03/10/2017,J2042755,"1,646.88",IBK INITIATIVES,CT9999DIRPY,CAREFIRST DIRECT PAYMENTS,56108500
SHEFFIELD CITY COUNCIL,PEOPLE,14009242034,PURCHASING LEARNING DISABILITI,9190004,DIRECT PAYMENTS,03/10/2017,J2042755,"1,693.72",IBK INITIATIVES,CT9999DIRPY,CAREFIRST DIRECT PAYMENTS,56108500
SHEFFIELD CITY COUNCIL,PEOPLE,14008048007,PUBLIC HEALTH DIRECT PAYMENTS,9190004,DIRECT PAYMENTS,03/10/2017,J2042755,"1,718.48",IBK INITIATIVES,CT9999DIRPY,CAREFIRST DIRECT PAYMENTS,56108500
SHEFFIELD CITY COUNCIL,PEOPLE,14008048007,PUBLIC HEALTH DIRECT PAYMENTS,9190004,DIRECT PAYMENTS,03/10/2017,J2042755,"1,718.48",IBK INITIATIVES,CT9999DIRPY,CAREFIRST DIRECT PAYMENTS,56108500
SHEFFIELD CITY COUNCIL,PEOPLE,14009242034,PURCHASING LEARNING DISABILITI,9190004,DIRECT PAYMENTS,03/10/2017,J2042755,"1,790.96",IBK INITIATIVES,CT9999DIRPY,CAREFIRST DIRECT PAYMENTS,56108500
SHEFFIELD CITY COUNCIL,PEOPLE,14009242034,PURCHASING LEARNING DISABILITI,9190004,DIRECT PAYMENTS,03/10/2017,J2042755,"1,797.36",IBK INITIATIVES,CT9999DIRPY,CAREFIRST DIRECT PAYMENTS,56108500
SHEFFIELD CITY COUNCIL,PEOPLE,14009242034,PURCHASING LEARNING DISABILITI,9190007,FUNDED HOME SUPPORT,03/10/2017,J2042755,"1,805.16",IBK INITIATIVES,CT9999DIRPY,CAREFIRST DIRECT PAYMENTS,56108500
SHEFFIELD CITY COUNCIL,PEOPLE,14009242034,PURCHASING LEARNING DISABILITI,9190004,DIRECT PAYMENTS,03/10/2017,J2042755,"2,127.56",IBK INITIATIVES,CT9999DIRPY,CAREFIRST DIRECT PAYMENTS,56108500
SHEFFIELD CITY COUNCIL,PEOPLE,14009242034,PURCHASING LEARNING DISABILITI,9190004,DIRECT PAYMENTS,03/10/2017,J2042755,"2,219.76",IBK INITIATIVES,CT9999DIRPY,CAREFIRST DIRECT PAYMENTS,56108500
SHEFFIELD CITY COUNCIL,PEOPLE,13002439148,DIRECT PAYMENTS,9190004,DIRECT PAYMENTS,03/10/2017,J2042755,"2,229.56",IBK INITIATIVES,CT9999DIRPY,CAREFIRST DIRECT PAYMENTS,56108500
SHEFFIELD CITY COUNCIL,PEOPLE,14009242034,PURCHASING LEARNING DISABILITI,9190004,DIRECT PAYMENTS,03/10/2017,J2042755,"2,570.60",IBK INITIATIVES,CT9999DIRPY,CAREFIRST DIRECT PAYMENTS,56108500
SHEFFIELD CITY COUNCIL,PEOPLE,14009242034,PURCHASING LEARNING DISABILITI,9190007,FUNDED HOME SUPPORT,03/10/2017,J2042755,"2,745.60",IBK INITIATIVES,CT9999DIRPY,CAREFIRST DIRECT PAYMENTS,56108500
SHEFFIELD CITY COUNCIL,PEOPLE,14009242034,PURCHASING LEARNING DISABILITI,9190004,DIRECT PAYMENTS,03/10/2017,J2042755,"4,003.20",IBK INITIATIVES,CT9999DIRPY,CAREFIRST DIRECT PAYMENTS,56108500
SHEFFIELD CITY COUNCIL,PEOPLE,14009242034,PURCHASING LEARNING DISABILITI,9190004,DIRECT PAYMENTS,03/10/2017,J2042755,"4,121.36",IBK INITIATIVES,CT9999DIRPY,CAREFIRST DIRECT PAYMENTS,56108500
SHEFFIELD CITY COUNCIL,PEOPLE,14009242034,PURCHASING LEARNING DISABILITI,9190007,FUNDED HOME SUPPORT,03/10/2017,J2042755,"4,499.56",IBK INITIATIVES,CT9999DIRPY,CAREFIRST DIRECT PAYMENTS,56108500
SHEFFIELD CITY COUNCIL,PEOPLE,14008048007,PUBLIC HEALTH DIRECT PAYMENTS,9190004,DIRECT PAYMENTS,03/10/2017,J2042755,"4,703.40",IBK INITIATIVES,CT9999DIRPY,CAREFIRST DIRECT PAYMENTS,56108500
SHEFFIELD CITY COUNCIL,PEOPLE,14009242034,PURCHASING LEARNING DISABILITI,9190004,DIRECT PAYMENTS,03/10/2017,J2042755,"7,117.44",IBK INITIATIVES,CT9999DIRPY,CAREFIRST DIRECT PAYMENTS,56108500
SHEFFIELD CITY COUNCIL,PEOPLE,14008048007,PUBLIC HEALTH DIRECT PAYMENTS,9190004,DIRECT PAYMENTS,03/10/2017,J2042755,"7,599.04",IBK INITIATIVES,CT9999DIRPY,CAREFIRST DIRECT PAYMENTS,56108500
SHEFFIELD CITY COUNCIL,PEOPLE,14031444001,PURCHASING,9190004,DIRECT PAYMENTS,03/10/2017,J2042755,"7,694.68",IBK INITIATIVES,CT9999DIRPY,CAREFIRST DIRECT PAYMENTS,56108500
SHEFFIELD CITY COUNCIL,PEOPLE,14009346039,ADULT SOCIAL CARE PURCHASING,4260008,DIRECT PAYMENTS,03/10/2017,J2042755,-692.44,IDK SUPPORT 4 YOU LTD - SUPPORT PLANNING,CT9999DIRPY,CAREFIRST DIRECT PAYMENTS,56217800
SHEFFIELD CITY COUNCIL,PEOPLE,14009242034,PURCHASING LEARNING DISABILITI,4260008,DIRECT PAYMENTS,03/10/2017,J2042755,-463.32,IDK SUPPORT 4 YOU LTD - SUPPORT PLANNING,CT9999DIRPY,CAREFIRST DIRECT PAYMENTS,56217800
SHEFFIELD CITY COUNCIL,PEOPLE,14009346039,ADULT SOCIAL CARE PURCHASING,4260008,DIRECT PAYMENTS,03/10/2017,J2042755,-463.20,IDK SUPPORT 4 YOU LTD - SUPPORT PLANNING,CT9999DIRPY,CAREFIRST DIRECT PAYMENTS,56217800
SHEFFIELD CITY COUNCIL,PEOPLE,14009346039,ADULT SOCIAL CARE PURCHASING,4260008,DIRECT PAYMENTS,03/10/2017,J2042755,-461.04,IDK SUPPORT 4 YOU LTD - SUPPORT PLANNING,CT9999DIRPY,CAREFIRST DIRECT PAYMENTS,56217800
SHEFFIELD CITY COUNCIL,PEOPLE,14009346039,ADULT SOCIAL CARE PURCHASING,4260008,DIRECT PAYMENTS,03/10/2017,J2042755,-441.36,IDK SUPPORT 4 YOU LTD - SUPPORT PLANNING,CT9999DIRPY,CAREFIRST DIRECT PAYMENTS,56217800
SHEFFIELD CITY COUNCIL,PEOPLE,14009346039,ADULT SOCIAL CARE PURCHASING,4260008,DIRECT PAYMENTS,03/10/2017,J2042755,-424.08,IDK SUPPORT 4 YOU LTD - SUPPORT PLANNING,CT9999DIRPY,CAREFIRST DIRECT PAYMENTS,56217800
SHEFFIELD CITY COUNCIL,PEOPLE,14009346039,ADULT SOCIAL CARE PURCHASING,4260008,DIRECT PAYMENTS,03/10/2017,J2042755,-412.32,IDK SUPPORT 4 YOU LTD - SUPPORT PLANNING,CT9999DIRPY,CAREFIRST DIRECT PAYMENTS,56217800
SHEFFIELD CITY COUNCIL,PEOPLE,14009346039,ADULT SOCIAL CARE PURCHASING,4260008,DIRECT PAYMENTS,03/10/2017,J2042755,-405.64,IDK SUPPORT 4 YOU LTD - SUPPORT PLANNING,CT9999DIRPY,CAREFIRST DIRECT PAYMENTS,56217800
SHEFFIELD CITY COUNCIL,PEOPLE,14009242034,PURCHASING LEARNING DISABILITI,4260008,DIRECT PAYMENTS,03/10/2017,J2042755,-404.12,IDK SUPPORT 4 YOU LTD - SUPPORT PLANNING,CT9999DIRPY,CAREFIRST DIRECT PAYMENTS,56217800
SHEFFIELD CITY COUNCIL,PEOPLE,14009242034,PURCHASING LEARNING DISABILITI,4260008,DIRECT PAYMENTS,03/10/2017,J2042755,-397.52,IDK SUPPORT 4 YOU LTD - SUPPORT PLANNING,CT9999DIRPY,CAREFIRST DIRECT PAYMENTS,56217800
SHEFFIELD CITY COUNCIL,PEOPLE,14009346039,ADULT SOCIAL CARE PURCHASING,4260008,DIRECT PAYMENTS,03/10/2017,J2042755,-380.04,IDK SUPPORT 4 YOU LTD - SUPPORT PLANNING,CT9999DIRPY,CAREFIRST DIRECT PAYMENTS,56217800
SHEFFIELD CITY COUNCIL,PEOPLE,14009346039,ADULT SOCIAL CARE PURCHASING,4260008,DIRECT PAYMENTS,03/10/2017,J2042755,-365.92,IDK SUPPORT 4 YOU LTD - SUPPORT PLANNING,CT9999DIRPY,CAREFIRST DIRECT PAYMENTS,56217800
SHEFFIELD CITY COUNCIL,PEOPLE,14009242034,PURCHASING LEARNING DISABILITI,4260008,DIRECT PAYMENTS,03/10/2017,J2042755,-365.76,IDK SUPPORT 4 YOU LTD - SUPPORT PLANNING,CT9999DIRPY,CAREFIRST DIRECT PAYMENTS,56217800
SHEFFIELD CITY COUNCIL,PEOPLE,14009242034,PURCHASING LEARNING DISABILITI,4260008,DIRECT PAYMENTS,03/10/2017,J2042755,-351.64,IDK SUPPORT 4 YOU LTD - SUPPORT PLANNING,CT9999DIRPY,CAREFIRST DIRECT PAYMENTS,56217800
SHEFFIELD CITY COUNCIL,PEOPLE,14009346039,ADULT SOCIAL CARE PURCHASING,4260008,DIRECT PAYMENTS,03/10/2017,J2042755,-345.24,IDK SUPPORT 4 YOU LTD - SUPPORT PLANNING,CT9999DIRPY,CAREFIRST DIRECT PAYMENTS,56217800
SHEFFIELD CITY COUNCIL,PEOPLE,14009346039,ADULT SOCIAL CARE PURCHASING,4260008,DIRECT PAYMENTS,03/10/2017,J2042755,-322.60,IDK SUPPORT 4 YOU LTD - SUPPORT PLANNING,CT9999DIRPY,CAREFIRST DIRECT PAYMENTS,56217800
SHEFFIELD CITY COUNCIL,PEOPLE,14009346039,ADULT SOCIAL CARE PURCHASING,4260008,DIRECT PAYMENTS,03/10/2017,J2042755,-304.00,IDK SUPPORT 4 YOU LTD - SUPPORT PLANNING,CT9999DIRPY,CAREFIRST DIRECT PAYMENTS,56217800
SHEFFIELD CITY COUNCIL,PEOPLE,14009242034,PURCHASING LEARNING DISABILITI,4260008,DIRECT PAYMENTS,03/10/2017,J2042755,-302.80,IDK SUPPORT 4 YOU LTD - SUPPORT PLANNING,CT9999DIRPY,CAREFIRST DIRECT PAYMENTS,56217800
SHEFFIELD CITY COUNCIL,PEOPLE,14009242034,PURCHASING LEARNING DISABILITI,4260008,DIRECT PAYMENTS,03/10/2017,J2042755,-290.88,IDK SUPPORT 4 YOU LTD - SUPPORT PLANNING,CT9999DIRPY,CAREFIRST DIRECT PAYMENTS,56217800
SHEFFIELD CITY COUNCIL,PEOPLE,14009242034,PURCHASING LEARNING DISABILITI,4260008,DIRECT PAYMENTS,03/10/2017,J2042755,-290.56,IDK SUPPORT 4 YOU LTD - SUPPORT PLANNING,CT9999DIRPY,CAREFIRST DIRECT PAYMENTS,56217800
SHEFFIELD CITY COUNCIL,PEOPLE,14009242034,PURCHASING LEARNING DISABILITI,4260008,DIRECT PAYMENTS,03/10/2017,J2042755,-276.16,IDK SUPPORT 4 YOU LTD - SUPPORT PLANNING,CT9999DIRPY,CAREFIRST DIRECT PAYMENTS,56217800
SHEFFIELD CITY COUNCIL,PEOPLE,14009346039,ADULT SOCIAL CARE PURCHASING,4260008,DIRECT PAYMENTS,03/10/2017,J2042755,-274.52,IDK SUPPORT 4 YOU LTD - SUPPORT PLANNING,CT9999DIRPY,CAREFIRST DIRECT PAYMENTS,56217800
SHEFFIELD CITY COUNCIL,PEOPLE,14009346039,ADULT SOCIAL CARE PURCHASING,4260008,DIRECT PAYMENTS,03/10/2017,J2042755,-273.28,IDK SUPPORT 4 YOU LTD - SUPPORT PLANNING,CT9999DIRPY,CAREFIRST DIRECT PAYMENTS,56217800
SHEFFIELD CITY COUNCIL,PEOPLE,14009346039,ADULT SOCIAL CARE PURCHASING,4260008,DIRECT PAYMENTS,03/10/2017,J2042755,-272.64,IDK SUPPORT 4 YOU LTD - SUPPORT PLANNING,CT9999DIRPY,CAREFIRST DIRECT PAYMENTS,56217800
SHEFFIELD CITY COUNCIL,PEOPLE,14009346039,ADULT SOCIAL CARE PURCHASING,4260008,DIRECT PAYMENTS,03/10/2017,J2042755,-234.00,IDK SUPPORT 4 YOU LTD - SUPPORT PLANNING,CT9999DIRPY,CAREFIRST DIRECT PAYMENTS,56217800
SHEFFIELD CITY COUNCIL,PEOPLE,14009242034,PURCHASING LEARNING DISABILITI,4260008,DIRECT PAYMENTS,03/10/2017,J2042755,-232.00,IDK SUPPORT 4 YOU LTD - SUPPORT PLANNING,CT9999DIRPY,CAREFIRST DIRECT PAYMENTS,56217800
SHEFFIELD CITY COUNCIL,PEOPLE,14009346039,ADULT SOCIAL CARE PURCHASING,4260008,DIRECT PAYMENTS,03/10/2017,J2042755,-229.28,IDK SUPPORT 4 YOU LTD - SUPPORT PLANNING,CT9999DIRPY,CAREFIRST DIRECT PAYMENTS,56217800
SHEFFIELD CITY COUNCIL,PEOPLE,14009346039,ADULT SOCIAL CARE PURCHASING,4260008,DIRECT PAYMENTS,03/10/2017,J2042755,-214.60,IDK SUPPORT 4 YOU LTD - SUPPORT PLANNING,CT9999DIRPY,CAREFIRST DIRECT PAYMENTS,56217800
SHEFFIELD CITY COUNCIL,PEOPLE,14009346039,ADULT SOCIAL CARE PURCHASING,4260008,DIRECT PAYMENTS,03/10/2017,J2042755,-213.48,IDK SUPPORT 4 YOU LTD - SUPPORT PLANNING,CT9999DIRPY,CAREFIRST DIRECT PAYMENTS,56217800
SHEFFIELD CITY COUNCIL,PEOPLE,14009346039,ADULT SOCIAL CARE PURCHASING,4260008,DIRECT PAYMENTS,03/10/2017,J2042755,-203.88,IDK SUPPORT 4 YOU LTD - SUPPORT PLANNING,CT9999DIRPY,CAREFIRST DIRECT PAYMENTS,56217800
SHEFFIELD CITY COUNCIL,PEOPLE,14009346039,ADULT SOCIAL CARE PURCHASING,4260008,DIRECT PAYMENTS,03/10/2017,J2042755,-203.00,IDK SUPPORT 4 YOU LTD - SUPPORT PLANNING,CT9999DIRPY,CAREFIRST DIRECT PAYMENTS,56217800
SHEFFIELD CITY COUNCIL,PEOPLE,14009242034,PURCHASING LEARNING DISABILITI,4260008,DIRECT PAYMENTS,03/10/2017,J2042755,-200.04,IDK SUPPORT 4 YOU LTD - SUPPORT PLANNING,CT9999DIRPY,CAREFIRST DIRECT PAYMENTS,56217800
SHEFFIELD CITY COUNCIL,PEOPLE,14009346039,ADULT SOCIAL CARE PURCHASING,4260008,DIRECT PAYMENTS,03/10/2017,J2042755,-198.28,IDK SUPPORT 4 YOU LTD - SUPPORT PLANNING,CT9999DIRPY,CAREFIRST DIRECT PAYMENTS,56217800
SHEFFIELD CITY COUNCIL,PEOPLE,14009346039,ADULT SOCIAL CARE PURCHASING,4260008,DIRECT PAYMENTS,03/10/2017,J2042755,-196.80,IDK SUPPORT 4 YOU LTD - SUPPORT PLANNING,CT9999DIRPY,CAREFIRST DIRECT PAYMENTS,56217800
SHEFFIELD CITY COUNCIL,PEOPLE,14009242034,PURCHASING LEARNING DISABILITI,4260008,DIRECT PAYMENTS,03/10/2017,J2042755,-189.80,IDK SUPPORT 4 YOU LTD - SUPPORT PLANNING,CT9999DIRPY,CAREFIRST DIRECT PAYMENTS,56217800
SHEFFIELD CITY COUNCIL,PEOPLE,14009242034,PURCHASING LEARNING DISABILITI,4260008,DIRECT PAYMENTS,03/10/2017,J2042755,-188.48,IDK SUPPORT 4 YOU LTD - SUPPORT PLANNING,CT9999DIRPY,CAREFIRST DIRECT PAYMENTS,56217800
SHEFFIELD CITY COUNCIL,PEOPLE,14009346039,ADULT SOCIAL CARE PURCHASING,4260008,DIRECT PAYMENTS,03/10/2017,J2042755,-188.00,IDK SUPPORT 4 YOU LTD - SUPPORT PLANNING,CT9999DIRPY,CAREFIRST DIRECT PAYMENTS,56217800
SHEFFIELD CITY COUNCIL,PEOPLE,14009346039,ADULT SOCIAL CARE PURCHASING,4260008,DIRECT PAYMENTS,03/10/2017,J2042755,-183.80,IDK SUPPORT 4 YOU LTD - SUPPORT PLANNING,CT9999DIRPY,CAREFIRST DIRECT PAYMENTS,56217800
SHEFFIELD CITY COUNCIL,PEOPLE,14009242034,PURCHASING LEARNING DISABILITI,4260008,DIRECT PAYMENTS,03/10/2017,J2042755,-178.32,IDK SUPPORT 4 YOU LTD - SUPPORT PLANNING,CT9999DIRPY,CAREFIRST DIRECT PAYMENTS,56217800
SHEFFIELD CITY COUNCIL,PEOPLE,14009242034,PURCHASING LEARNING DISABILITI,4260008,DIRECT PAYMENTS,03/10/2017,J2042755,-177.88,IDK SUPPORT 4 YOU LTD - SUPPORT PLANNING,CT9999DIRPY,CAREFIRST DIRECT PAYMENTS,56217800
SHEFFIELD CITY COUNCIL,PEOPLE,14009346039,ADULT SOCIAL CARE PURCHASING,4260008,DIRECT PAYMENTS,03/10/2017,J2042755,-173.24,IDK SUPPORT 4 YOU LTD - SUPPORT PLANNING,CT9999DIRPY,CAREFIRST DIRECT PAYMENTS,56217800
SHEFFIELD CITY COUNCIL,PEOPLE,14009242034,PURCHASING LEARNING DISABILITI,4260008,DIRECT PAYMENTS,03/10/2017,J2042755,-172.44,IDK SUPPORT 4 YOU LTD - SUPPORT PLANNING,CT9999DIRPY,CAREFIRST DIRECT PAYMENTS,56217800
SHEFFIELD CITY COUNCIL,PEOPLE,14009242034,PURCHASING LEARNING DISABILITI,4260008,DIRECT PAYMENTS,03/10/2017,J2042755,-168.68,IDK SUPPORT 4 YOU LTD - SUPPORT PLANNING,CT9999DIRPY,CAREFIRST DIRECT PAYMENTS,56217800
SHEFFIELD CITY COUNCIL,PEOPLE,14009346039,ADULT SOCIAL CARE PURCHASING,4260008,DIRECT PAYMENTS,03/10/2017,J2042755,-165.80,IDK SUPPORT 4 YOU LTD - SUPPORT PLANNING,CT9999DIRPY,CAREFIRST DIRECT PAYMENTS,56217800
SHEFFIELD CITY COUNCIL,PEOPLE,14009346039,ADULT SOCIAL CARE PURCHASING,4260008,DIRECT PAYMENTS,03/10/2017,J2042755,-165.20,IDK SUPPORT 4 YOU LTD - SUPPORT PLANNING,CT9999DIRPY,CAREFIRST DIRECT PAYMENTS,56217800
SHEFFIELD CITY COUNCIL,PEOPLE,14009346039,ADULT SOCIAL CARE PURCHASING,4260008,DIRECT PAYMENTS,03/10/2017,J2042755,-159.64,IDK SUPPORT 4 YOU LTD - SUPPORT PLANNING,CT9999DIRPY,CAREFIRST DIRECT PAYMENTS,56217800
SHEFFIELD CITY COUNCIL,PEOPLE,14009242034,PURCHASING LEARNING DISABILITI,4260008,DIRECT PAYMENTS,03/10/2017,J2042755,-149.24,IDK SUPPORT 4 YOU LTD - SUPPORT PLANNING,CT9999DIRPY,CAREFIRST DIRECT PAYMENTS,56217800
SHEFFIELD CITY COUNCIL,PEOPLE,14009242034,PURCHASING LEARNING DISABILITI,4260008,DIRECT PAYMENTS,03/10/2017,J2042755,-145.88,IDK SUPPORT 4 YOU LTD - SUPPORT PLANNING,CT9999DIRPY,CAREFIRST DIRECT PAYMENTS,56217800
SHEFFIELD CITY COUNCIL,PEOPLE,14009346039,ADULT SOCIAL CARE PURCHASING,4260008,DIRECT PAYMENTS,03/10/2017,J2042755,-144.60,IDK SUPPORT 4 YOU LTD - SUPPORT PLANNING,CT9999DIRPY,CAREFIRST DIRECT PAYMENTS,56217800
SHEFFIELD CITY COUNCIL,PEOPLE,14009346039,ADULT SOCIAL CARE PURCHASING,4260008,DIRECT PAYMENTS,03/10/2017,J2042755,-144.20,IDK SUPPORT 4 YOU LTD - SUPPORT PLANNING,CT9999DIRPY,CAREFIRST DIRECT PAYMENTS,56217800
SHEFFIELD CITY COUNCIL,PEOPLE,14009346039,ADULT SOCIAL CARE PURCHASING,4260008,DIRECT PAYMENTS,03/10/2017,J2042755,-143.48,IDK SUPPORT 4 YOU LTD - SUPPORT PLANNING,CT9999DIRPY,CAREFIRST DIRECT PAYMENTS,56217800
SHEFFIELD CITY COUNCIL,PEOPLE,14009242034,PURCHASING LEARNING DISABILITI,4260008,DIRECT PAYMENTS,03/10/2017,J2042755,-138.12,IDK SUPPORT 4 YOU LTD - SUPPORT PLANNING,CT9999DIRPY,CAREFIRST DIRECT PAYMENTS,56217800
SHEFFIELD CITY COUNCIL,PEOPLE,14009346039,ADULT SOCIAL CARE PURCHASING,4260008,DIRECT PAYMENTS,03/10/2017,J2042755,-133.36,IDK SUPPORT 4 YOU LTD - SUPPORT PLANNING,CT9999DIRPY,CAREFIRST DIRECT PAYMENTS,56217800
SHEFFIELD CITY COUNCIL,PEOPLE,14009242034,PURCHASING LEARNING DISABILITI,4260008,DIRECT PAYMENTS,03/10/2017,J2042755,-132.96,IDK SUPPORT 4 YOU LTD - SUPPORT PLANNING,CT9999DIRPY,CAREFIRST DIRECT PAYMENTS,56217800
SHEFFIELD CITY COUNCIL,PEOPLE,14009346039,ADULT SOCIAL CARE PURCHASING,4260008,DIRECT PAYMENTS,03/10/2017,J2042755,-132.52,IDK SUPPORT 4 YOU LTD - SUPPORT PLANNING,CT9999DIRPY,CAREFIRST DIRECT PAYMENTS,56217800
SHEFFIELD CITY COUNCIL,PEOPLE,14009346039,ADULT SOCIAL CARE PURCHASING,4260008,DIRECT PAYMENTS,03/10/2017,J2042755,-129.68,IDK SUPPORT 4 YOU LTD - SUPPORT PLANNING,CT9999DIRPY,CAREFIRST DIRECT PAYMENTS,56217800
SHEFFIELD CITY COUNCIL,PEOPLE,14009242034,PURCHASING LEARNING DISABILITI,4260008,DIRECT PAYMENTS,03/10/2017,J2042755,-122.88,IDK SUPPORT 4 YOU LTD - SUPPORT PLANNING,CT9999DIRPY,CAREFIRST DIRECT PAYMENTS,56217800
SHEFFIELD CITY COUNCIL,PEOPLE,14009346039,ADULT SOCIAL CARE PURCHASING,4260008,DIRECT PAYMENTS,03/10/2017,J2042755,-119.68,IDK SUPPORT 4 YOU LTD - SUPPORT PLANNING,CT9999DIRPY,CAREFIRST DIRECT PAYMENTS,56217800
SHEFFIELD CITY COUNCIL,PEOPLE,14009242034,PURCHASING LEARNING DISABILITI,4260008,DIRECT PAYMENTS,03/10/2017,J2042755,-119.56,IDK SUPPORT 4 YOU LTD - SUPPORT PLANNING,CT9999DIRPY,CAREFIRST DIRECT PAYMENTS,56217800
SHEFFIELD CITY COUNCIL,PEOPLE,14009242034,PURCHASING LEARNING DISABILITI,4260008,DIRECT PAYMENTS,03/10/2017,J2042755,-116.60,IDK SUPPORT 4 YOU LTD - SUPPORT PLANNING,CT9999DIRPY,CAREFIRST DIRECT PAYMENTS,56217800
SHEFFIELD CITY COUNCIL,PEOPLE,14009242034,PURCHASING LEARNING DISABILITI,4260008,DIRECT PAYMENTS,03/10/2017,J2042755,-115.08,IDK SUPPORT 4 YOU LTD - SUPPORT PLANNING,CT9999DIRPY,CAREFIRST DIRECT PAYMENTS,56217800
SHEFFIELD CITY COUNCIL,PEOPLE,14009242034,PURCHASING LEARNING DISABILITI,4260008,DIRECT PAYMENTS,03/10/2017,J2042755,-114.76,IDK SUPPORT 4 YOU LTD - SUPPORT PLANNING,CT9999DIRPY,CAREFIRST DIRECT PAYMENTS,56217800
SHEFFIELD CITY COUNCIL,PEOPLE,14009242034,PURCHASING LEARNING DISABILITI,4260008,DIRECT PAYMENTS,03/10/2017,J2042755,-107.64,IDK SUPPORT 4 YOU LTD - SUPPORT PLANNING,CT9999DIRPY,CAREFIRST DIRECT PAYMENTS,56217800
SHEFFIELD CITY COUNCIL,PEOPLE,14009242034,PURCHASING LEARNING DISABILITI,4260008,DIRECT PAYMENTS,03/10/2017,J2042755,-106.20,IDK SUPPORT 4 YOU LTD - SUPPORT PLANNING,CT9999DIRPY,CAREFIRST DIRECT PAYMENTS,56217800
SHEFFIELD CITY COUNCIL,PEOPLE,14009346039,ADULT SOCIAL CARE PURCHASING,4260008,DIRECT PAYMENTS,03/10/2017,J2042755,-106.04,IDK SUPPORT 4 YOU LTD - SUPPORT PLANNING,CT9999DIRPY,CAREFIRST DIRECT PAYMENTS,56217800
SHEFFIELD CITY COUNCIL,PEOPLE,14009346039,ADULT SOCIAL CARE PURCHASING,4260008,DIRECT PAYMENTS,03/10/2017,J2042755,-105.12,IDK SUPPORT 4 YOU LTD - SUPPORT PLANNING,CT9999DIRPY,CAREFIRST DIRECT PAYMENTS,56217800
SHEFFIELD CITY COUNCIL,PEOPLE,14009242034,PURCHASING LEARNING DISABILITI,4260008,DIRECT PAYMENTS,03/10/2017,J2042755,-104.08,IDK SUPPORT 4 YOU LTD - SUPPORT PLANNING,CT9999DIRPY,CAREFIRST DIRECT PAYMENTS,56217800
SHEFFIELD CITY COUNCIL,PEOPLE,14009346039,ADULT SOCIAL CARE PURCHASING,4260008,DIRECT PAYMENTS,03/10/2017,J2042755,-104.00,IDK SUPPORT 4 YOU LTD - SUPPORT PLANNING,CT9999DIRPY,CAREFIRST DIRECT PAYMENTS,56217800
SHEFFIELD CITY COUNCIL,PEOPLE,14009242034,PURCHASING LEARNING DISABILITI,4260008,DIRECT PAYMENTS,03/10/2017,J2042755,-102.20,IDK SUPPORT 4 YOU LTD - SUPPORT PLANNING,CT9999DIRPY,CAREFIRST DIRECT PAYMENTS,56217800
SHEFFIELD CITY COUNCIL,PEOPLE,14009346039,ADULT SOCIAL CARE PURCHASING,4260008,DIRECT PAYMENTS,03/10/2017,J2042755,-102.04,IDK SUPPORT 4 YOU LTD - SUPPORT PLANNING,CT9999DIRPY,CAREFIRST DIRECT PAYMENTS,56217800
SHEFFIELD CITY COUNCIL,PEOPLE,14009242034,PURCHASING LEARNING DISABILITI,4260008,DIRECT PAYMENTS,03/10/2017,J2042755,-100.44,IDK SUPPORT 4 YOU LTD - SUPPORT PLANNING,CT9999DIRPY,CAREFIRST DIRECT PAYMENTS,56217800
SHEFFIELD CITY COUNCIL,PEOPLE,14009242034,PURCHASING LEARNING DISABILITI,4260008,DIRECT PAYMENTS,03/10/2017,J2042755,-97.20,IDK SUPPORT 4 YOU LTD - SUPPORT PLANNING,CT9999DIRPY,CAREFIRST DIRECT PAYMENTS,56217800
SHEFFIELD CITY COUNCIL,PEOPLE,14009346039,ADULT SOCIAL CARE PURCHASING,4260008,DIRECT PAYMENTS,03/10/2017,J2042755,-96.88,IDK SUPPORT 4 YOU LTD - SUPPORT PLANNING,CT9999DIRPY,CAREFIRST DIRECT PAYMENTS,56217800
SHEFFIELD CITY COUNCIL,PEOPLE,14009242034,PURCHASING LEARNING DISABILITI,4260008,DIRECT PAYMENTS,03/10/2017,J2042755,-94.92,IDK SUPPORT 4 YOU LTD - SUPPORT PLANNING,CT9999DIRPY,CAREFIRST DIRECT PAYMENTS,56217800
SHEFFIELD CITY COUNCIL,PEOPLE,14009346039,ADULT SOCIAL CARE PURCHASING,4260008,DIRECT PAYMENTS,03/10/2017,J2042755,-91.72,IDK SUPPORT 4 YOU LTD - SUPPORT PLANNING,CT9999DIRPY,CAREFIRST DIRECT PAYMENTS,56217800
SHEFFIELD CITY COUNCIL,PEOPLE,14009346039,ADULT SOCIAL CARE PURCHASING,4260008,DIRECT PAYMENTS,03/10/2017,J2042755,-90.20,IDK SUPPORT 4 YOU LTD - SUPPORT PLANNING,CT9999DIRPY,CAREFIRST DIRECT PAYMENTS,56217800
SHEFFIELD CITY COUNCIL,PEOPLE,14009346039,ADULT SOCIAL CARE PURCHASING,4260008,DIRECT PAYMENTS,03/10/2017,J2042755,-84.48,IDK SUPPORT 4 YOU LTD - SUPPORT PLANNING,CT9999DIRPY,CAREFIRST DIRECT PAYMENTS,56217800
SHEFFIELD CITY COUNCIL,PEOPLE,14009242034,PURCHASING LEARNING DISABILITI,4260008,DIRECT PAYMENTS,03/10/2017,J2042755,-84.00,IDK SUPPORT 4 YOU LTD - SUPPORT PLANNING,CT9999DIRPY,CAREFIRST DIRECT PAYMENTS,56217800
SHEFFIELD CITY COUNCIL,PEOPLE,14009346039,ADULT SOCIAL CARE PURCHASING,4260008,DIRECT PAYMENTS,03/10/2017,J2042755,-74.04,IDK SUPPORT 4 YOU LTD - SUPPORT PLANNING,CT9999DIRPY,CAREFIRST DIRECT PAYMENTS,56217800
SHEFFIELD CITY COUNCIL,PEOPLE,14009346039,ADULT SOCIAL CARE PURCHASING,4260008,DIRECT PAYMENTS,03/10/2017,J2042755,-71.32,IDK SUPPORT 4 YOU LTD - SUPPORT PLANNING,CT9999DIRPY,CAREFIRST DIRECT PAYMENTS,56217800
SHEFFIELD CITY COUNCIL,PEOPLE,14009346039,ADULT SOCIAL CARE PURCHASING,4260008,DIRECT PAYMENTS,03/10/2017,J2042755,-60.00,IDK SUPPORT 4 YOU LTD - SUPPORT PLANNING,CT9999DIRPY,CAREFIRST DIRECT PAYMENTS,56217800
SHEFFIELD CITY COUNCIL,PEOPLE,14009242034,PURCHASING LEARNING DISABILITI,4260008,DIRECT PAYMENTS,03/10/2017,J2042755,-58.36,IDK SUPPORT 4 YOU LTD - SUPPORT PLANNING,CT9999DIRPY,CAREFIRST DIRECT PAYMENTS,56217800
SHEFFIELD CITY COUNCIL,PEOPLE,14009242034,PURCHASING LEARNING DISABILITI,4260008,DIRECT PAYMENTS,03/10/2017,J2042755,-55.48,IDK SUPPORT 4 YOU LTD - SUPPORT PLANNING,CT9999DIRPY,CAREFIRST DIRECT PAYMENTS,56217800
SHEFFIELD CITY COUNCIL,PEOPLE,14009242034,PURCHASING LEARNING DISABILITI,4260008,DIRECT PAYMENTS,03/10/2017,J2042755,-55.24,IDK SUPPORT 4 YOU LTD - SUPPORT PLANNING,CT9999DIRPY,CAREFIRST DIRECT PAYMENTS,56217800
SHEFFIELD CITY COUNCIL,PEOPLE,14009242034,PURCHASING LEARNING DISABILITI,4260008,DIRECT PAYMENTS,03/10/2017,J2042755,-53.44,IDK SUPPORT 4 YOU LTD - SUPPORT PLANNING,CT9999DIRPY,CAREFIRST DIRECT PAYMENTS,56217800
SHEFFIELD CITY COUNCIL,PEOPLE,14009346039,ADULT SOCIAL CARE PURCHASING,4260008,DIRECT PAYMENTS,03/10/2017,J2042755,-43.84,IDK SUPPORT 4 YOU LTD - SUPPORT PLANNING,CT9999DIRPY,CAREFIRST DIRECT PAYMENTS,56217800
SHEFFIELD CITY COUNCIL,PEOPLE,14009346039,ADULT SOCIAL CARE PURCHASING,4260008,DIRECT PAYMENTS,03/10/2017,J2042755,-42.52,IDK SUPPORT 4 YOU LTD - SUPPORT PLANNING,CT9999DIRPY,CAREFIRST DIRECT PAYMENTS,56217800
SHEFFIELD CITY COUNCIL,PEOPLE,14009346039,ADULT SOCIAL CARE PURCHASING,4260008,DIRECT PAYMENTS,03/10/2017,J2042755,-41.76,IDK SUPPORT 4 YOU LTD - SUPPORT PLANNING,CT9999DIRPY,CAREFIRST DIRECT PAYMENTS,56217800
SHEFFIELD CITY COUNCIL,PEOPLE,14009346039,ADULT SOCIAL CARE PURCHASING,4260008,DIRECT PAYMENTS,03/10/2017,J2042755,-41.24,IDK SUPPORT 4 YOU LTD - SUPPORT PLANNING,CT9999DIRPY,CAREFIRST DIRECT PAYMENTS,56217800
SHEFFIELD CITY COUNCIL,PEOPLE,14009346039,ADULT SOCIAL CARE PURCHASING,4260008,DIRECT PAYMENTS,03/10/2017,J2042755,-34.92,IDK SUPPORT 4 YOU LTD - SUPPORT PLANNING,CT9999DIRPY,CAREFIRST DIRECT PAYMENTS,56217800
SHEFFIELD CITY COUNCIL,PEOPLE,14009242034,PURCHASING LEARNING DISABILITI,4260008,DIRECT PAYMENTS,03/10/2017,J2042755,-31.72,IDK SUPPORT 4 YOU LTD - SUPPORT PLANNING,CT9999DIRPY,CAREFIRST DIRECT PAYMENTS,56217800
SHEFFIELD CITY COUNCIL,PEOPLE,14009346039,ADULT SOCIAL CARE PURCHASING,4260008,DIRECT PAYMENTS,03/10/2017,J2042755,-30.52,IDK SUPPORT 4 YOU LTD - SUPPORT PLANNING,CT9999DIRPY,CAREFIRST DIRECT PAYMENTS,56217800
SHEFFIELD CITY COUNCIL,PEOPLE,14009242034,PURCHASING LEARNING DISABILITI,4260008,DIRECT PAYMENTS,03/10/2017,J2042755,-30.48,IDK SUPPORT 4 YOU LTD - SUPPORT PLANNING,CT9999DIRPY,CAREFIRST DIRECT PAYMENTS,56217800
SHEFFIELD CITY COUNCIL,PEOPLE,14009242034,PURCHASING LEARNING DISABILITI,4260008,DIRECT PAYMENTS,03/10/2017,J2042755,-28.32,IDK SUPPORT 4 YOU LTD - SUPPORT PLANNING,CT9999DIRPY,CAREFIRST DIRECT PAYMENTS,56217800
SHEFFIELD CITY COUNCIL,PEOPLE,14009346039,ADULT SOCIAL CARE PURCHASING,4260008,DIRECT PAYMENTS,03/10/2017,J2042755,-19.32,IDK SUPPORT 4 YOU LTD - SUPPORT PLANNING,CT9999DIRPY,CAREFIRST DIRECT PAYMENTS,56217800
SHEFFIELD CITY COUNCIL,PEOPLE,14009346039,ADULT SOCIAL CARE PURCHASING,4260008,DIRECT PAYMENTS,03/10/2017,J2042755,-13.36,IDK SUPPORT 4 YOU LTD - SUPPORT PLANNING,CT9999DIRPY,CAREFIRST DIRECT PAYMENTS,56217800
SHEFFIELD CITY COUNCIL,PEOPLE,14009346039,ADULT SOCIAL CARE PURCHASING,4260008,DIRECT PAYMENTS,03/10/2017,J2042755,-5.92,IDK SUPPORT 4 YOU LTD - SUPPORT PLANNING,CT9999DIRPY,CAREFIRST DIRECT PAYMENTS,56217800
SHEFFIELD CITY COUNCIL,PEOPLE,14009242034,PURCHASING LEARNING DISABILITI,4260008,DIRECT PAYMENTS,03/10/2017,J2042755,-4.40,IDK SUPPORT 4 YOU LTD - SUPPORT PLANNING,CT9999DIRPY,CAREFIRST DIRECT PAYMENTS,56217800
SHEFFIELD CITY COUNCIL,PEOPLE,14009346039,ADULT SOCIAL CARE PURCHASING,9190004,DIRECT PAYMENTS,03/10/2017,J2042755,255.16,IDK SUPPORT 4 YOU LTD - SUPPORT PLANNING,CT9999DIRPY,CAREFIRST DIRECT PAYMENTS,56217800
SHEFFIELD CITY COUNCIL,PEOPLE,14009242034,PURCHASING LEARNING DISABILITI,9190004,DIRECT PAYMENTS,03/10/2017,J2042755,265.12,IDK SUPPORT 4 YOU LTD - SUPPORT PLANNING,CT9999DIRPY,CAREFIRST DIRECT PAYMENTS,56217800
SHEFFIELD CITY COUNCIL,PEOPLE,14009242034,PURCHASING LEARNING DISABILITI,9190004,DIRECT PAYMENTS,03/10/2017,J2042755,276.16,IDK SUPPORT 4 YOU LTD - SUPPORT PLANNING,CT9999DIRPY,CAREFIRST DIRECT PAYMENTS,56217800
SHEFFIELD CITY COUNCIL,PEOPLE,14009346039,ADULT SOCIAL CARE PURCHASING,9190004,DIRECT PAYMENTS,03/10/2017,J2042755,280.76,IDK SUPPORT 4 YOU LTD - SUPPORT PLANNING,CT9999DIRPY,CAREFIRST DIRECT PAYMENTS,56217800
SHEFFIELD CITY COUNCIL,PEOPLE,14009242034,PURCHASING LEARNING DISABILITI,9190004,DIRECT PAYMENTS,03/10/2017,J2042755,287.68,IDK SUPPORT 4 YOU LTD - SUPPORT PLANNING,CT9999DIRPY,CAREFIRST DIRECT PAYMENTS,56217800
SHEFFIELD CITY COUNCIL,PEOPLE,14009346039,ADULT SOCIAL CARE PURCHASING,9190004,DIRECT PAYMENTS,03/10/2017,J2042755,294.00,IDK SUPPORT 4 YOU LTD - SUPPORT PLANNING,CT9999DIRPY,CAREFIRST DIRECT PAYMENTS,56217800
SHEFFIELD CITY COUNCIL,PEOPLE,14009242034,PURCHASING LEARNING DISABILITI,9190004,DIRECT PAYMENTS,03/10/2017,J2042755,300.80,IDK SUPPORT 4 YOU LTD - SUPPORT PLANNING,CT9999DIRPY,CAREFIRST DIRECT PAYMENTS,56217800
SHEFFIELD CITY COUNCIL,PEOPLE,14009346039,ADULT SOCIAL CARE PURCHASING,9190004,DIRECT PAYMENTS,03/10/2017,J2042755,304.00,IDK SUPPORT 4 YOU LTD - SUPPORT PLANNING,CT9999DIRPY,CAREFIRST DIRECT PAYMENTS,56217800
SHEFFIELD CITY COUNCIL,PEOPLE,14009346039,ADULT SOCIAL CARE PURCHASING,9190004,DIRECT PAYMENTS,03/10/2017,J2042755,308.00,IDK SUPPORT 4 YOU LTD - SUPPORT PLANNING,CT9999DIRPY,CAREFIRST DIRECT PAYMENTS,56217800
SHEFFIELD CITY COUNCIL,PEOPLE,14009346039,ADULT SOCIAL CARE PURCHASING,9190004,DIRECT PAYMENTS,03/10/2017,J2042755,312.92,IDK SUPPORT 4 YOU LTD - SUPPORT PLANNING,CT9999DIRPY,CAREFIRST DIRECT PAYMENTS,56217800
SHEFFIELD CITY COUNCIL,PEOPLE,14009346039,ADULT SOCIAL CARE PURCHASING,9190007,FUNDED HOME SUPPORT,03/10/2017,J2042755,323.00,IDK SUPPORT 4 YOU LTD - SUPPORT PLANNING,CT9999DIRPY,CAREFIRST DIRECT PAYMENTS,56217800
SHEFFIELD CITY COUNCIL,PEOPLE,14009242034,PURCHASING LEARNING DISABILITI,9190004,DIRECT PAYMENTS,03/10/2017,J2042755,331.40,IDK SUPPORT 4 YOU LTD - SUPPORT PLANNING,CT9999DIRPY,CAREFIRST DIRECT PAYMENTS,56217800
SHEFFIELD CITY COUNCIL,PEOPLE,14009242034,PURCHASING LEARNING DISABILITI,9190004,DIRECT PAYMENTS,03/10/2017,J2042755,331.80,IDK SUPPORT 4 YOU LTD - SUPPORT PLANNING,CT9999DIRPY,CAREFIRST DIRECT PAYMENTS,56217800
SHEFFIELD CITY COUNCIL,PEOPLE,14009346039,ADULT SOCIAL CARE PURCHASING,9190004,DIRECT PAYMENTS,03/10/2017,J2042755,340.00,IDK SUPPORT 4 YOU LTD - SUPPORT PLANNING,CT9999DIRPY,CAREFIRST DIRECT PAYMENTS,56217800
SHEFFIELD CITY COUNCIL,PEOPLE,14009242034,PURCHASING LEARNING DISABILITI,9190004,DIRECT PAYMENTS,03/10/2017,J2042755,345.20,IDK SUPPORT 4 YOU LTD - SUPPORT PLANNING,CT9999DIRPY,CAREFIRST DIRECT PAYMENTS,56217800
SHEFFIELD CITY COUNCIL,PEOPLE,14009242034,PURCHASING LEARNING DISABILITI,9190004,DIRECT PAYMENTS,03/10/2017,J2042755,346.16,IDK SUPPORT 4 YOU LTD - SUPPORT PLANNING,CT9999DIRPY,CAREFIRST DIRECT PAYMENTS,56217800
SHEFFIELD CITY COUNCIL,PEOPLE,14009242034,PURCHASING LEARNING DISABILITI,9190004,DIRECT PAYMENTS,03/10/2017,J2042755,349.04,IDK SUPPORT 4 YOU LTD - SUPPORT PLANNING,CT9999DIRPY,CAREFIRST DIRECT PAYMENTS,56217800
SHEFFIELD CITY COUNCIL,PEOPLE,14009346039,ADULT SOCIAL CARE PURCHASING,9190004,DIRECT PAYMENTS,03/10/2017,J2042755,350.84,IDK SUPPORT 4 YOU LTD - SUPPORT PLANNING,CT9999DIRPY,CAREFIRST DIRECT PAYMENTS,56217800
SHEFFIELD CITY COUNCIL,PEOPLE,14009346039,ADULT SOCIAL CARE PURCHASING,9190004,DIRECT PAYMENTS,03/10/2017,J2042755,372.08,IDK SUPPORT 4 YOU LTD - SUPPORT PLANNING,CT9999DIRPY,CAREFIRST DIRECT PAYMENTS,56217800
SHEFFIELD CITY COUNCIL,PEOPLE,14009346039,ADULT SOCIAL CARE PURCHASING,9190007,FUNDED HOME SUPPORT,03/10/2017,J2042755,372.16,IDK SUPPORT 4 YOU LTD - SUPPORT PLANNING,CT9999DIRPY,CAREFIRST DIRECT PAYMENTS,56217800
SHEFFIELD CITY COUNCIL,PEOPLE,14009346039,ADULT SOCIAL CARE PURCHASING,9190004,DIRECT PAYMENTS,03/10/2017,J2042755,380.04,IDK SUPPORT 4 YOU LTD - SUPPORT PLANNING,CT9999DIRPY,CAREFIRST DIRECT PAYMENTS,56217800
SHEFFIELD CITY COUNCIL,PEOPLE,14009346039,ADULT SOCIAL CARE PURCHASING,9190004,DIRECT PAYMENTS,03/10/2017,J2042755,382.72,IDK SUPPORT 4 YOU LTD - SUPPORT PLANNING,CT9999DIRPY,CAREFIRST DIRECT PAYMENTS,56217800
SHEFFIELD CITY COUNCIL,PEOPLE,14009242034,PURCHASING LEARNING DISABILITI,9190004,DIRECT PAYMENTS,03/10/2017,J2042755,382.80,IDK SUPPORT 4 YOU LTD - SUPPORT PLANNING,CT9999DIRPY,CAREFIRST DIRECT PAYMENTS,56217800
SHEFFIELD CITY COUNCIL,PEOPLE,14009242034,PURCHASING LEARNING DISABILITI,9190004,DIRECT PAYMENTS,03/10/2017,J2042755,383.56,IDK SUPPORT 4 YOU LTD - SUPPORT PLANNING,CT9999DIRPY,CAREFIRST DIRECT PAYMENTS,56217800
SHEFFIELD CITY COUNCIL,PEOPLE,14009242034,PURCHASING LEARNING DISABILITI,9190007,FUNDED HOME SUPPORT,03/10/2017,J2042755,385.00,IDK SUPPORT 4 YOU LTD - SUPPORT PLANNING,CT9999DIRPY,CAREFIRST DIRECT PAYMENTS,56217800
SHEFFIELD CITY COUNCIL,PEOPLE,14009346039,ADULT SOCIAL CARE PURCHASING,9190004,DIRECT PAYMENTS,03/10/2017,J2042755,385.76,IDK SUPPORT 4 YOU LTD - SUPPORT PLANNING,CT9999DIRPY,CAREFIRST DIRECT PAYMENTS,56217800
SHEFFIELD CITY COUNCIL,PEOPLE,14009346039,ADULT SOCIAL CARE PURCHASING,9190004,DIRECT PAYMENTS,03/10/2017,J2042755,390.00,IDK SUPPORT 4 YOU LTD - SUPPORT PLANNING,CT9999DIRPY,CAREFIRST DIRECT PAYMENTS,56217800
SHEFFIELD CITY COUNCIL,PEOPLE,14009346039,ADULT SOCIAL CARE PURCHASING,9190004,DIRECT PAYMENTS,03/10/2017,J2042755,397.68,IDK SUPPORT 4 YOU LTD - SUPPORT PLANNING,CT9999DIRPY,CAREFIRST DIRECT PAYMENTS,56217800
SHEFFIELD CITY COUNCIL,PEOPLE,14009346039,ADULT SOCIAL CARE PURCHASING,9190004,DIRECT PAYMENTS,03/10/2017,J2042755,398.32,IDK SUPPORT 4 YOU LTD - SUPPORT PLANNING,CT9999DIRPY,CAREFIRST DIRECT PAYMENTS,56217800
SHEFFIELD CITY COUNCIL,PEOPLE,14009346039,ADULT SOCIAL CARE PURCHASING,9190004,DIRECT PAYMENTS,03/10/2017,J2042755,404.68,IDK SUPPORT 4 YOU LTD - SUPPORT PLANNING,CT9999DIRPY,CAREFIRST DIRECT PAYMENTS,56217800
SHEFFIELD CITY COUNCIL,PEOPLE,14009242034,PURCHASING LEARNING DISABILITI,9190007,FUNDED HOME SUPPORT,03/10/2017,J2042755,404.92,IDK SUPPORT 4 YOU LTD - SUPPORT PLANNING,CT9999DIRPY,CAREFIRST DIRECT PAYMENTS,56217800
SHEFFIELD CITY COUNCIL,PEOPLE,14009242034,PURCHASING LEARNING DISABILITI,9190004,DIRECT PAYMENTS,03/10/2017,J2042755,408.52,IDK SUPPORT 4 YOU LTD - SUPPORT PLANNING,CT9999DIRPY,CAREFIRST DIRECT PAYMENTS,56217800
SHEFFIELD CITY COUNCIL,PEOPLE,14009242034,PURCHASING LEARNING DISABILITI,9190004,DIRECT PAYMENTS,03/10/2017,J2042755,409.92,IDK SUPPORT 4 YOU LTD - SUPPORT PLANNING,CT9999DIRPY,CAREFIRST DIRECT PAYMENTS,56217800
SHEFFIELD CITY COUNCIL,PEOPLE,14009346039,ADULT SOCIAL CARE PURCHASING,9190004,DIRECT PAYMENTS,03/10/2017,J2042755,410.52,IDK SUPPORT 4 YOU LTD - SUPPORT PLANNING,CT9999DIRPY,CAREFIRST DIRECT PAYMENTS,56217800
SHEFFIELD CITY COUNCIL,PEOPLE,14009346039,ADULT SOCIAL CARE PURCHASING,9190004,DIRECT PAYMENTS,03/10/2017,J2042755,420.00,IDK SUPPORT 4 YOU LTD - SUPPORT PLANNING,CT9999DIRPY,CAREFIRST DIRECT PAYMENTS,56217800
SHEFFIELD CITY COUNCIL,PEOPLE,14009346039,ADULT SOCIAL CARE PURCHASING,9190004,DIRECT PAYMENTS,03/10/2017,J2042755,426.36,IDK SUPPORT 4 YOU LTD - SUPPORT PLANNING,CT9999DIRPY,CAREFIRST DIRECT PAYMENTS,56217800
SHEFFIELD CITY COUNCIL,PEOPLE,14009346039,ADULT SOCIAL CARE PURCHASING,9190004,DIRECT PAYMENTS,03/10/2017,J2042755,427.00,IDK SUPPORT 4 YOU LTD - SUPPORT PLANNING,CT9999DIRPY,CAREFIRST DIRECT PAYMENTS,56217800
SHEFFIELD CITY COUNCIL,PEOPLE,14009346039,ADULT SOCIAL CARE PURCHASING,9190004,DIRECT PAYMENTS,03/10/2017,J2042755,428.20,IDK SUPPORT 4 YOU LTD - SUPPORT PLANNING,CT9999DIRPY,CAREFIRST DIRECT PAYMENTS,56217800
SHEFFIELD CITY COUNCIL,PEOPLE,14009346039,ADULT SOCIAL CARE PURCHASING,9190004,DIRECT PAYMENTS,03/10/2017,J2042755,434.00,IDK SUPPORT 4 YOU LTD - SUPPORT PLANNING,CT9999DIRPY,CAREFIRST DIRECT PAYMENTS,56217800
SHEFFIELD CITY COUNCIL,PEOPLE,14009242034,PURCHASING LEARNING DISABILITI,9190004,DIRECT PAYMENTS,03/10/2017,J2042755,437.28,IDK SUPPORT 4 YOU LTD - SUPPORT PLANNING,CT9999DIRPY,CAREFIRST DIRECT PAYMENTS,56217800
SHEFFIELD CITY COUNCIL,PEOPLE,14009346039,ADULT SOCIAL CARE PURCHASING,9190004,DIRECT PAYMENTS,03/10/2017,J2042755,442.96,IDK SUPPORT 4 YOU LTD - SUPPORT PLANNING,CT9999DIRPY,CAREFIRST DIRECT PAYMENTS,56217800
SHEFFIELD CITY COUNCIL,PEOPLE,14009346039,ADULT SOCIAL CARE PURCHASING,9190004,DIRECT PAYMENTS,03/10/2017,J2042755,452.84,IDK SUPPORT 4 YOU LTD - SUPPORT PLANNING,CT9999DIRPY,CAREFIRST DIRECT PAYMENTS,56217800
SHEFFIELD CITY COUNCIL,PEOPLE,14009346039,ADULT SOCIAL CARE PURCHASING,9190004,DIRECT PAYMENTS,03/10/2017,J2042755,456.92,IDK SUPPORT 4 YOU LTD - SUPPORT PLANNING,CT9999DIRPY,CAREFIRST DIRECT PAYMENTS,56217800
SHEFFIELD CITY COUNCIL,PEOPLE,14009346039,ADULT SOCIAL CARE PURCHASING,9190004,DIRECT PAYMENTS,03/10/2017,J2042755,459.00,IDK SUPPORT 4 YOU LTD - SUPPORT PLANNING,CT9999DIRPY,CAREFIRST DIRECT PAYMENTS,56217800
SHEFFIELD CITY COUNCIL,PEOPLE,14009346039,ADULT SOCIAL CARE PURCHASING,9190004,DIRECT PAYMENTS,03/10/2017,J2042755,460.12,IDK SUPPORT 4 YOU LTD - SUPPORT PLANNING,CT9999DIRPY,CAREFIRST DIRECT PAYMENTS,56217800
SHEFFIELD CITY COUNCIL,PEOPLE,14009346039,ADULT SOCIAL CARE PURCHASING,9190004,DIRECT PAYMENTS,03/10/2017,J2042755,460.80,IDK SUPPORT 4 YOU LTD - SUPPORT PLANNING,CT9999DIRPY,CAREFIRST DIRECT PAYMENTS,56217800
SHEFFIELD CITY COUNCIL,PEOPLE,14009346039,ADULT SOCIAL CARE PURCHASING,9190004,DIRECT PAYMENTS,03/10/2017,J2042755,465.12,IDK SUPPORT 4 YOU LTD - SUPPORT PLANNING,CT9999DIRPY,CAREFIRST DIRECT PAYMENTS,56217800
SHEFFIELD CITY COUNCIL,PEOPLE,14009346039,ADULT SOCIAL CARE PURCHASING,9190004,DIRECT PAYMENTS,03/10/2017,J2042755,469.52,IDK SUPPORT 4 YOU LTD - SUPPORT PLANNING,CT9999DIRPY,CAREFIRST DIRECT PAYMENTS,56217800
SHEFFIELD CITY COUNCIL,PEOPLE,14009346039,ADULT SOCIAL CARE PURCHASING,9190004,DIRECT PAYMENTS,03/10/2017,J2042755,474.52,IDK SUPPORT 4 YOU LTD - SUPPORT PLANNING,CT9999DIRPY,CAREFIRST DIRECT PAYMENTS,56217800
SHEFFIELD CITY COUNCIL,PEOPLE,14009242034,PURCHASING LEARNING DISABILITI,9190004,DIRECT PAYMENTS,03/10/2017,J2042755,475.72,IDK SUPPORT 4 YOU LTD - SUPPORT PLANNING,CT9999DIRPY,CAREFIRST DIRECT PAYMENTS,56217800
SHEFFIELD CITY COUNCIL,PEOPLE,14009346039,ADULT SOCIAL CARE PURCHASING,9190004,DIRECT PAYMENTS,03/10/2017,J2042755,480.00,IDK SUPPORT 4 YOU LTD - SUPPORT PLANNING,CT9999DIRPY,CAREFIRST DIRECT PAYMENTS,56217800
SHEFFIELD CITY COUNCIL,PEOPLE,14009346039,ADULT SOCIAL CARE PURCHASING,9190004,DIRECT PAYMENTS,03/10/2017,J2042755,480.00,IDK SUPPORT 4 YOU LTD - SUPPORT PLANNING,CT9999DIRPY,CAREFIRST DIRECT PAYMENTS,56217800
SHEFFIELD CITY COUNCIL,PEOPLE,14009242034,PURCHASING LEARNING DISABILITI,9190004,DIRECT PAYMENTS,03/10/2017,J2042755,480.20,IDK SUPPORT 4 YOU LTD - SUPPORT PLANNING,CT9999DIRPY,CAREFIRST DIRECT PAYMENTS,56217800
SHEFFIELD CITY COUNCIL,PEOPLE,14009242034,PURCHASING LEARNING DISABILITI,9190004,DIRECT PAYMENTS,03/10/2017,J2042755,484.60,IDK SUPPORT 4 YOU LTD - SUPPORT PLANNING,CT9999DIRPY,CAREFIRST DIRECT PAYMENTS,56217800
SHEFFIELD CITY COUNCIL,PEOPLE,14009242034,PURCHASING LEARNING DISABILITI,9190004,DIRECT PAYMENTS,03/10/2017,J2042755,491.36,IDK SUPPORT 4 YOU LTD - SUPPORT PLANNING,CT9999DIRPY,CAREFIRST DIRECT PAYMENTS,56217800
SHEFFIELD CITY COUNCIL,PEOPLE,14009346039,ADULT SOCIAL CARE PURCHASING,9190004,DIRECT PAYMENTS,03/10/2017,J2042755,492.68,IDK SUPPORT 4 YOU LTD - SUPPORT PLANNING,CT9999DIRPY,CAREFIRST DIRECT PAYMENTS,56217800
SHEFFIELD CITY COUNCIL,PEOPLE,14009346039,ADULT SOCIAL CARE PURCHASING,9190004,DIRECT PAYMENTS,03/10/2017,J2042755,516.60,IDK SUPPORT 4 YOU LTD - SUPPORT PLANNING,CT9999DIRPY,CAREFIRST DIRECT PAYMENTS,56217800
SHEFFIELD CITY COUNCIL,PEOPLE,14009346039,ADULT SOCIAL CARE PURCHASING,9190004,DIRECT PAYMENTS,03/10/2017,J2042755,519.48,IDK SUPPORT 4 YOU LTD - SUPPORT PLANNING,CT9999DIRPY,CAREFIRST DIRECT PAYMENTS,56217800
SHEFFIELD CITY COUNCIL,PEOPLE,14009346039,ADULT SOCIAL CARE PURCHASING,9190004,DIRECT PAYMENTS,03/10/2017,J2042755,521.08,IDK SUPPORT 4 YOU LTD - SUPPORT PLANNING,CT9999DIRPY,CAREFIRST DIRECT PAYMENTS,56217800
SHEFFIELD CITY COUNCIL,PEOPLE,14009346039,ADULT SOCIAL CARE PURCHASING,9190004,DIRECT PAYMENTS,03/10/2017,J2042755,526.52,IDK SUPPORT 4 YOU LTD - SUPPORT PLANNING,CT9999DIRPY,CAREFIRST DIRECT PAYMENTS,56217800
SHEFFIELD CITY COUNCIL,PEOPLE,14009346039,ADULT SOCIAL CARE PURCHASING,9190004,DIRECT PAYMENTS,03/10/2017,J2042755,531.36,IDK SUPPORT 4 YOU LTD - SUPPORT PLANNING,CT9999DIRPY,CAREFIRST DIRECT PAYMENTS,56217800
SHEFFIELD CITY COUNCIL,PEOPLE,14009242034,PURCHASING LEARNING DISABILITI,9190004,DIRECT PAYMENTS,03/10/2017,J2042755,540.00,IDK SUPPORT 4 YOU LTD - SUPPORT PLANNING,CT9999DIRPY,CAREFIRST DIRECT PAYMENTS,56217800
SHEFFIELD CITY COUNCIL,PEOPLE,14009346039,ADULT SOCIAL CARE PURCHASING,9190004,DIRECT PAYMENTS,03/10/2017,J2042755,544.52,IDK SUPPORT 4 YOU LTD - SUPPORT PLANNING,CT9999DIRPY,CAREFIRST DIRECT PAYMENTS,56217800
SHEFFIELD CITY COUNCIL,PEOPLE,14009346039,ADULT SOCIAL CARE PURCHASING,9190004,DIRECT PAYMENTS,03/10/2017,J2042755,559.52,IDK SUPPORT 4 YOU LTD - SUPPORT PLANNING,CT9999DIRPY,CAREFIRST DIRECT PAYMENTS,56217800
SHEFFIELD CITY COUNCIL,PEOPLE,13002439148,DIRECT PAYMENTS,9190004,DIRECT PAYMENTS,03/10/2017,J2042755,560.00,IDK SUPPORT 4 YOU LTD - SUPPORT PLANNING,CT9999DIRPY,CAREFIRST DIRECT PAYMENTS,56217800
SHEFFIELD CITY COUNCIL,PEOPLE,13002439148,DIRECT PAYMENTS,9190004,DIRECT PAYMENTS,03/10/2017,J2042755,565.76,IDK SUPPORT 4 YOU LTD - SUPPORT PLANNING,CT9999DIRPY,CAREFIRST DIRECT PAYMENTS,56217800
SHEFFIELD CITY COUNCIL,PEOPLE,14009346039,ADULT SOCIAL CARE PURCHASING,9190004,DIRECT PAYMENTS,03/10/2017,J2042755,567.68,IDK SUPPORT 4 YOU LTD - SUPPORT PLANNING,CT9999DIRPY,CAREFIRST DIRECT PAYMENTS,56217800
SHEFFIELD CITY COUNCIL,PEOPLE,14009242034,PURCHASING LEARNING DISABILITI,9190004,DIRECT PAYMENTS,03/10/2017,J2042755,576.28,IDK SUPPORT 4 YOU LTD - SUPPORT PLANNING,CT9999DIRPY,CAREFIRST DIRECT PAYMENTS,56217800
SHEFFIELD CITY COUNCIL,PEOPLE,14009242034,PURCHASING LEARNING DISABILITI,9190007,FUNDED HOME SUPPORT,03/10/2017,J2042755,580.60,IDK SUPPORT 4 YOU LTD - SUPPORT PLANNING,CT9999DIRPY,CAREFIRST DIRECT PAYMENTS,56217800
SHEFFIELD CITY COUNCIL,PEOPLE,14009346039,ADULT SOCIAL CARE PURCHASING,9190004,DIRECT PAYMENTS,03/10/2017,J2042755,581.88,IDK SUPPORT 4 YOU LTD - SUPPORT PLANNING,CT9999DIRPY,CAREFIRST DIRECT PAYMENTS,56217800
SHEFFIELD CITY COUNCIL,PEOPLE,14009242034,PURCHASING LEARNING DISABILITI,9190004,DIRECT PAYMENTS,03/10/2017,J2042755,594.80,IDK SUPPORT 4 YOU LTD - SUPPORT PLANNING,CT9999DIRPY,CAREFIRST DIRECT PAYMENTS,56217800
SHEFFIELD CITY COUNCIL,PEOPLE,14009346039,ADULT SOCIAL CARE PURCHASING,9190004,DIRECT PAYMENTS,03/10/2017,J2042755,599.24,IDK SUPPORT 4 YOU LTD - SUPPORT PLANNING,CT9999DIRPY,CAREFIRST DIRECT PAYMENTS,56217800
SHEFFIELD CITY COUNCIL,PEOPLE,14009346039,ADULT SOCIAL CARE PURCHASING,9190004,DIRECT PAYMENTS,03/10/2017,J2042755,600.00,IDK SUPPORT 4 YOU LTD - SUPPORT PLANNING,CT9999DIRPY,CAREFIRST DIRECT PAYMENTS,56217800
SHEFFIELD CITY COUNCIL,PEOPLE,14009242034,PURCHASING LEARNING DISABILITI,9190004,DIRECT PAYMENTS,03/10/2017,J2042755,608.36,IDK SUPPORT 4 YOU LTD - SUPPORT PLANNING,CT9999DIRPY,CAREFIRST DIRECT PAYMENTS,56217800
SHEFFIELD CITY COUNCIL,PEOPLE,14009242034,PURCHASING LEARNING DISABILITI,9190004,DIRECT PAYMENTS,03/10/2017,J2042755,624.00,IDK SUPPORT 4 YOU LTD - SUPPORT PLANNING,CT9999DIRPY,CAREFIRST DIRECT PAYMENTS,56217800
SHEFFIELD CITY COUNCIL,PEOPLE,14009242034,PURCHASING LEARNING DISABILITI,9190004,DIRECT PAYMENTS,03/10/2017,J2042755,626.84,IDK SUPPORT 4 YOU LTD - SUPPORT PLANNING,CT9999DIRPY,CAREFIRST DIRECT PAYMENTS,56217800
SHEFFIELD CITY COUNCIL,PEOPLE,14009346039,ADULT SOCIAL CARE PURCHASING,9190004,DIRECT PAYMENTS,03/10/2017,J2042755,641.84,IDK SUPPORT 4 YOU LTD - SUPPORT PLANNING,CT9999DIRPY,CAREFIRST DIRECT PAYMENTS,56217800
SHEFFIELD CITY COUNCIL,PEOPLE,14009346039,ADULT SOCIAL CARE PURCHASING,9190004,DIRECT PAYMENTS,03/10/2017,J2042755,647.84,IDK SUPPORT 4 YOU LTD - SUPPORT PLANNING,CT9999DIRPY,CAREFIRST DIRECT PAYMENTS,56217800
SHEFFIELD CITY COUNCIL,PEOPLE,14009346039,ADULT SOCIAL CARE PURCHASING,9190004,DIRECT PAYMENTS,03/10/2017,J2042755,649.60,IDK SUPPORT 4 YOU LTD - SUPPORT PLANNING,CT9999DIRPY,CAREFIRST DIRECT PAYMENTS,56217800
SHEFFIELD CITY COUNCIL,PEOPLE,14009242034,PURCHASING LEARNING DISABILITI,9190004,DIRECT PAYMENTS,03/10/2017,J2042755,650.76,IDK SUPPORT 4 YOU LTD - SUPPORT PLANNING,CT9999DIRPY,CAREFIRST DIRECT PAYMENTS,56217800
SHEFFIELD CITY COUNCIL,PEOPLE,14008048007,PUBLIC HEALTH DIRECT PAYMENTS,9190004,DIRECT PAYMENTS,03/10/2017,J2042755,651.24,IDK SUPPORT 4 YOU LTD - SUPPORT PLANNING,CT9999DIRPY,CAREFIRST DIRECT PAYMENTS,56217800
SHEFFIELD CITY COUNCIL,PEOPLE,14009346039,ADULT SOCIAL CARE PURCHASING,9190004,DIRECT PAYMENTS,03/10/2017,J2042755,659.04,IDK SUPPORT 4 YOU LTD - SUPPORT PLANNING,CT9999DIRPY,CAREFIRST DIRECT PAYMENTS,56217800
SHEFFIELD CITY COUNCIL,PEOPLE,14009242034,PURCHASING LEARNING DISABILITI,9190004,DIRECT PAYMENTS,03/10/2017,J2042755,665.24,IDK SUPPORT 4 YOU LTD - SUPPORT PLANNING,CT9999DIRPY,CAREFIRST DIRECT PAYMENTS,56217800
SHEFFIELD CITY COUNCIL,PEOPLE,14009242034,PURCHASING LEARNING DISABILITI,9190004,DIRECT PAYMENTS,03/10/2017,J2042755,671.24,IDK SUPPORT 4 YOU LTD - SUPPORT PLANNING,CT9999DIRPY,CAREFIRST DIRECT PAYMENTS,56217800
SHEFFIELD CITY COUNCIL,PEOPLE,14009242034,PURCHASING LEARNING DISABILITI,9190004,DIRECT PAYMENTS,03/10/2017,J2042755,672.00,IDK SUPPORT 4 YOU LTD - SUPPORT PLANNING,CT9999DIRPY,CAREFIRST DIRECT PAYMENTS,56217800
SHEFFIELD CITY COUNCIL,PEOPLE,14009346039,ADULT SOCIAL CARE PURCHASING,9190004,DIRECT PAYMENTS,03/10/2017,J2042755,672.44,IDK SUPPORT 4 YOU LTD - SUPPORT PLANNING,CT9999DIRPY,CAREFIRST DIRECT PAYMENTS,56217800
SHEFFIELD CITY COUNCIL,PEOPLE,14009346039,ADULT SOCIAL CARE PURCHASING,9190004,DIRECT PAYMENTS,03/10/2017,J2042755,686.76,IDK SUPPORT 4 YOU LTD - SUPPORT PLANNING,CT9999DIRPY,CAREFIRST DIRECT PAYMENTS,56217800
SHEFFIELD CITY COUNCIL,PEOPLE,14009346039,ADULT SOCIAL CARE PURCHASING,9190004,DIRECT PAYMENTS,03/10/2017,J2042755,700.52,IDK SUPPORT 4 YOU LTD - SUPPORT PLANNING,CT9999DIRPY,CAREFIRST DIRECT PAYMENTS,56217800
SHEFFIELD CITY COUNCIL,PEOPLE,14009242034,PURCHASING LEARNING DISABILITI,9190004,DIRECT PAYMENTS,03/10/2017,J2042755,701.92,IDK SUPPORT 4 YOU LTD - SUPPORT PLANNING,CT9999DIRPY,CAREFIRST DIRECT PAYMENTS,56217800
SHEFFIELD CITY COUNCIL,PEOPLE,14009242034,PURCHASING LEARNING DISABILITI,9190004,DIRECT PAYMENTS,03/10/2017,J2042755,702.08,IDK SUPPORT 4 YOU LTD - SUPPORT PLANNING,CT9999DIRPY,CAREFIRST DIRECT PAYMENTS,56217800
SHEFFIELD CITY COUNCIL,PEOPLE,14009346039,ADULT SOCIAL CARE PURCHASING,9190004,DIRECT PAYMENTS,03/10/2017,J2042755,703.12,IDK SUPPORT 4 YOU LTD - SUPPORT PLANNING,CT9999DIRPY,CAREFIRST DIRECT PAYMENTS,56217800
SHEFFIELD CITY COUNCIL,PEOPLE,14009242034,PURCHASING LEARNING DISABILITI,9190004,DIRECT PAYMENTS,03/10/2017,J2042755,709.92,IDK SUPPORT 4 YOU LTD - SUPPORT PLANNING,CT9999DIRPY,CAREFIRST DIRECT PAYMENTS,56217800
SHEFFIELD CITY COUNCIL,PEOPLE,14009346039,ADULT SOCIAL CARE PURCHASING,9190004,DIRECT PAYMENTS,03/10/2017,J2042755,711.60,IDK SUPPORT 4 YOU LTD - SUPPORT PLANNING,CT9999DIRPY,CAREFIRST DIRECT PAYMENTS,56217800
SHEFFIELD CITY COUNCIL,PEOPLE,14009346039,ADULT SOCIAL CARE PURCHASING,9190004,DIRECT PAYMENTS,03/10/2017,J2042755,716.86,IDK SUPPORT 4 YOU LTD - SUPPORT PLANNING,CT9999DIRPY,CAREFIRST DIRECT PAYMENTS,56217800
SHEFFIELD CITY COUNCIL,PEOPLE,14009242034,PURCHASING LEARNING DISABILITI,9190004,DIRECT PAYMENTS,03/10/2017,J2042755,729.00,IDK SUPPORT 4 YOU LTD - SUPPORT PLANNING,CT9999DIRPY,CAREFIRST DIRECT PAYMENTS,56217800
SHEFFIELD CITY COUNCIL,PEOPLE,14009346039,ADULT SOCIAL CARE PURCHASING,9190004,DIRECT PAYMENTS,03/10/2017,J2042755,744.84,IDK SUPPORT 4 YOU LTD - SUPPORT PLANNING,CT9999DIRPY,CAREFIRST DIRECT PAYMENTS,56217800
SHEFFIELD CITY COUNCIL,PEOPLE,14009346039,ADULT SOCIAL CARE PURCHASING,9190004,DIRECT PAYMENTS,03/10/2017,J2042755,748.08,IDK SUPPORT 4 YOU LTD - SUPPORT PLANNING,CT9999DIRPY,CAREFIRST DIRECT PAYMENTS,56217800
SHEFFIELD CITY COUNCIL,PEOPLE,14009346039,ADULT SOCIAL CARE PURCHASING,9190004,DIRECT PAYMENTS,03/10/2017,J2042755,749.64,IDK SUPPORT 4 YOU LTD - SUPPORT PLANNING,CT9999DIRPY,CAREFIRST DIRECT PAYMENTS,56217800
SHEFFIELD CITY COUNCIL,PEOPLE,14009346039,ADULT SOCIAL CARE PURCHASING,9190004,DIRECT PAYMENTS,03/10/2017,J2042755,760.00,IDK SUPPORT 4 YOU LTD - SUPPORT PLANNING,CT9999DIRPY,CAREFIRST DIRECT PAYMENTS,56217800
SHEFFIELD CITY COUNCIL,PEOPLE,14009242034,PURCHASING LEARNING DISABILITI,9190007,FUNDED HOME SUPPORT,03/10/2017,J2042755,771.64,IDK SUPPORT 4 YOU LTD - SUPPORT PLANNING,CT9999DIRPY,CAREFIRST DIRECT PAYMENTS,56217800
SHEFFIELD CITY COUNCIL,PEOPLE,14009346039,ADULT SOCIAL CARE PURCHASING,9190004,DIRECT PAYMENTS,03/10/2017,J2042755,777.52,IDK SUPPORT 4 YOU LTD - SUPPORT PLANNING,CT9999DIRPY,CAREFIRST DIRECT PAYMENTS,56217800
SHEFFIELD CITY COUNCIL,PEOPLE,14009242034,PURCHASING LEARNING DISABILITI,9190004,DIRECT PAYMENTS,03/10/2017,J2042755,778.48,IDK SUPPORT 4 YOU LTD - SUPPORT PLANNING,CT9999DIRPY,CAREFIRST DIRECT PAYMENTS,56217800
SHEFFIELD CITY COUNCIL,PEOPLE,14009242034,PURCHASING LEARNING DISABILITI,9190004,DIRECT PAYMENTS,03/10/2017,J2042755,788.60,IDK SUPPORT 4 YOU LTD - SUPPORT PLANNING,CT9999DIRPY,CAREFIRST DIRECT PAYMENTS,56217800
SHEFFIELD CITY COUNCIL,PEOPLE,14009346039,ADULT SOCIAL CARE PURCHASING,9190004,DIRECT PAYMENTS,03/10/2017,J2042755,793.84,IDK SUPPORT 4 YOU LTD - SUPPORT PLANNING,CT9999DIRPY,CAREFIRST DIRECT PAYMENTS,56217800
SHEFFIELD CITY COUNCIL,PEOPLE,14009346039,ADULT SOCIAL CARE PURCHASING,9190004,DIRECT PAYMENTS,03/10/2017,J2042755,795.72,IDK SUPPORT 4 YOU LTD - SUPPORT PLANNING,CT9999DIRPY,CAREFIRST DIRECT PAYMENTS,56217800
SHEFFIELD CITY COUNCIL,PEOPLE,14009346039,ADULT SOCIAL CARE PURCHASING,9190004,DIRECT PAYMENTS,03/10/2017,J2042755,800.00,IDK SUPPORT 4 YOU LTD - SUPPORT PLANNING,CT9999DIRPY,CAREFIRST DIRECT PAYMENTS,56217800
SHEFFIELD CITY COUNCIL,PEOPLE,14009242034,PURCHASING LEARNING DISABILITI,9190004,DIRECT PAYMENTS,03/10/2017,J2042755,802.20,IDK SUPPORT 4 YOU LTD - SUPPORT PLANNING,CT9999DIRPY,CAREFIRST DIRECT PAYMENTS,56217800
SHEFFIELD CITY COUNCIL,PEOPLE,14009242034,PURCHASING LEARNING DISABILITI,9190004,DIRECT PAYMENTS,03/10/2017,J2042755,805.48,IDK SUPPORT 4 YOU LTD - SUPPORT PLANNING,CT9999DIRPY,CAREFIRST DIRECT PAYMENTS,56217800
SHEFFIELD CITY COUNCIL,PEOPLE,14009346039,ADULT SOCIAL CARE PURCHASING,9190004,DIRECT PAYMENTS,03/10/2017,J2042755,817.20,IDK SUPPORT 4 YOU LTD - SUPPORT PLANNING,CT9999DIRPY,CAREFIRST DIRECT PAYMENTS,56217800
SHEFFIELD CITY COUNCIL,PEOPLE,14009242034,PURCHASING LEARNING DISABILITI,9190004,DIRECT PAYMENTS,03/10/2017,J2042755,819.00,IDK SUPPORT 4 YOU LTD - SUPPORT PLANNING,CT9999DIRPY,CAREFIRST DIRECT PAYMENTS,56217800
SHEFFIELD CITY COUNCIL,PEOPLE,14009242034,PURCHASING LEARNING DISABILITI,9190004,DIRECT PAYMENTS,03/10/2017,J2042755,828.48,IDK SUPPORT 4 YOU LTD - SUPPORT PLANNING,CT9999DIRPY,CAREFIRST DIRECT PAYMENTS,56217800
SHEFFIELD CITY COUNCIL,PEOPLE,14009346039,ADULT SOCIAL CARE PURCHASING,9190004,DIRECT PAYMENTS,03/10/2017,J2042755,829.28,IDK SUPPORT 4 YOU LTD - SUPPORT PLANNING,CT9999DIRPY,CAREFIRST DIRECT PAYMENTS,56217800
SHEFFIELD CITY COUNCIL,PEOPLE,14009346039,ADULT SOCIAL CARE PURCHASING,9190004,DIRECT PAYMENTS,03/10/2017,J2042755,843.24,IDK SUPPORT 4 YOU LTD - SUPPORT PLANNING,CT9999DIRPY,CAREFIRST DIRECT PAYMENTS,56217800
SHEFFIELD CITY COUNCIL,PEOPLE,14009242034,PURCHASING LEARNING DISABILITI,9190004,DIRECT PAYMENTS,03/10/2017,J2042755,859.96,IDK SUPPORT 4 YOU LTD - SUPPORT PLANNING,CT9999DIRPY,CAREFIRST DIRECT PAYMENTS,56217800
SHEFFIELD CITY COUNCIL,PEOPLE,14009242034,PURCHASING LEARNING DISABILITI,9190004,DIRECT PAYMENTS,03/10/2017,J2042755,863.00,IDK SUPPORT 4 YOU LTD - SUPPORT PLANNING,CT9999DIRPY,CAREFIRST DIRECT PAYMENTS,56217800
SHEFFIELD CITY COUNCIL,PEOPLE,14009346039,ADULT SOCIAL CARE PURCHASING,9190004,DIRECT PAYMENTS,03/10/2017,J2042755,863.64,IDK SUPPORT 4 YOU LTD - SUPPORT PLANNING,CT9999DIRPY,CAREFIRST DIRECT PAYMENTS,56217800
SHEFFIELD CITY COUNCIL,PEOPLE,14009242034,PURCHASING LEARNING DISABILITI,9190004,DIRECT PAYMENTS,03/10/2017,J2042755,864.00,IDK SUPPORT 4 YOU LTD - SUPPORT PLANNING,CT9999DIRPY,CAREFIRST DIRECT PAYMENTS,56217800
SHEFFIELD CITY COUNCIL,PEOPLE,14009242034,PURCHASING LEARNING DISABILITI,9190004,DIRECT PAYMENTS,03/10/2017,J2042755,866.08,IDK SUPPORT 4 YOU LTD - SUPPORT PLANNING,CT9999DIRPY,CAREFIRST DIRECT PAYMENTS,56217800
SHEFFIELD CITY COUNCIL,PEOPLE,14009242034,PURCHASING LEARNING DISABILITI,9190004,DIRECT PAYMENTS,03/10/2017,J2042755,872.76,IDK SUPPORT 4 YOU LTD - SUPPORT PLANNING,CT9999DIRPY,CAREFIRST DIRECT PAYMENTS,56217800
SHEFFIELD CITY COUNCIL,PEOPLE,14009346039,ADULT SOCIAL CARE PURCHASING,9190004,DIRECT PAYMENTS,03/10/2017,J2042755,894.00,IDK SUPPORT 4 YOU LTD - SUPPORT PLANNING,CT9999DIRPY,CAREFIRST DIRECT PAYMENTS,56217800
SHEFFIELD CITY COUNCIL,PEOPLE,14009346039,ADULT SOCIAL CARE PURCHASING,9190004,DIRECT PAYMENTS,03/10/2017,J2042755,925.16,IDK SUPPORT 4 YOU LTD - SUPPORT PLANNING,CT9999DIRPY,CAREFIRST DIRECT PAYMENTS,56217800
SHEFFIELD CITY COUNCIL,PEOPLE,14009242034,PURCHASING LEARNING DISABILITI,9190004,DIRECT PAYMENTS,03/10/2017,J2042755,930.48,IDK SUPPORT 4 YOU LTD - SUPPORT PLANNING,CT9999DIRPY,CAREFIRST DIRECT PAYMENTS,56217800
SHEFFIELD CITY COUNCIL,PEOPLE,14009346039,ADULT SOCIAL CARE PURCHASING,9190004,DIRECT PAYMENTS,03/10/2017,J2042755,931.12,IDK SUPPORT 4 YOU LTD - SUPPORT PLANNING,CT9999DIRPY,CAREFIRST DIRECT PAYMENTS,56217800
SHEFFIELD CITY COUNCIL,PEOPLE,14009346039,ADULT SOCIAL CARE PURCHASING,9190004,DIRECT PAYMENTS,03/10/2017,J2042755,933.48,IDK SUPPORT 4 YOU LTD - SUPPORT PLANNING,CT9999DIRPY,CAREFIRST DIRECT PAYMENTS,56217800
SHEFFIELD CITY COUNCIL,PEOPLE,14009346039,ADULT SOCIAL CARE PURCHASING,9190004,DIRECT PAYMENTS,03/10/2017,J2042755,942.80,IDK SUPPORT 4 YOU LTD - SUPPORT PLANNING,CT9999DIRPY,CAREFIRST DIRECT PAYMENTS,56217800
SHEFFIELD CITY COUNCIL,PEOPLE,14009346039,ADULT SOCIAL CARE PURCHASING,9190004,DIRECT PAYMENTS,03/10/2017,J2042755,954.88,IDK SUPPORT 4 YOU LTD - SUPPORT PLANNING,CT9999DIRPY,CAREFIRST DIRECT PAYMENTS,56217800
SHEFFIELD CITY COUNCIL,PEOPLE,14009346039,ADULT SOCIAL CARE PURCHASING,9190004,DIRECT PAYMENTS,03/10/2017,J2042755,957.24,IDK SUPPORT 4 YOU LTD - SUPPORT PLANNING,CT9999DIRPY,CAREFIRST DIRECT PAYMENTS,56217800
SHEFFIELD CITY COUNCIL,PEOPLE,14009346039,ADULT SOCIAL CARE PURCHASING,9190004,DIRECT PAYMENTS,03/10/2017,J2042755,964.36,IDK SUPPORT 4 YOU LTD - SUPPORT PLANNING,CT9999DIRPY,CAREFIRST DIRECT PAYMENTS,56217800
SHEFFIELD CITY COUNCIL,PEOPLE,14009242034,PURCHASING LEARNING DISABILITI,9190004,DIRECT PAYMENTS,03/10/2017,J2042755,965.88,IDK SUPPORT 4 YOU LTD - SUPPORT PLANNING,CT9999DIRPY,CAREFIRST DIRECT PAYMENTS,56217800
SHEFFIELD CITY COUNCIL,PEOPLE,14009242034,PURCHASING LEARNING DISABILITI,9190004,DIRECT PAYMENTS,03/10/2017,J2042755,971.40,IDK SUPPORT 4 YOU LTD - SUPPORT PLANNING,CT9999DIRPY,CAREFIRST DIRECT PAYMENTS,56217800
SHEFFIELD CITY COUNCIL,PEOPLE,14009242034,PURCHASING LEARNING DISABILITI,9190004,DIRECT PAYMENTS,03/10/2017,J2042755,974.16,IDK SUPPORT 4 YOU LTD - SUPPORT PLANNING,CT9999DIRPY,CAREFIRST DIRECT PAYMENTS,56217800
SHEFFIELD CITY COUNCIL,PEOPLE,14009346039,ADULT SOCIAL CARE PURCHASING,9190004,DIRECT PAYMENTS,03/10/2017,J2042755,974.20,IDK SUPPORT 4 YOU LTD - SUPPORT PLANNING,CT9999DIRPY,CAREFIRST DIRECT PAYMENTS,56217800
SHEFFIELD CITY COUNCIL,PEOPLE,14009242034,PURCHASING LEARNING DISABILITI,9190004,DIRECT PAYMENTS,03/10/2017,J2042755,999.12,IDK SUPPORT 4 YOU LTD - SUPPORT PLANNING,CT9999DIRPY,CAREFIRST DIRECT PAYMENTS,56217800
SHEFFIELD CITY COUNCIL,PEOPLE,14009346039,ADULT SOCIAL CARE PURCHASING,9190004,DIRECT PAYMENTS,03/10/2017,J2042755,999.92,IDK SUPPORT 4 YOU LTD - SUPPORT PLANNING,CT9999DIRPY,CAREFIRST DIRECT PAYMENTS,56217800
SHEFFIELD CITY COUNCIL,PEOPLE,14009346039,ADULT SOCIAL CARE PURCHASING,9190004,DIRECT PAYMENTS,03/10/2017,J2042755,"1,002.96",IDK SUPPORT 4 YOU LTD - SUPPORT PLANNING,CT9999DIRPY,CAREFIRST DIRECT PAYMENTS,56217800
SHEFFIELD CITY COUNCIL,PEOPLE,14009242034,PURCHASING LEARNING DISABILITI,9190004,DIRECT PAYMENTS,03/10/2017,J2042755,"1,004.64",IDK SUPPORT 4 YOU LTD - SUPPORT PLANNING,CT9999DIRPY,CAREFIRST DIRECT PAYMENTS,56217800
SHEFFIELD CITY COUNCIL,PEOPLE,14009346039,ADULT SOCIAL CARE PURCHASING,9190004,DIRECT PAYMENTS,03/10/2017,J2042755,"1,008.00",IDK SUPPORT 4 YOU LTD - SUPPORT PLANNING,CT9999DIRPY,CAREFIRST DIRECT PAYMENTS,56217800
SHEFFIELD CITY COUNCIL,PEOPLE,14009242034,PURCHASING LEARNING DISABILITI,9190004,DIRECT PAYMENTS,03/10/2017,J2042755,"1,014.00",IDK SUPPORT 4 YOU LTD - SUPPORT PLANNING,CT9999DIRPY,CAREFIRST DIRECT PAYMENTS,56217800
SHEFFIELD CITY COUNCIL,PEOPLE,14009346039,ADULT SOCIAL CARE PURCHASING,9190004,DIRECT PAYMENTS,03/10/2017,J2042755,"1,026.48",IDK SUPPORT 4 YOU LTD - SUPPORT PLANNING,CT9999DIRPY,CAREFIRST DIRECT PAYMENTS,56217800
SHEFFIELD CITY COUNCIL,PEOPLE,14009242034,PURCHASING LEARNING DISABILITI,9190004,DIRECT PAYMENTS,03/10/2017,J2042755,"1,032.24",IDK SUPPORT 4 YOU LTD - SUPPORT PLANNING,CT9999DIRPY,CAREFIRST DIRECT PAYMENTS,56217800
SHEFFIELD CITY COUNCIL,PEOPLE,14009242034,PURCHASING LEARNING DISABILITI,9190004,DIRECT PAYMENTS,03/10/2017,J2042755,"1,035.20",IDK SUPPORT 4 YOU LTD - SUPPORT PLANNING,CT9999DIRPY,CAREFIRST DIRECT PAYMENTS,56217800
SHEFFIELD CITY COUNCIL,PEOPLE,14009346039,ADULT SOCIAL CARE PURCHASING,9190004,DIRECT PAYMENTS,03/10/2017,J2042755,"1,040.68",IDK SUPPORT 4 YOU LTD - SUPPORT PLANNING,CT9999DIRPY,CAREFIRST DIRECT PAYMENTS,56217800
SHEFFIELD CITY COUNCIL,PEOPLE,14009242034,PURCHASING LEARNING DISABILITI,9190004,DIRECT PAYMENTS,03/10/2017,J2042755,"1,043.68",IDK SUPPORT 4 YOU LTD - SUPPORT PLANNING,CT9999DIRPY,CAREFIRST DIRECT PAYMENTS,56217800
SHEFFIELD CITY COUNCIL,PEOPLE,14009346039,ADULT SOCIAL CARE PURCHASING,9190004,DIRECT PAYMENTS,03/10/2017,J2042755,"1,045.68",IDK SUPPORT 4 YOU LTD - SUPPORT PLANNING,CT9999DIRPY,CAREFIRST DIRECT PAYMENTS,56217800
SHEFFIELD CITY COUNCIL,PEOPLE,14009242034,PURCHASING LEARNING DISABILITI,9190004,DIRECT PAYMENTS,03/10/2017,J2042755,"1,058.20",IDK SUPPORT 4 YOU LTD - SUPPORT PLANNING,CT9999DIRPY,CAREFIRST DIRECT PAYMENTS,56217800
SHEFFIELD CITY COUNCIL,PEOPLE,14009242034,PURCHASING LEARNING DISABILITI,9190007,FUNDED HOME SUPPORT,03/10/2017,J2042755,"1,060.52",IDK SUPPORT 4 YOU LTD - SUPPORT PLANNING,CT9999DIRPY,CAREFIRST DIRECT PAYMENTS,56217800
SHEFFIELD CITY COUNCIL,PEOPLE,14009346039,ADULT SOCIAL CARE PURCHASING,9190004,DIRECT PAYMENTS,03/10/2017,J2042755,"1,062.80",IDK SUPPORT 4 YOU LTD - SUPPORT PLANNING,CT9999DIRPY,CAREFIRST DIRECT PAYMENTS,56217800
SHEFFIELD CITY COUNCIL,PEOPLE,14009346039,ADULT SOCIAL CARE PURCHASING,9190004,DIRECT PAYMENTS,03/10/2017,J2042755,"1,092.00",IDK SUPPORT 4 YOU LTD - SUPPORT PLANNING,CT9999DIRPY,CAREFIRST DIRECT PAYMENTS,56217800
SHEFFIELD CITY COUNCIL,PEOPLE,14009242034,PURCHASING LEARNING DISABILITI,9190004,DIRECT PAYMENTS,03/10/2017,J2042755,"1,098.40",IDK SUPPORT 4 YOU LTD - SUPPORT PLANNING,CT9999DIRPY,CAREFIRST DIRECT PAYMENTS,56217800
SHEFFIELD CITY COUNCIL,PEOPLE,14009346039,ADULT SOCIAL CARE PURCHASING,9190004,DIRECT PAYMENTS,03/10/2017,J2042755,"1,117.92",IDK SUPPORT 4 YOU LTD - SUPPORT PLANNING,CT9999DIRPY,CAREFIRST DIRECT PAYMENTS,56217800
SHEFFIELD CITY COUNCIL,PEOPLE,14009346039,ADULT SOCIAL CARE PURCHASING,9190004,DIRECT PAYMENTS,03/10/2017,J2042755,"1,145.80",IDK SUPPORT 4 YOU LTD - SUPPORT PLANNING,CT9999DIRPY,CAREFIRST DIRECT PAYMENTS,56217800
SHEFFIELD CITY COUNCIL,PEOPLE,14009242034,PURCHASING LEARNING DISABILITI,9190004,DIRECT PAYMENTS,03/10/2017,J2042755,"1,162.12",IDK SUPPORT 4 YOU LTD - SUPPORT PLANNING,CT9999DIRPY,CAREFIRST DIRECT PAYMENTS,56217800
SHEFFIELD CITY COUNCIL,PEOPLE,14009242034,PURCHASING LEARNING DISABILITI,9190004,DIRECT PAYMENTS,03/10/2017,J2042755,"1,172.00",IDK SUPPORT 4 YOU LTD - SUPPORT PLANNING,CT9999DIRPY,CAREFIRST DIRECT PAYMENTS,56217800
SHEFFIELD CITY COUNCIL,PEOPLE,14009242034,PURCHASING LEARNING DISABILITI,9190004,DIRECT PAYMENTS,03/10/2017,J2042755,"1,235.64",IDK SUPPORT 4 YOU LTD - SUPPORT PLANNING,CT9999DIRPY,CAREFIRST DIRECT PAYMENTS,56217800
SHEFFIELD CITY COUNCIL,PEOPLE,14009346039,ADULT SOCIAL CARE PURCHASING,9190004,DIRECT PAYMENTS,03/10/2017,J2042755,"1,243.68",IDK SUPPORT 4 YOU LTD - SUPPORT PLANNING,CT9999DIRPY,CAREFIRST DIRECT PAYMENTS,56217800
SHEFFIELD CITY COUNCIL,PEOPLE,14009242034,PURCHASING LEARNING DISABILITI,9190004,DIRECT PAYMENTS,03/10/2017,J2042755,"1,248.48",IDK SUPPORT 4 YOU LTD - SUPPORT PLANNING,CT9999DIRPY,CAREFIRST DIRECT PAYMENTS,56217800
SHEFFIELD CITY COUNCIL,PEOPLE,14009346039,ADULT SOCIAL CARE PURCHASING,9190004,DIRECT PAYMENTS,03/10/2017,J2042755,"1,249.28",IDK SUPPORT 4 YOU LTD - SUPPORT PLANNING,CT9999DIRPY,CAREFIRST DIRECT PAYMENTS,56217800
SHEFFIELD CITY COUNCIL,PEOPLE,14009242034,PURCHASING LEARNING DISABILITI,9190004,DIRECT PAYMENTS,03/10/2017,J2042755,"1,259.64",IDK SUPPORT 4 YOU LTD - SUPPORT PLANNING,CT9999DIRPY,CAREFIRST DIRECT PAYMENTS,56217800
SHEFFIELD CITY COUNCIL,PEOPLE,14009242034,PURCHASING LEARNING DISABILITI,9190004,DIRECT PAYMENTS,03/10/2017,J2042755,"1,265.56",IDK SUPPORT 4 YOU LTD - SUPPORT PLANNING,CT9999DIRPY,CAREFIRST DIRECT PAYMENTS,56217800
SHEFFIELD CITY COUNCIL,PEOPLE,14009242034,PURCHASING LEARNING DISABILITI,9190004,DIRECT PAYMENTS,03/10/2017,J2042755,"1,290.00",IDK SUPPORT 4 YOU LTD - SUPPORT PLANNING,CT9999DIRPY,CAREFIRST DIRECT PAYMENTS,56217800
SHEFFIELD CITY COUNCIL,PEOPLE,14009346039,ADULT SOCIAL CARE PURCHASING,9190004,DIRECT PAYMENTS,03/10/2017,J2042755,"1,306.20",IDK SUPPORT 4 YOU LTD - SUPPORT PLANNING,CT9999DIRPY,CAREFIRST DIRECT PAYMENTS,56217800
SHEFFIELD CITY COUNCIL,PEOPLE,14009242034,PURCHASING LEARNING DISABILITI,9190004,DIRECT PAYMENTS,03/10/2017,J2042755,"1,308.92",IDK SUPPORT 4 YOU LTD - SUPPORT PLANNING,CT9999DIRPY,CAREFIRST DIRECT PAYMENTS,56217800
SHEFFIELD CITY COUNCIL,PEOPLE,14009242034,PURCHASING LEARNING DISABILITI,9190004,DIRECT PAYMENTS,03/10/2017,J2042755,"1,323.32",IDK SUPPORT 4 YOU LTD - SUPPORT PLANNING,CT9999DIRPY,CAREFIRST DIRECT PAYMENTS,56217800
SHEFFIELD CITY COUNCIL,PEOPLE,14009346039,ADULT SOCIAL CARE PURCHASING,9190004,DIRECT PAYMENTS,03/10/2017,J2042755,"1,323.88",IDK SUPPORT 4 YOU LTD - SUPPORT PLANNING,CT9999DIRPY,CAREFIRST DIRECT PAYMENTS,56217800
SHEFFIELD CITY COUNCIL,PEOPLE,14009242034,PURCHASING LEARNING DISABILITI,9190004,DIRECT PAYMENTS,03/10/2017,J2042755,"1,328.64",IDK SUPPORT 4 YOU LTD - SUPPORT PLANNING,CT9999DIRPY,CAREFIRST DIRECT PAYMENTS,56217800
SHEFFIELD CITY COUNCIL,PEOPLE,14009242034,PURCHASING LEARNING DISABILITI,9190007,FUNDED HOME SUPPORT,03/10/2017,J2042755,"1,352.00",IDK SUPPORT 4 YOU LTD - SUPPORT PLANNING,CT9999DIRPY,CAREFIRST DIRECT PAYMENTS,56217800
SHEFFIELD CITY COUNCIL,PEOPLE,14009242034,PURCHASING LEARNING DISABILITI,9190004,DIRECT PAYMENTS,03/10/2017,J2042755,"1,374.84",IDK SUPPORT 4 YOU LTD - SUPPORT PLANNING,CT9999DIRPY,CAREFIRST DIRECT PAYMENTS,56217800
SHEFFIELD CITY COUNCIL,PEOPLE,14009242034,PURCHASING LEARNING DISABILITI,9190004,DIRECT PAYMENTS,03/10/2017,J2042755,"1,394.32",IDK SUPPORT 4 YOU LTD - SUPPORT PLANNING,CT9999DIRPY,CAREFIRST DIRECT PAYMENTS,56217800
SHEFFIELD CITY COUNCIL,PEOPLE,14009346039,ADULT SOCIAL CARE PURCHASING,9190004,DIRECT PAYMENTS,03/10/2017,J2042755,"1,398.88",IDK SUPPORT 4 YOU LTD - SUPPORT PLANNING,CT9999DIRPY,CAREFIRST DIRECT PAYMENTS,56217800
SHEFFIELD CITY COUNCIL,PEOPLE,14009346039,ADULT SOCIAL CARE PURCHASING,9190004,DIRECT PAYMENTS,03/10/2017,J2042755,"1,424.64",IDK SUPPORT 4 YOU LTD - SUPPORT PLANNING,CT9999DIRPY,CAREFIRST DIRECT PAYMENTS,56217800
SHEFFIELD CITY COUNCIL,PEOPLE,14009346039,ADULT SOCIAL CARE PURCHASING,9190004,DIRECT PAYMENTS,03/10/2017,J2042755,"1,426.92",IDK SUPPORT 4 YOU LTD - SUPPORT PLANNING,CT9999DIRPY,CAREFIRST DIRECT PAYMENTS,56217800
SHEFFIELD CITY COUNCIL,PEOPLE,14009242034,PURCHASING LEARNING DISABILITI,9190004,DIRECT PAYMENTS,03/10/2017,J2042755,"1,434.88",IDK SUPPORT 4 YOU LTD - SUPPORT PLANNING,CT9999DIRPY,CAREFIRST DIRECT PAYMENTS,56217800
SHEFFIELD CITY COUNCIL,PEOPLE,14009242034,PURCHASING LEARNING DISABILITI,9190004,DIRECT PAYMENTS,03/10/2017,J2042755,"1,450.64",IDK SUPPORT 4 YOU LTD - SUPPORT PLANNING,CT9999DIRPY,CAREFIRST DIRECT PAYMENTS,56217800
SHEFFIELD CITY COUNCIL,PEOPLE,14009242034,PURCHASING LEARNING DISABILITI,9190004,DIRECT PAYMENTS,03/10/2017,J2042755,"1,467.00",IDK SUPPORT 4 YOU LTD - SUPPORT PLANNING,CT9999DIRPY,CAREFIRST DIRECT PAYMENTS,56217800
SHEFFIELD CITY COUNCIL,PEOPLE,14009242034,PURCHASING LEARNING DISABILITI,9190004,DIRECT PAYMENTS,03/10/2017,J2042755,"1,487.40",IDK SUPPORT 4 YOU LTD - SUPPORT PLANNING,CT9999DIRPY,CAREFIRST DIRECT PAYMENTS,56217800
SHEFFIELD CITY COUNCIL,PEOPLE,14009242034,PURCHASING LEARNING DISABILITI,9190004,DIRECT PAYMENTS,03/10/2017,J2042755,"1,540.40",IDK SUPPORT 4 YOU LTD - SUPPORT PLANNING,CT9999DIRPY,CAREFIRST DIRECT PAYMENTS,56217800
SHEFFIELD CITY COUNCIL,PEOPLE,14009346039,ADULT SOCIAL CARE PURCHASING,9190004,DIRECT PAYMENTS,03/10/2017,J2042755,"1,540.96",IDK SUPPORT 4 YOU LTD - SUPPORT PLANNING,CT9999DIRPY,CAREFIRST DIRECT PAYMENTS,56217800
SHEFFIELD CITY COUNCIL,PEOPLE,14009242034,PURCHASING LEARNING DISABILITI,9190004,DIRECT PAYMENTS,03/10/2017,J2042755,"1,545.00",IDK SUPPORT 4 YOU LTD - SUPPORT PLANNING,CT9999DIRPY,CAREFIRST DIRECT PAYMENTS,56217800
SHEFFIELD CITY COUNCIL,PEOPLE,14009242034,PURCHASING LEARNING DISABILITI,9190004,DIRECT PAYMENTS,03/10/2017,J2042755,"1,553.44",IDK SUPPORT 4 YOU LTD - SUPPORT PLANNING,CT9999DIRPY,CAREFIRST DIRECT PAYMENTS,56217800
SHEFFIELD CITY COUNCIL,PEOPLE,14009242034,PURCHASING LEARNING DISABILITI,9190007,FUNDED HOME SUPPORT,03/10/2017,J2042755,"1,553.44",IDK SUPPORT 4 YOU LTD - SUPPORT PLANNING,CT9999DIRPY,CAREFIRST DIRECT PAYMENTS,56217800
SHEFFIELD CITY COUNCIL,PEOPLE,14009346039,ADULT SOCIAL CARE PURCHASING,9190004,DIRECT PAYMENTS,03/10/2017,J2042755,"1,555.52",IDK SUPPORT 4 YOU LTD - SUPPORT PLANNING,CT9999DIRPY,CAREFIRST DIRECT PAYMENTS,56217800
SHEFFIELD CITY COUNCIL,PEOPLE,14009346039,ADULT SOCIAL CARE PURCHASING,9190004,DIRECT PAYMENTS,03/10/2017,J2042755,"1,620.80",IDK SUPPORT 4 YOU LTD - SUPPORT PLANNING,CT9999DIRPY,CAREFIRST DIRECT PAYMENTS,56217800
SHEFFIELD CITY COUNCIL,PEOPLE,14009346039,ADULT SOCIAL CARE PURCHASING,9190004,DIRECT PAYMENTS,03/10/2017,J2042755,"1,677.00",IDK SUPPORT 4 YOU LTD - SUPPORT PLANNING,CT9999DIRPY,CAREFIRST DIRECT PAYMENTS,56217800
SHEFFIELD CITY COUNCIL,PEOPLE,14009346039,ADULT SOCIAL CARE PURCHASING,9190004,DIRECT PAYMENTS,03/10/2017,J2042755,"1,677.72",IDK SUPPORT 4 YOU LTD - SUPPORT PLANNING,CT9999DIRPY,CAREFIRST DIRECT PAYMENTS,56217800
SHEFFIELD CITY COUNCIL,PEOPLE,14009346039,ADULT SOCIAL CARE PURCHASING,9190004,DIRECT PAYMENTS,03/10/2017,J2042755,"1,689.52",IDK SUPPORT 4 YOU LTD - SUPPORT PLANNING,CT9999DIRPY,CAREFIRST DIRECT PAYMENTS,56217800
SHEFFIELD CITY COUNCIL,PEOPLE,14009346039,ADULT SOCIAL CARE PURCHASING,9190004,DIRECT PAYMENTS,03/10/2017,J2042755,"1,736.00",IDK SUPPORT 4 YOU LTD - SUPPORT PLANNING,CT9999DIRPY,CAREFIRST DIRECT PAYMENTS,56217800
SHEFFIELD CITY COUNCIL,PEOPLE,14009242034,PURCHASING LEARNING DISABILITI,9190004,DIRECT PAYMENTS,03/10/2017,J2042755,"1,747.64",IDK SUPPORT 4 YOU LTD - SUPPORT PLANNING,CT9999DIRPY,CAREFIRST DIRECT PAYMENTS,56217800
SHEFFIELD CITY COUNCIL,PEOPLE,14009242034,PURCHASING LEARNING DISABILITI,9190004,DIRECT PAYMENTS,03/10/2017,J2042755,"1,750.40",IDK SUPPORT 4 YOU LTD - SUPPORT PLANNING,CT9999DIRPY,CAREFIRST DIRECT PAYMENTS,56217800
SHEFFIELD CITY COUNCIL,PEOPLE,14009242034,PURCHASING LEARNING DISABILITI,9190004,DIRECT PAYMENTS,03/10/2017,J2042755,"1,857.40",IDK SUPPORT 4 YOU LTD - SUPPORT PLANNING,CT9999DIRPY,CAREFIRST DIRECT PAYMENTS,56217800
SHEFFIELD CITY COUNCIL,PEOPLE,14009242034,PURCHASING LEARNING DISABILITI,9190004,DIRECT PAYMENTS,03/10/2017,J2042755,"1,922.04",IDK SUPPORT 4 YOU LTD - SUPPORT PLANNING,CT9999DIRPY,CAREFIRST DIRECT PAYMENTS,56217800
SHEFFIELD CITY COUNCIL,PEOPLE,14009242034,PURCHASING LEARNING DISABILITI,9190004,DIRECT PAYMENTS,03/10/2017,J2042755,"1,940.84",IDK SUPPORT 4 YOU LTD - SUPPORT PLANNING,CT9999DIRPY,CAREFIRST DIRECT PAYMENTS,56217800
SHEFFIELD CITY COUNCIL,PEOPLE,14009242034,PURCHASING LEARNING DISABILITI,9190004,DIRECT PAYMENTS,03/10/2017,J2042755,"2,037.16",IDK SUPPORT 4 YOU LTD - SUPPORT PLANNING,CT9999DIRPY,CAREFIRST DIRECT PAYMENTS,56217800
SHEFFIELD CITY COUNCIL,PEOPLE,14009346039,ADULT SOCIAL CARE PURCHASING,9190004,DIRECT PAYMENTS,03/10/2017,J2042755,"2,047.28",IDK SUPPORT 4 YOU LTD - SUPPORT PLANNING,CT9999DIRPY,CAREFIRST DIRECT PAYMENTS,56217800
SHEFFIELD CITY COUNCIL,PEOPLE,14009346039,ADULT SOCIAL CARE PURCHASING,9190004,DIRECT PAYMENTS,03/10/2017,J2042755,"2,100.00",IDK SUPPORT 4 YOU LTD - SUPPORT PLANNING,CT9999DIRPY,CAREFIRST DIRECT PAYMENTS,56217800
SHEFFIELD CITY COUNCIL,PEOPLE,14009346039,ADULT SOCIAL CARE PURCHASING,9190004,DIRECT PAYMENTS,03/10/2017,J2042755,"2,126.00",IDK SUPPORT 4 YOU LTD - SUPPORT PLANNING,CT9999DIRPY,CAREFIRST DIRECT PAYMENTS,56217800
SHEFFIELD CITY COUNCIL,PEOPLE,14009242034,PURCHASING LEARNING DISABILITI,9190004,DIRECT PAYMENTS,03/10/2017,J2042755,"2,130.80",IDK SUPPORT 4 YOU LTD - SUPPORT PLANNING,CT9999DIRPY,CAREFIRST DIRECT PAYMENTS,56217800
SHEFFIELD CITY COUNCIL,PEOPLE,14009242034,PURCHASING LEARNING DISABILITI,9190004,DIRECT PAYMENTS,03/10/2017,J2042755,"2,181.16",IDK SUPPORT 4 YOU LTD - SUPPORT PLANNING,CT9999DIRPY,CAREFIRST DIRECT PAYMENTS,56217800
SHEFFIELD CITY COUNCIL,PEOPLE,14009242034,PURCHASING LEARNING DISABILITI,9190004,DIRECT PAYMENTS,03/10/2017,J2042755,"2,197.24",IDK SUPPORT 4 YOU LTD - SUPPORT PLANNING,CT9999DIRPY,CAREFIRST DIRECT PAYMENTS,56217800
SHEFFIELD CITY COUNCIL,PEOPLE,14009346039,ADULT SOCIAL CARE PURCHASING,9190004,DIRECT PAYMENTS,03/10/2017,J2042755,"2,208.40",IDK SUPPORT 4 YOU LTD - SUPPORT PLANNING,CT9999DIRPY,CAREFIRST DIRECT PAYMENTS,56217800
SHEFFIELD CITY COUNCIL,PEOPLE,14009242034,PURCHASING LEARNING DISABILITI,9190004,DIRECT PAYMENTS,03/10/2017,J2042755,"2,306.72",IDK SUPPORT 4 YOU LTD - SUPPORT PLANNING,CT9999DIRPY,CAREFIRST DIRECT PAYMENTS,56217800
SHEFFIELD CITY COUNCIL,PEOPLE,14009242034,PURCHASING LEARNING DISABILITI,9190004,DIRECT PAYMENTS,03/10/2017,J2042755,"2,472.00",IDK SUPPORT 4 YOU LTD - SUPPORT PLANNING,CT9999DIRPY,CAREFIRST DIRECT PAYMENTS,56217800
SHEFFIELD CITY COUNCIL,PEOPLE,14009242034,PURCHASING LEARNING DISABILITI,9190004,DIRECT PAYMENTS,03/10/2017,J2042755,"2,493.20",IDK SUPPORT 4 YOU LTD - SUPPORT PLANNING,CT9999DIRPY,CAREFIRST DIRECT PAYMENTS,56217800
SHEFFIELD CITY COUNCIL,PEOPLE,14009242034,PURCHASING LEARNING DISABILITI,9190004,DIRECT PAYMENTS,03/10/2017,J2042755,"2,520.08",IDK SUPPORT 4 YOU LTD - SUPPORT PLANNING,CT9999DIRPY,CAREFIRST DIRECT PAYMENTS,56217800
SHEFFIELD CITY COUNCIL,PEOPLE,14009346039,ADULT SOCIAL CARE PURCHASING,9190004,DIRECT PAYMENTS,03/10/2017,J2042755,"2,557.20",IDK SUPPORT 4 YOU LTD - SUPPORT PLANNING,CT9999DIRPY,CAREFIRST DIRECT PAYMENTS,56217800
SHEFFIELD CITY COUNCIL,PEOPLE,14009242034,PURCHASING LEARNING DISABILITI,9190004,DIRECT PAYMENTS,03/10/2017,J2042755,"2,591.44",IDK SUPPORT 4 YOU LTD - SUPPORT PLANNING,CT9999DIRPY,CAREFIRST DIRECT PAYMENTS,56217800
SHEFFIELD CITY COUNCIL,PEOPLE,14009242034,PURCHASING LEARNING DISABILITI,9190004,DIRECT PAYMENTS,03/10/2017,J2042755,"2,592.88",IDK SUPPORT 4 YOU LTD - SUPPORT PLANNING,CT9999DIRPY,CAREFIRST DIRECT PAYMENTS,56217800
